ORGANISATION NAME,EFEFCTIVE DATE,DIRECTORATE,SUPPLIER NAME,DATE PAID,AMOUNT (�),PURPOSE,TRANSACTION No.
ROCHDALE BOROUGH COUNCIL,30/08/2022,ECONOMY DIRECTORATE,PEEL GRAPHICS LIMITED,30/08/2022,15.00 ,PRINTING & STATIONERY,V001853033
ROCHDALE BOROUGH COUNCIL,30/08/2022,ECONOMY DIRECTORATE,PEEL GRAPHICS LIMITED,30/08/2022,15.00 ,PRINTING & STATIONERY,V001853033
ROCHDALE BOROUGH COUNCIL,02/08/2022,ADULT CARE LCO FUNCTIONS,UPS BUILDING AND MAINTENANCE LTD,02/08/2022,2078.52 ,MINOR BUILDING WORKS,V001854192
ROCHDALE BOROUGH COUNCIL,09/08/2022,NEIGHBOURHOODS AND ENVIRONMENT,JGM AGENCY,09/08/2022,4938.75 ,PUBLICITY,V001861159
ROCHDALE BOROUGH COUNCIL,30/08/2022,NEIGHBOURHOODS AND ENVIRONMENT,GMCA,30/08/2022,1161.45 ,MINOR BUILDING WORKS,V001864218
ROCHDALE BOROUGH COUNCIL,30/08/2022,NEIGHBOURHOODS AND ENVIRONMENT,TOTALENERGIES GAS AND POWER LIMITED,30/08/2022,-13.50 ,GAS,V001870067
ROCHDALE BOROUGH COUNCIL,10/08/2022,EARLY HELP AND SCHOOLS,BELMONT SCHOOL LIMITED,10/08/2022,13994.47 ,OTHER EST - SEN PROVISION,V001870154
ROCHDALE BOROUGH COUNCIL,30/08/2022,EARLY HELP AND SCHOOLS,KEDLESTON MILL SCHOOL LTD,30/08/2022,920.00 ,OTHER LA`S - SEN PROVISION,V001870399
ROCHDALE BOROUGH COUNCIL,18/08/2022,EARLY HELP AND SCHOOLS,VISION FOR EDUCATION LIMITED,18/08/2022,350.00 ,CURRICULUM DEVELOPMENT,V001870742
ROCHDALE BOROUGH COUNCIL,05/08/2022,PUBLIC HEALTH,AGENCIA CONSULTING LTD,05/08/2022,8450.00 ,CONSULTANT FEES,V001870748
ROCHDALE BOROUGH COUNCIL,30/08/2022,EARLY HELP AND SCHOOLS,KEDLESTON MILL SCHOOL LTD,30/08/2022,-17333.33 ,OTHER LA`S - SEN PROVISION,V001870758
ROCHDALE BOROUGH COUNCIL,04/08/2022,NEIGHBOURHOODS AND ENVIRONMENT,PARTSPLUS,04/08/2022,20.88 ,VEHICLE MAINTENANCE,V001873718
ROCHDALE BOROUGH COUNCIL,19/08/2022,CHILDREN�S SOCIAL CARE,ROCHDALE TOWN TAXIS LTD,19/08/2022,737.00 ,TRANSPORT SERVICE RECHARGE,V001873960
ROCHDALE BOROUGH COUNCIL,19/08/2022,CHILDREN�S SOCIAL CARE,ROCHDALE TOWN TAXIS LTD,19/08/2022,737.00 ,TRANSPORT SERVICE RECHARGE,V001873960
ROCHDALE BOROUGH COUNCIL,19/08/2022,CHILDREN�S SOCIAL CARE,ROCHDALE TOWN TAXIS LTD,19/08/2022,737.00 ,TRANSPORT SERVICE RECHARGE,V001873960
ROCHDALE BOROUGH COUNCIL,26/08/2022,ADULT CARE LCO FUNCTIONS,UPS BUILDING AND MAINTENANCE LTD,26/08/2022,1100.00 ,MINOR BUILDING WORKS,V001873975
ROCHDALE BOROUGH COUNCIL,15/08/2022,NEIGHBOURHOODS AND ENVIRONMENT,SPALDINGS UK LIMITED,15/08/2022,240.00 ,EQUIPMENT - GENERAL,V001875214
ROCHDALE BOROUGH COUNCIL,05/08/2022,ECONOMY DIRECTORATE, WALKER SIME LTD,05/08/2022,-5100.00 ,CONSULTANTS FEES,V001875482
ROCHDALE BOROUGH COUNCIL,05/08/2022,ECONOMY DIRECTORATE, WALKER SIME LTD,05/08/2022,-5100.00 ,CONSULTANTS FEES,V001875484
ROCHDALE BOROUGH COUNCIL,05/08/2022,ECONOMY DIRECTORATE, WALKER SIME LTD,05/08/2022,-5100.00 ,CONSULTANTS FEES,V001875487
ROCHDALE BOROUGH COUNCIL,05/08/2022,ECONOMY DIRECTORATE, WALKER SIME LTD,05/08/2022,-5100.00 ,CONSULTANTS FEES,V001875488
ROCHDALE BOROUGH COUNCIL,05/08/2022,ECONOMY DIRECTORATE, WALKER SIME LTD,05/08/2022,-5100.00 ,CONSULTANTS FEES,V001875489
ROCHDALE BOROUGH COUNCIL,11/08/2022,PROPERTY AND HIGHWAYS,ARCO GROUP LIMITED,11/08/2022,271.04 ,MINOR BUILDING WORKS,V001878591
ROCHDALE BOROUGH COUNCIL,11/08/2022,PROPERTY AND HIGHWAYS,ARCO GROUP LIMITED,11/08/2022,271.04 ,MINOR BUILDING WORKS,V001878591
ROCHDALE BOROUGH COUNCIL,11/08/2022,PROPERTY AND HIGHWAYS,ARCO GROUP LIMITED,11/08/2022,271.04 ,MINOR BUILDING WORKS,V001878591
ROCHDALE BOROUGH COUNCIL,26/08/2022,EARLY HELP AND SCHOOLS,EASY AVENUES LTD,26/08/2022,-89.10 ,SUBSCRIPTIONS,V001889379
ROCHDALE BOROUGH COUNCIL,05/08/2022,ECONOMY DIRECTORATE, WALKER SIME LTD,05/08/2022,7215.00 ,CONSULTANTS FEES,V001889502
ROCHDALE BOROUGH COUNCIL,10/08/2022,NEIGHBOURHOODS AND ENVIRONMENT,E ON NEXT ENERGY LTD,10/08/2022,46.50 ,STATUTORY UNDERTAKING-UTILITY COMPANIES,V001890651
ROCHDALE BOROUGH COUNCIL,18/08/2022,CHILDREN�S SOCIAL CARE,YOUNG PEOPLE FIRST LTD,18/08/2022,5250.00 ,YOUNG PEOPLES RENTS,V001891199
ROCHDALE BOROUGH COUNCIL,15/08/2022,NEIGHBOURHOODS AND ENVIRONMENT,SPALDINGS UK LIMITED,15/08/2022,-240.00 ,EQUIPMENT - GENERAL,V001891666
ROCHDALE BOROUGH COUNCIL,30/08/2022,EARLY HELP AND SCHOOLS,KEDLESTON MILL SCHOOL LTD,30/08/2022,874.00 ,OTHER LA`S - SEN PROVISION,V001893722
ROCHDALE BOROUGH COUNCIL,15/08/2022,NEIGHBOURHOODS AND ENVIRONMENT,SPALDINGS UK LIMITED,15/08/2022,-240.00 ,EQUIPMENT - GENERAL,V001895860
ROCHDALE BOROUGH COUNCIL,12/08/2022,ECONOMY DIRECTORATE,EAST LANCASHIRE SERVICES LIMITED,12/08/2022,-67.66 ,CLEANING AND DOMESTIC SUPPLIES,V001895862
ROCHDALE BOROUGH COUNCIL,11/08/2022,NEIGHBOURHOODS AND ENVIRONMENT,BLOOM PROCUREMENT SERVICES LTD,11/08/2022,-1869.00 ,ARCHITECTS FEES,V001895977
ROCHDALE BOROUGH COUNCIL,09/08/2022,ADULT CARE LCO FUNCTIONS,PREPAID FINANCIAL SERVICES,09/08/2022,-2215.00 ,CONTRACTED SERVICES,V001896944
ROCHDALE BOROUGH COUNCIL,05/08/2022,ECONOMY DIRECTORATE, WALKER SIME LTD,05/08/2022,10000.00 ,CONSULTANTS FEES,V001896977
ROCHDALE BOROUGH COUNCIL,01/08/2022,RESOURCES,EASY AVENUES LTD,01/08/2022,646.30 ,ACCOMMODATION,V001897094
ROCHDALE BOROUGH COUNCIL,25/08/2022,EARLY HELP AND SCHOOLS,KATS DANCE ACADEMY,25/08/2022,3840.00 ,ACTIVITIES,V001897494
ROCHDALE BOROUGH COUNCIL,01/08/2022,RESOURCES,EASY AVENUES LTD,01/08/2022,646.30 ,ACCOMMODATION,V001897500
ROCHDALE BOROUGH COUNCIL,10/08/2022,ECONOMY DIRECTORATE,E ON NEXT ENERGY LTD,10/08/2022,3556.49 ,ELECTRICITY,V001897539
ROCHDALE BOROUGH COUNCIL,10/08/2022,ECONOMY DIRECTORATE,E ON NEXT ENERGY LTD,10/08/2022,31.68 ,ELECTRICITY,V001897540
ROCHDALE BOROUGH COUNCIL,01/08/2022,RESOURCES,ST BARNABAS CHURCH,01/08/2022,100.00 ,ROOM HIRE,V001897681
ROCHDALE BOROUGH COUNCIL,10/08/2022,ECONOMY DIRECTORATE,E ON NEXT ENERGY LTD,10/08/2022,56.97 ,ELECTRICITY,V001897932
ROCHDALE BOROUGH COUNCIL,19/08/2022,CHILDREN�S SOCIAL CARE,D A LANGUAGES LIMITED,19/08/2022,114.50 ,TRANSLATION & INTERPRETATION,V001898262
ROCHDALE BOROUGH COUNCIL,03/08/2022,CHILDREN�S SOCIAL CARE,CAPSTONE FOSTER CARE,03/08/2022,6385.80 ,FOSTER PARENTS BASIC ALLOWANCE,V001902260
ROCHDALE BOROUGH COUNCIL,03/08/2022,CHILDREN�S SOCIAL CARE,CAPSTONE FOSTER CARE,03/08/2022,6385.80 ,FOSTER PARENTS BASIC ALLOWANCE,V001902261
ROCHDALE BOROUGH COUNCIL,26/08/2022,CHILDREN�S SOCIAL CARE,EASY AVENUES LTD,26/08/2022,-148.22 ,STAFF TRAVELLING EXPENSES,V001902286
ROCHDALE BOROUGH COUNCIL,01/08/2022,PROPERTY AND HIGHWAYS,A AND D DOOR SYSTEMS LTD,01/08/2022,392.00 ,REPAIRS & ALTS OF BUILDINGS,V001902353
ROCHDALE BOROUGH COUNCIL,01/08/2022,ADULT CARE LCO FUNCTIONS,ARMOUR CARE SERVICES LTD,01/08/2022,141.00 ,HOME CARE - ADULT SERVICES,V001902354
ROCHDALE BOROUGH COUNCIL,01/08/2022,PROPERTY AND HIGHWAYS,ELECTRIC CENTER,01/08/2022,39.70 ,PROPERTY - WORKS ELEMENT,V001902355
ROCHDALE BOROUGH COUNCIL,01/08/2022,NEIGHBOURHOODS AND ENVIRONMENT,REACH PUBLISHING SERVICES LTD,01/08/2022,95.74 ,PROFESSIONAL FEES,V001902356
ROCHDALE BOROUGH COUNCIL,01/08/2022,NEIGHBOURHOODS AND ENVIRONMENT,REACH PUBLISHING SERVICES LTD,01/08/2022,117.02 ,ACTIVITIES,V001902357
ROCHDALE BOROUGH COUNCIL,01/08/2022,ECONOMY DIRECTORATE,REACH PUBLISHING SERVICES LTD,01/08/2022,117.02 ,PROFESSIONAL FEES,V001902358
ROCHDALE BOROUGH COUNCIL,01/08/2022,CHILDREN�S SOCIAL CARE,BANNER GROUP LIMITED,01/08/2022,1.58 ,PRINTING & STATIONERY,V001902359
ROCHDALE BOROUGH COUNCIL,01/08/2022,CHILDREN�S SOCIAL CARE,BANNER GROUP LIMITED,01/08/2022,1.18 ,PRINTING & STATIONERY,V001902359
ROCHDALE BOROUGH COUNCIL,02/08/2022,EARLY HELP AND SCHOOLS,CUMBERLAND SCHOOL,02/08/2022,24852.00 ,OTHER EST - SEN PROVISION,V001902364
ROCHDALE BOROUGH COUNCIL,30/08/2022,PROPERTY AND HIGHWAYS,CROWTHER AND SHAW,30/08/2022,-494.70 ,PROPERTY - WORKS ELEMENT,V001902368
ROCHDALE BOROUGH COUNCIL,24/08/2022,PROPERTY AND HIGHWAYS,BUILDTECH CONSULTANCY LTD,24/08/2022,5825.00 ,REPAIRS & ALTS OF BUILDINGS,V001902392
ROCHDALE BOROUGH COUNCIL,30/08/2022,ECONOMY DIRECTORATE,PEEL GRAPHICS LIMITED,30/08/2022,-15.00 ,PRINTING & STATIONERY,V001902393
ROCHDALE BOROUGH COUNCIL,30/08/2022,ECONOMY DIRECTORATE,PEEL GRAPHICS LIMITED,30/08/2022,-15.00 ,PRINTING & STATIONERY,V001902393
ROCHDALE BOROUGH COUNCIL,01/08/2022,NEIGHBOURHOODS AND ENVIRONMENT,HILTON CABINET CO LTD,01/08/2022,134.06 ,MATERIAL - GENERAL,V001902418
ROCHDALE BOROUGH COUNCIL,01/08/2022,RESOURCES,NEC SOFTWARE SOLUTIONS UK LTD,01/08/2022,136.35 ,POSTAGE,V001902420
ROCHDALE BOROUGH COUNCIL,01/08/2022,NEIGHBOURHOODS AND ENVIRONMENT,A AND D DOOR SYSTEMS LTD,01/08/2022,245.00 ,REPAIRS & ALTS OF BUILDINGS,V001902921
ROCHDALE BOROUGH COUNCIL,01/08/2022,RESOURCES,BANNER GROUP LIMITED,01/08/2022,27.90 ,PRINTING & STATIONERY,V001902923
ROCHDALE BOROUGH COUNCIL,01/08/2022,EARLY HELP AND SCHOOLS,ARJO UK LTD,01/08/2022,54.00 ,SPECIFIED MAINTENANCE,V001902927
ROCHDALE BOROUGH COUNCIL,01/08/2022,RESOURCES,TFG STAGE TECHNOLOGY LTD,01/08/2022,600.00 ,ELECTION MATERIALS,V001902928
ROCHDALE BOROUGH COUNCIL,01/08/2022,CHILDREN�S SOCIAL CARE,BALTIMORE CONSULTING LTD,01/08/2022,2830.93 ,AGENCY STAFF,V001902929
ROCHDALE BOROUGH COUNCIL,01/08/2022,NEIGHBOURHOODS AND ENVIRONMENT,ANGLIA SIGN CASTING LIMITED,01/08/2022,54.30 ,MATERIAL - GENERAL,V001902930
ROCHDALE BOROUGH COUNCIL,01/08/2022,NEIGHBOURHOODS AND ENVIRONMENT,ANGLIA SIGN CASTING LIMITED,01/08/2022,567.25 ,MATERIAL - GENERAL,V001902931
ROCHDALE BOROUGH COUNCIL,01/08/2022,NEIGHBOURHOODS AND ENVIRONMENT,SPIN PRINT SOLUTIONS,01/08/2022,126.00 ,PRINTING & STATIONERY,V001902932
ROCHDALE BOROUGH COUNCIL,01/08/2022,NEIGHBOURHOODS AND ENVIRONMENT,HILTON CABINET CO LTD,01/08/2022,72.94 ,MATERIAL - GENERAL,V001902933
ROCHDALE BOROUGH COUNCIL,01/08/2022,NEIGHBOURHOODS AND ENVIRONMENT,GREENFINGERS LANDSCAPE LTD,01/08/2022,6382.35 ,CONTRACTS,V001902934
ROCHDALE BOROUGH COUNCIL,01/08/2022,ADULT CARE LCO FUNCTIONS,BANNER GROUP LIMITED,01/08/2022,4.89 ,PRINTING & STATIONERY,V001902943
ROCHDALE BOROUGH COUNCIL,01/08/2022,ADULT CARE LCO FUNCTIONS,BANNER GROUP LIMITED,01/08/2022,0.83 ,PRINTING & STATIONERY,V001902943
ROCHDALE BOROUGH COUNCIL,01/08/2022,ADULT CARE LCO FUNCTIONS,BANNER GROUP LIMITED,01/08/2022,3.93 ,PRINTING & STATIONERY,V001902943
ROCHDALE BOROUGH COUNCIL,01/08/2022,EARLY HELP AND SCHOOLS,BANNER GROUP LIMITED,01/08/2022,44.20 ,PRINTING & STATIONERY,V001902944
ROCHDALE BOROUGH COUNCIL,01/08/2022,EARLY HELP AND SCHOOLS,BANNER GROUP LIMITED,01/08/2022,55.95 ,PRINTING & STATIONERY,V001902944
ROCHDALE BOROUGH COUNCIL,02/08/2022,NEIGHBOURHOODS AND ENVIRONMENT,DEWBERRY REDPOINT LTD,02/08/2022,290.00 ,TRAINING,V001902955
ROCHDALE BOROUGH COUNCIL,01/08/2022,ADULT CARE LCO FUNCTIONS,STANNAH LIFT SERVICES LTD,01/08/2022,63.00 ,REMOVAL EXPENDITURE,V001902958
ROCHDALE BOROUGH COUNCIL,01/08/2022,NEIGHBOURHOODS AND ENVIRONMENT,A AND D DOOR SYSTEMS LTD,01/08/2022,97.75 ,REPAIRS & ALTS OF BUILDINGS,V001902963
ROCHDALE BOROUGH COUNCIL,01/08/2022,ECONOMY DIRECTORATE,A AND D DOOR SYSTEMS LTD,01/08/2022,89.00 ,REPAIRS & ALTS OF BUILDINGS,V001902966
ROCHDALE BOROUGH COUNCIL,01/08/2022,PROPERTY AND HIGHWAYS,BLACKETT ORD  CONSERVATION ENGINEERING,01/08/2022,800.00 ,MINOR BUILDING WORKS,V001902971
ROCHDALE BOROUGH COUNCIL,01/08/2022,ADULT CARE LCO FUNCTIONS,TF JONES PROPERTY SERVICES LTD,01/08/2022,2196.06 ,TRANSACTIONS-EXPENDITURE,V001902983
ROCHDALE BOROUGH COUNCIL,01/08/2022,EARLY HELP AND SCHOOLS,INTEGRATED WATER SERVICES LIMITED,01/08/2022,82.00 ,REPAIRS & ALTS OF BUILDINGS,V001902985
ROCHDALE BOROUGH COUNCIL,01/08/2022,ECONOMY DIRECTORATE,INTEGRATED WATER SERVICES LIMITED,01/08/2022,76.00 ,REPAIRS & ALTS OF BUILDINGS,V001902986
ROCHDALE BOROUGH COUNCIL,02/08/2022,ADULT CARE LCO FUNCTIONS,STANNAH LIFT SERVICES LTD,02/08/2022,63.00 ,TRANSACTIONS-EXPENDITURE,V001902988
ROCHDALE BOROUGH COUNCIL,02/08/2022,ECONOMY DIRECTORATE,G2 RECRUITMENT SOLUTIONS LTD,02/08/2022,600.00 ,AGENCY STAFF,V001902989
ROCHDALE BOROUGH COUNCIL,02/08/2022,PROPERTY AND HIGHWAYS,ELECTRIC CENTER,02/08/2022,56.84 ,PROPERTY - WORKS ELEMENT,V001902990
ROCHDALE BOROUGH COUNCIL,02/08/2022,PROPERTY AND HIGHWAYS,BANNER GROUP LIMITED,02/08/2022,88.30 ,PRINTING & STATIONERY,V001902991
ROCHDALE BOROUGH COUNCIL,02/08/2022,NEIGHBOURHOODS AND ENVIRONMENT,BANNER GROUP LIMITED,02/08/2022,26.49 ,PRINTING & STATIONERY,V001902992
ROCHDALE BOROUGH COUNCIL,02/08/2022,NEIGHBOURHOODS AND ENVIRONMENT,BANNER GROUP LIMITED,02/08/2022,88.30 ,PRINTING & STATIONERY,V001902994
ROCHDALE BOROUGH COUNCIL,02/08/2022,PROPERTY AND HIGHWAYS,REXEL UK LIMITED,02/08/2022,16.08 ,PROPERTY - WORKS ELEMENT,V001902995
ROCHDALE BOROUGH COUNCIL,02/08/2022,EARLY HELP AND SCHOOLS,D A LANGUAGES LIMITED,02/08/2022,160.75 ,TRANSLATION & INTERPRETATION,V001902998
ROCHDALE BOROUGH COUNCIL,02/08/2022,EARLY HELP AND SCHOOLS,PATTERSONS BRISTOL LTD,02/08/2022,13.78 ,CONSUMABLES,V001902999
ROCHDALE BOROUGH COUNCIL,02/08/2022,EARLY HELP AND SCHOOLS,PATTERSONS BRISTOL LTD,02/08/2022,33.76 ,CONSUMABLES,V001902999
ROCHDALE BOROUGH COUNCIL,02/08/2022,EARLY HELP AND SCHOOLS,PATTERSONS BRISTOL LTD,02/08/2022,30.22 ,CONSUMABLES,V001902999
ROCHDALE BOROUGH COUNCIL,02/08/2022,EARLY HELP AND SCHOOLS,PATTERSONS BRISTOL LTD,02/08/2022,30.00 ,CONSUMABLES,V001902999
ROCHDALE BOROUGH COUNCIL,02/08/2022,EARLY HELP AND SCHOOLS,DREAM BIG SPORTS,02/08/2022,8640.00 ,ACTIVITIES,V001903000
ROCHDALE BOROUGH COUNCIL,02/08/2022,EARLY HELP AND SCHOOLS,FINDEL EDUCATION LIMITED,02/08/2022,24.74 ,PRINTING & STATIONERY,V001903001
ROCHDALE BOROUGH COUNCIL,02/08/2022,EARLY HELP AND SCHOOLS,FINDEL EDUCATION LIMITED,02/08/2022,14.99 ,PRINTING & STATIONERY,V001903001
ROCHDALE BOROUGH COUNCIL,02/08/2022,RESOURCES,ALLIED PUBLICITY SERVICES MANCHESTER LTD,02/08/2022,799.74 ,EXTERNAL CONTRACTED PRINTING,V001903002
ROCHDALE BOROUGH COUNCIL,02/08/2022,NEIGHBOURHOODS AND ENVIRONMENT,BIBLIOTHECA,02/08/2022,1100.00 ,IT EQUIPMENT,V001903003
ROCHDALE BOROUGH COUNCIL,02/08/2022,EARLY HELP AND SCHOOLS,YORKSHIRE PURCHASING ORGANISATION,02/08/2022,1138.50 ,EQUIPMENT - GENERAL,V001903004
ROCHDALE BOROUGH COUNCIL,01/08/2022,NEIGHBOURHOODS AND ENVIRONMENT,LINK MAILING SYSTEMS LTD,01/08/2022,198.00 ,EQUIPMENT - GENERAL,V001903005
ROCHDALE BOROUGH COUNCIL,02/08/2022,CHILDREN�S SOCIAL CARE,TIDDYWINKS DAY NURSERY,02/08/2022,1245.00 ,ACTIVITIES,V001903006
ROCHDALE BOROUGH COUNCIL,01/08/2022,PROPERTY AND HIGHWAYS,WATERMAN INFASTRUCTURE AND ENVIRONMENT LTD,01/08/2022,2236.80 ,ROADWORKS,V001903007
ROCHDALE BOROUGH COUNCIL,01/08/2022,EARLY HELP AND SCHOOLS,A AND D DOOR SYSTEMS LTD,01/08/2022,89.00 ,REPAIRS & ALTS OF BUILDINGS,V001903008
ROCHDALE BOROUGH COUNCIL,01/08/2022,NEIGHBOURHOODS AND ENVIRONMENT,VIZWEAR,01/08/2022,175.52 ,TRANSACTIONS-EXPENDITURE,V001903023
ROCHDALE BOROUGH COUNCIL,01/08/2022,NEIGHBOURHOODS AND ENVIRONMENT,VIZWEAR,01/08/2022,42.40 ,TRANSACTIONS-EXPENDITURE,V001903023
ROCHDALE BOROUGH COUNCIL,01/08/2022,NEIGHBOURHOODS AND ENVIRONMENT,LODGE TYRE CO LTD,01/08/2022,35.00 ,WEAR AND TEAR,V001903025
ROCHDALE BOROUGH COUNCIL,01/08/2022,NEIGHBOURHOODS AND ENVIRONMENT,LODGE TYRE CO LTD,01/08/2022,35.00 ,TYRES,V001903026
ROCHDALE BOROUGH COUNCIL,01/08/2022,NEIGHBOURHOODS AND ENVIRONMENT,LODGE TYRE CO LTD,01/08/2022,76.65 ,TYRES,V001903027
ROCHDALE BOROUGH COUNCIL,01/08/2022,NEIGHBOURHOODS AND ENVIRONMENT,LODGE TYRE CO LTD,01/08/2022,38.75 ,TYRES,V001903028
ROCHDALE BOROUGH COUNCIL,01/08/2022,NEIGHBOURHOODS AND ENVIRONMENT,LODGE TYRE CO LTD,01/08/2022,42.50 ,TYRES,V001903029
ROCHDALE BOROUGH COUNCIL,01/08/2022,NEIGHBOURHOODS AND ENVIRONMENT,LODGE TYRE CO LTD,01/08/2022,24.35 ,TYRES,V001903030
ROCHDALE BOROUGH COUNCIL,01/08/2022,NEIGHBOURHOODS AND ENVIRONMENT,LODGE TYRE CO LTD,01/08/2022,69.65 ,TYRES,V001903031
ROCHDALE BOROUGH COUNCIL,01/08/2022,NEIGHBOURHOODS AND ENVIRONMENT,LODGE TYRE CO LTD,01/08/2022,151.15 ,TYRES,V001903032
ROCHDALE BOROUGH COUNCIL,01/08/2022,NEIGHBOURHOODS AND ENVIRONMENT,LODGE TYRE CO LTD,01/08/2022,249.00 ,TYRES,V001903033
ROCHDALE BOROUGH COUNCIL,01/08/2022,NEIGHBOURHOODS AND ENVIRONMENT,LODGE TYRE CO LTD,01/08/2022,44.25 ,TYRES,V001903034
ROCHDALE BOROUGH COUNCIL,01/08/2022,NEIGHBOURHOODS AND ENVIRONMENT,LODGE TYRE CO LTD,01/08/2022,260.25 ,TYRES,V001903035
ROCHDALE BOROUGH COUNCIL,01/08/2022,NEIGHBOURHOODS AND ENVIRONMENT,LODGE TYRE CO LTD,01/08/2022,260.25 ,TYRES,V001903036
ROCHDALE BOROUGH COUNCIL,01/08/2022,NEIGHBOURHOODS AND ENVIRONMENT,LODGE TYRE CO LTD,01/08/2022,44.25 ,TYRES,V001903037
ROCHDALE BOROUGH COUNCIL,01/08/2022,NEIGHBOURHOODS AND ENVIRONMENT,LODGE TYRE CO LTD,01/08/2022,81.00 ,TYRES,V001903038
ROCHDALE BOROUGH COUNCIL,01/08/2022,NEIGHBOURHOODS AND ENVIRONMENT,LODGE TYRE CO LTD,01/08/2022,44.25 ,TYRES,V001903039
ROCHDALE BOROUGH COUNCIL,01/08/2022,NEIGHBOURHOODS AND ENVIRONMENT,LODGE TYRE CO LTD,01/08/2022,63.15 ,TYRES,V001903040
ROCHDALE BOROUGH COUNCIL,01/08/2022,NEIGHBOURHOODS AND ENVIRONMENT,LODGE TYRE CO LTD,01/08/2022,118.15 ,TYRES,V001903041
ROCHDALE BOROUGH COUNCIL,01/08/2022,NEIGHBOURHOODS AND ENVIRONMENT,LODGE TYRE CO LTD,01/08/2022,63.15 ,TYRES,V001903042
ROCHDALE BOROUGH COUNCIL,01/08/2022,NEIGHBOURHOODS AND ENVIRONMENT,CARS TO GO UK LTD,01/08/2022,985.00 ,TYRES,V001903043
ROCHDALE BOROUGH COUNCIL,01/08/2022,NEIGHBOURHOODS AND ENVIRONMENT,VIZWEAR,01/08/2022,137.52 ,TRANSACTIONS-EXPENDITURE,V001903044
ROCHDALE BOROUGH COUNCIL,01/08/2022,NEIGHBOURHOODS AND ENVIRONMENT,VIZWEAR,01/08/2022,172.08 ,TRANSACTIONS-EXPENDITURE,V001903044
ROCHDALE BOROUGH COUNCIL,01/08/2022,NEIGHBOURHOODS AND ENVIRONMENT,VIZWEAR,01/08/2022,516.24 ,TRANSACTIONS-EXPENDITURE,V001903044
ROCHDALE BOROUGH COUNCIL,01/08/2022,NEIGHBOURHOODS AND ENVIRONMENT,VIZWEAR,01/08/2022,1170.28 ,TRANSACTIONS-EXPENDITURE,V001903044
ROCHDALE BOROUGH COUNCIL,01/08/2022,NEIGHBOURHOODS AND ENVIRONMENT,VIZWEAR,01/08/2022,1428.23 ,TRANSACTIONS-EXPENDITURE,V001903045
ROCHDALE BOROUGH COUNCIL,01/08/2022,NEIGHBOURHOODS AND ENVIRONMENT,VIZWEAR,01/08/2022,17.21 ,TRANSACTIONS-EXPENDITURE,V001903045
ROCHDALE BOROUGH COUNCIL,01/08/2022,NEIGHBOURHOODS AND ENVIRONMENT,VIZWEAR,01/08/2022,86.05 ,TRANSACTIONS-EXPENDITURE,V001903045
ROCHDALE BOROUGH COUNCIL,01/08/2022,NEIGHBOURHOODS AND ENVIRONMENT,VIZWEAR,01/08/2022,17.21 ,TRANSACTIONS-EXPENDITURE,V001903045
ROCHDALE BOROUGH COUNCIL,01/08/2022,NEIGHBOURHOODS AND ENVIRONMENT,VIZWEAR,01/08/2022,137.68 ,TRANSACTIONS-EXPENDITURE,V001903045
ROCHDALE BOROUGH COUNCIL,01/08/2022,NEIGHBOURHOODS AND ENVIRONMENT,VIZWEAR,01/08/2022,34.42 ,TRANSACTIONS-EXPENDITURE,V001903045
ROCHDALE BOROUGH COUNCIL,02/08/2022,NEIGHBOURHOODS AND ENVIRONMENT,INDESPENSION LIMITED,02/08/2022,3170.00 ,WEAR AND TEAR,V001903046
ROCHDALE BOROUGH COUNCIL,02/08/2022,NEIGHBOURHOODS AND ENVIRONMENT,INDESPENSION LIMITED,02/08/2022,3170.00 ,WEAR AND TEAR,V001903046
ROCHDALE BOROUGH COUNCIL,02/08/2022,NEIGHBOURHOODS AND ENVIRONMENT,INDESPENSION LIMITED,02/08/2022,350.00 ,WEAR AND TEAR,V001903046
ROCHDALE BOROUGH COUNCIL,02/08/2022,NEIGHBOURHOODS AND ENVIRONMENT,INDESPENSION LIMITED,02/08/2022,350.00 ,WEAR AND TEAR,V001903046
ROCHDALE BOROUGH COUNCIL,02/08/2022,NEIGHBOURHOODS AND ENVIRONMENT,INDESPENSION LIMITED,02/08/2022,250.00 ,WEAR AND TEAR,V001903046
ROCHDALE BOROUGH COUNCIL,02/08/2022,NEIGHBOURHOODS AND ENVIRONMENT,INDESPENSION LIMITED,02/08/2022,250.00 ,WEAR AND TEAR,V001903046
ROCHDALE BOROUGH COUNCIL,01/08/2022,NEIGHBOURHOODS AND ENVIRONMENT,PINNACLE RESPONSE LTD,01/08/2022,225.00 ,EQUIPMENT - GENERAL,V001903067
ROCHDALE BOROUGH COUNCIL,01/08/2022,ECONOMY DIRECTORATE,REACH PUBLISHING SERVICES LTD,01/08/2022,111.24 ,PROFESSIONAL FEES,V001903070
ROCHDALE BOROUGH COUNCIL,01/08/2022,NEIGHBOURHOODS AND ENVIRONMENT,STANDARD FUEL OILS,01/08/2022,19533.00 ,TRANSACTIONS-EXPENDITURE,V001903071
ROCHDALE BOROUGH COUNCIL,01/08/2022,NEIGHBOURHOODS AND ENVIRONMENT,STANDARD FUEL OILS,01/08/2022,30000.00 ,TRANSACTIONS-EXPENDITURE,V001903071
ROCHDALE BOROUGH COUNCIL,01/08/2022,NEIGHBOURHOODS AND ENVIRONMENT,STHREE PARTNERSHIP LLP,01/08/2022,750.00 ,CAPITAL - STAFFING AGENCY PAYMENTS,V001903072
ROCHDALE BOROUGH COUNCIL,01/08/2022,CHILDREN�S SOCIAL CARE,FOSTER CARES LTD,01/08/2022,783.00 ,FOSTER PARENTS BASIC ALLOWANCE,V001903073
ROCHDALE BOROUGH COUNCIL,01/08/2022,NEIGHBOURHOODS AND ENVIRONMENT,T I S LIMITED,01/08/2022,405.00 ,REPAIRS & ALTS OF BUILDINGS,V001903077
ROCHDALE BOROUGH COUNCIL,01/08/2022,NEIGHBOURHOODS AND ENVIRONMENT,LICENCE BUREAU LIMITED,01/08/2022,22.80 ,EQUIPMENT - GENERAL,V001903078
ROCHDALE BOROUGH COUNCIL,01/08/2022,NEIGHBOURHOODS AND ENVIRONMENT,LICENCE BUREAU LIMITED,01/08/2022,1.80 ,EQUIPMENT - GENERAL,V001903079
ROCHDALE BOROUGH COUNCIL,01/08/2022,NEIGHBOURHOODS AND ENVIRONMENT,LBS HORTICULTURE LIMITED,01/08/2022,1066.38 ,"TREES, SHRUBS, PLANTS",V001903080
ROCHDALE BOROUGH COUNCIL,01/08/2022,NEIGHBOURHOODS AND ENVIRONMENT,SPIN PRINT SOLUTIONS,01/08/2022,71.00 ,PRINTING & STATIONERY,V001903081
ROCHDALE BOROUGH COUNCIL,01/08/2022,NEIGHBOURHOODS AND ENVIRONMENT,SPIN PRINT SOLUTIONS,01/08/2022,81.00 ,EQUIPMENT - GENERAL,V001903082
ROCHDALE BOROUGH COUNCIL,01/08/2022,NEIGHBOURHOODS AND ENVIRONMENT,SPIN PRINT SOLUTIONS,01/08/2022,84.00 ,EQUIPMENT - GENERAL,V001903083
ROCHDALE BOROUGH COUNCIL,01/08/2022,NEIGHBOURHOODS AND ENVIRONMENT,LICENCE BUREAU LIMITED,01/08/2022,7.80 ,EQUIPMENT - GENERAL,V001903084
ROCHDALE BOROUGH COUNCIL,01/08/2022,NEIGHBOURHOODS AND ENVIRONMENT,ALLIANCE DISPOSABLES LIMITED,01/08/2022,18.50 ,CONSUMABLES,V001903086
ROCHDALE BOROUGH COUNCIL,01/08/2022,NEIGHBOURHOODS AND ENVIRONMENT,ALLIANCE DISPOSABLES LIMITED,01/08/2022,2.67 ,CLEANING EQUIPMENT,V001903087
ROCHDALE BOROUGH COUNCIL,01/08/2022,NEIGHBOURHOODS AND ENVIRONMENT,ALLIANCE DISPOSABLES LIMITED,01/08/2022,33.50 ,CONSUMABLES,V001903088
ROCHDALE BOROUGH COUNCIL,01/08/2022,NEIGHBOURHOODS AND ENVIRONMENT,ALLIANCE DISPOSABLES LIMITED,01/08/2022,55.00 ,CLEANING MATERIALS,V001903089
ROCHDALE BOROUGH COUNCIL,02/08/2022,RESOURCES,SPECIALIST COMPUTER CENTRES PLC,02/08/2022,94.25 ,SOFTWARE,V001903092
ROCHDALE BOROUGH COUNCIL,02/08/2022,RESOURCES,SPECIALIST COMPUTER CENTRES PLC,02/08/2022,7.70 ,SOFTWARE,V001903092
ROCHDALE BOROUGH COUNCIL,02/08/2022,ADULT CARE LCO FUNCTIONS,BANNER GROUP LIMITED,02/08/2022,66.00 ,PRINTING & STATIONERY,V001903093
ROCHDALE BOROUGH COUNCIL,01/08/2022,NEIGHBOURHOODS AND ENVIRONMENT,CROMWELL POLYTHENE LIMITED,01/08/2022,13387.50 ,EQUIPMENT - GENERAL,V001903096
ROCHDALE BOROUGH COUNCIL,01/08/2022,PROPERTY AND HIGHWAYS,ELECTRIC CENTER,01/08/2022,25.86 ,PROPERTY - WORKS ELEMENT,V001903110
ROCHDALE BOROUGH COUNCIL,01/08/2022,PROPERTY AND HIGHWAYS,ELECTRIC CENTER,01/08/2022,89.25 ,PROPERTY - WORKS ELEMENT,V001903111
ROCHDALE BOROUGH COUNCIL,02/08/2022,NEIGHBOURHOODS AND ENVIRONMENT,NORTH WEST PORTABLES,02/08/2022,368.00 ,FEES - PLANT MACHINERY EQUIPMENT,V001903120
ROCHDALE BOROUGH COUNCIL,02/08/2022,PROPERTY AND HIGHWAYS,AGGREGATE INDUSTRIES UK LIMITED,02/08/2022,966.71 ,HIGHWAYS CONTRACT,V001903122
ROCHDALE BOROUGH COUNCIL,01/08/2022,CHILDREN�S SOCIAL CARE,BALTIMORE CONSULTING LTD,01/08/2022,1375.75 ,AGENCY STAFF,V001903123
ROCHDALE BOROUGH COUNCIL,02/08/2022,ECONOMY DIRECTORATE,PROFILE HARDWARE LTD,02/08/2022,26.00 ,REPAIRS & ALTS OF BUILDINGS,V001903131
ROCHDALE BOROUGH COUNCIL,02/08/2022,CHILDREN�S SOCIAL CARE,NORTHERN COMMUNITY PATHWAYS LTD,02/08/2022,4315.71 ,YOUNG PEOPLES RENTS,V001903133
ROCHDALE BOROUGH COUNCIL,02/08/2022,CHILDREN�S SOCIAL CARE,NORTHERN COMMUNITY PATHWAYS LTD,02/08/2022,261.64 ,YOUNGE PERSONS ALLOWANCE,V001903134
ROCHDALE BOROUGH COUNCIL,09/08/2022,PROPERTY AND HIGHWAYS,CBRE LTD GLASGOW - RIVERSIDE,09/08/2022,381.64 ,CONSULTANTS FEES,V001903141
ROCHDALE BOROUGH COUNCIL,02/08/2022,ADULT CARE LCO FUNCTIONS,TF JONES PROPERTY SERVICES LTD,02/08/2022,4762.52 ,TRANSACTIONS-EXPENDITURE,V001903148
ROCHDALE BOROUGH COUNCIL,02/08/2022,EARLY HELP AND SCHOOLS,FIVE RIVERS CHILD CARE LTD,02/08/2022,5600.00 ,OTHER LA`S - SEN PROVISION,V001903150
ROCHDALE BOROUGH COUNCIL,02/08/2022,NEIGHBOURHOODS AND ENVIRONMENT,STRIVE AV LTD,02/08/2022,1305.00 ,EQUIPMENT - GENERAL,V001903154
ROCHDALE BOROUGH COUNCIL,02/08/2022,EARLY HELP AND SCHOOLS,HEALTH AND SAFETY SOLUTIONS (NW) LTD,02/08/2022,300.00 ,TRAINING,V001903180
ROCHDALE BOROUGH COUNCIL,02/08/2022,ECONOMY DIRECTORATE,MAVERICK LAB CIC,02/08/2022,34.99 ,PRINTING & STATIONERY,V001903191
ROCHDALE BOROUGH COUNCIL,02/08/2022,ECONOMY DIRECTORATE,MAVERICK LAB CIC,02/08/2022,479.99 ,PRINTING & STATIONERY,V001903192
ROCHDALE BOROUGH COUNCIL,02/08/2022,RESOURCES,VALTECH LTD,02/08/2022,369.52 ,EXTERNAL CONTRACTED PRINTING,V001903193
ROCHDALE BOROUGH COUNCIL,02/08/2022,CHILDREN�S SOCIAL CARE,BANNER GROUP LIMITED,02/08/2022,44.00 ,PRINTING & STATIONERY,V001903196
ROCHDALE BOROUGH COUNCIL,02/08/2022,NEIGHBOURHOODS AND ENVIRONMENT,SHORROCK TRICHEM LTD,02/08/2022,169.33 ,MAINTENANCE,V001903205
ROCHDALE BOROUGH COUNCIL,02/08/2022,EARLY HELP AND SCHOOLS,RANDSTAD HR SOLUTIONS LTD,02/08/2022,1296.00 ,OTHER LA`S - SEN PROVISION,V001903207
ROCHDALE BOROUGH COUNCIL,02/08/2022,EARLY HELP AND SCHOOLS,RANDSTAD HR SOLUTIONS LTD,02/08/2022,594.00 ,OTHER LA`S - SEN PROVISION,V001903208
ROCHDALE BOROUGH COUNCIL,02/08/2022,NEIGHBOURHOODS AND ENVIRONMENT,EARLEY ORNAMENTALS LTD,02/08/2022,118.08 ,"TREES, SHRUBS, PLANTS",V001903209
ROCHDALE BOROUGH COUNCIL,02/08/2022,NEIGHBOURHOODS AND ENVIRONMENT,INTELLIGENCE GROUP LTD,02/08/2022,2931.42 ,SOFTWARE,V001903216
ROCHDALE BOROUGH COUNCIL,02/08/2022,PROPERTY AND HIGHWAYS,ELECTRIC CENTER,02/08/2022,7.86 ,PROPERTY - WORKS ELEMENT,V001903218
ROCHDALE BOROUGH COUNCIL,02/08/2022,ADULT CARE LCO FUNCTIONS,ROUTES HEALTHCARE NORTH LTD,02/08/2022,135.60 ,HOME CARE - ADULT SERVICES,V001903219
ROCHDALE BOROUGH COUNCIL,02/08/2022,ADULT CARE LCO FUNCTIONS,ROUTES HEALTHCARE NORTH LTD,02/08/2022,569.52 ,HOME CARE - ADULT SERVICES,V001903220
ROCHDALE BOROUGH COUNCIL,02/08/2022,NEIGHBOURHOODS AND ENVIRONMENT,BANNER GROUP LIMITED,02/08/2022,220.00 ,PRINTING & STATIONERY,V001903221
ROCHDALE BOROUGH COUNCIL,02/08/2022,NEIGHBOURHOODS AND ENVIRONMENT,EMPLOYMENT LAW ADVISORY SERVICES LTD,02/08/2022,295.00 ,EQUIPMENT - GENERAL,V001903222
ROCHDALE BOROUGH COUNCIL,02/08/2022,NEIGHBOURHOODS AND ENVIRONMENT,LS SYSTEMS LTD,02/08/2022,979.20 ,"TREES, SHRUBS, PLANTS",V001903224
ROCHDALE BOROUGH COUNCIL,02/08/2022,ADULT CARE LCO FUNCTIONS,STANNAH LIFT SERVICES LTD,02/08/2022,3391.00 ,MINOR BUILDING WORKS,V001903225
ROCHDALE BOROUGH COUNCIL,02/08/2022,EARLY HELP AND SCHOOLS,RANDSTAD HR SOLUTIONS LTD,02/08/2022,240.00 ,ACTIVITIES,V001903235
ROCHDALE BOROUGH COUNCIL,02/08/2022,RESOURCES,INFORM CPI LTD,02/08/2022,990.00 ,FEES / COMMISSION,V001903237
ROCHDALE BOROUGH COUNCIL,02/08/2022,EARLY HELP AND SCHOOLS,RANDSTAD HR SOLUTIONS LTD,02/08/2022,80.00 ,ACTIVITIES,V001903238
ROCHDALE BOROUGH COUNCIL,02/08/2022,PROPERTY AND HIGHWAYS,DAWSONGROUP SWEEPERS LTD,02/08/2022,23902.37 ,MINOR BUILDING WORKS,V001903239
ROCHDALE BOROUGH COUNCIL,05/08/2022,ECONOMY DIRECTORATE, WALKER SIME LTD,05/08/2022,8035.00 ,CONSULTANTS FEES,V001903240
ROCHDALE BOROUGH COUNCIL,02/08/2022,RESOURCES,MUNICIPAL MUTUAL INSURANCE LTD,02/08/2022,1505.75 ,PROVISIONS UTILISED IN YEAR,V001903241
ROCHDALE BOROUGH COUNCIL,02/08/2022,RESOURCES,FORENSICS LTD,02/08/2022,467.88 ,TOXICOLOGY PAYMENTS,V001903246
ROCHDALE BOROUGH COUNCIL,01/08/2022,EARLY HELP AND SCHOOLS,BALTIMORE CONSULTING LTD,01/08/2022,2500.00 ,AGENCY STAFF,V001903248
ROCHDALE BOROUGH COUNCIL,02/08/2022,NEIGHBOURHOODS AND ENVIRONMENT,TRAVIS PERKINS TRADING CO LTD,02/08/2022,59.49 ,EQUIPMENT - GENERAL,V001903252
ROCHDALE BOROUGH COUNCIL,02/08/2022,PROPERTY AND HIGHWAYS,BANNER GROUP LIMITED,02/08/2022,169.21 ,STATIONERY,V001903253
ROCHDALE BOROUGH COUNCIL,02/08/2022,NEIGHBOURHOODS AND ENVIRONMENT,ARCO GROUP LIMITED,02/08/2022,298.69 ,"CLOTHES, UNIFORM AND LAUNDRY",V001903254
ROCHDALE BOROUGH COUNCIL,02/08/2022,NEIGHBOURHOODS AND ENVIRONMENT,ARCO GROUP LIMITED,02/08/2022,298.69 ,"CLOTHES, UNIFORM AND LAUNDRY",V001903254
ROCHDALE BOROUGH COUNCIL,02/08/2022,NEIGHBOURHOODS AND ENVIRONMENT,ARCO GROUP LIMITED,02/08/2022,298.69 ,"CLOTHES, UNIFORM AND LAUNDRY",V001903254
ROCHDALE BOROUGH COUNCIL,02/08/2022,NEIGHBOURHOODS AND ENVIRONMENT,ARCO GROUP LIMITED,02/08/2022,10.63 ,"CLOTHES, UNIFORM AND LAUNDRY",V001903255
ROCHDALE BOROUGH COUNCIL,02/08/2022,NEIGHBOURHOODS AND ENVIRONMENT,ARCO GROUP LIMITED,02/08/2022,10.63 ,"CLOTHES, UNIFORM AND LAUNDRY",V001903255
ROCHDALE BOROUGH COUNCIL,02/08/2022,NEIGHBOURHOODS AND ENVIRONMENT,ARCO GROUP LIMITED,02/08/2022,10.63 ,"CLOTHES, UNIFORM AND LAUNDRY",V001903255
ROCHDALE BOROUGH COUNCIL,02/08/2022,NEIGHBOURHOODS AND ENVIRONMENT,TRAVIS PERKINS TRADING CO LTD,02/08/2022,259.96 ,EQUIPMENT - GENERAL,V001903256
ROCHDALE BOROUGH COUNCIL,02/08/2022,NEIGHBOURHOODS AND ENVIRONMENT,ROYAL MAIL GROUP LTD,02/08/2022,18.72 ,POSTAGE,V001903260
ROCHDALE BOROUGH COUNCIL,02/08/2022,NEIGHBOURHOODS AND ENVIRONMENT,YALE HOUSING ASSOCIATION LTD,02/08/2022,480.00 ,ACTIVITIES,V001903262
ROCHDALE BOROUGH COUNCIL,03/08/2022,NEIGHBOURHOODS AND ENVIRONMENT,BANNER GROUP LIMITED,03/08/2022,6.22 ,PRINTING & STATIONERY,V001903272
ROCHDALE BOROUGH COUNCIL,19/08/2022,PUBLIC HEALTH,PHS GROUP PLC,19/08/2022,537.33 ,HYGIENE EQUIPMENT,V001903273
ROCHDALE BOROUGH COUNCIL,02/08/2022,RESOURCES,BANNER GROUP LIMITED,02/08/2022,37.04 ,PRINTING & STATIONERY,V001903274
ROCHDALE BOROUGH COUNCIL,02/08/2022,RESOURCES,BANNER GROUP LIMITED,02/08/2022,132.00 ,PRINTING & STATIONERY,V001903274
ROCHDALE BOROUGH COUNCIL,02/08/2022,RESOURCES,BANNER GROUP LIMITED,02/08/2022,6.69 ,PRINTING & STATIONERY,V001903274
ROCHDALE BOROUGH COUNCIL,02/08/2022,RESOURCES,BANNER GROUP LIMITED,02/08/2022,1.40 ,PRINTING & STATIONERY,V001903274
ROCHDALE BOROUGH COUNCIL,02/08/2022,RESOURCES,BANNER GROUP LIMITED,02/08/2022,15.30 ,PRINTING & STATIONERY,V001903274
ROCHDALE BOROUGH COUNCIL,02/08/2022,RESOURCES,BANNER GROUP LIMITED,02/08/2022,1.58 ,PRINTING & STATIONERY,V001903274
ROCHDALE BOROUGH COUNCIL,02/08/2022,RESOURCES,BANNER GROUP LIMITED,02/08/2022,2.16 ,PRINTING & STATIONERY,V001903274
ROCHDALE BOROUGH COUNCIL,02/08/2022,RESOURCES,BANNER GROUP LIMITED,02/08/2022,15.70 ,PRINTING & STATIONERY,V001903274
ROCHDALE BOROUGH COUNCIL,02/08/2022,ADULT CARE LCO FUNCTIONS,STANNAH LIFT SERVICES LTD,02/08/2022,6892.00 ,TRANSACTIONS-EXPENDITURE,V001903275
ROCHDALE BOROUGH COUNCIL,02/08/2022,ADULT CARE LCO FUNCTIONS,TF JONES PROPERTY SERVICES LTD,02/08/2022,5208.45 ,TRANSACTIONS-EXPENDITURE,V001903280
ROCHDALE BOROUGH COUNCIL,02/08/2022,NEIGHBOURHOODS AND ENVIRONMENT,W F HOWES LTD,02/08/2022,211.50 ,REFERENCE BOOKS/NEWSPAPERS/PERIODICALS,V001903361
ROCHDALE BOROUGH COUNCIL,02/08/2022,NEIGHBOURHOODS AND ENVIRONMENT,ASKEWS AND HOLTS LIBRARY SERVICES LTD,02/08/2022,20.47 ,REFERENCE BOOKS/NEWSPAPERS/PERIODICALS,V001903364
ROCHDALE BOROUGH COUNCIL,02/08/2022,ADULT CARE LCO FUNCTIONS,TF JONES PROPERTY SERVICES LTD,02/08/2022,4651.91 ,MINOR BUILDING WORKS,V001903366
ROCHDALE BOROUGH COUNCIL,02/08/2022,RESOURCES,BANNER GROUP LIMITED,02/08/2022,14.14 ,PRINTING & STATIONERY,V001903367
ROCHDALE BOROUGH COUNCIL,01/08/2022,RESOURCES,CRITIQOM LIMITED,01/08/2022,103.80 ,PRINTING,V001903385
ROCHDALE BOROUGH COUNCIL,01/08/2022,CHILDREN�S SOCIAL CARE,EASY AVENUES LTD,01/08/2022,194.98 ,STAFF TRAVELLING EXPENSES,V001903386
ROCHDALE BOROUGH COUNCIL,01/08/2022,CHILDREN�S SOCIAL CARE,NORTHERN COMMUNITY PATHWAYS LTD,01/08/2022,1285.70 ,YOUNG PEOPLES RENTS,V001903387
ROCHDALE BOROUGH COUNCIL,01/08/2022,CHILDREN�S SOCIAL CARE,NORTHERN COMMUNITY PATHWAYS LTD,01/08/2022,2060.57 ,YOUNG PEOPLES RENTS,V001903388
ROCHDALE BOROUGH COUNCIL,02/08/2022,NEIGHBOURHOODS AND ENVIRONMENT,BANNER GROUP LIMITED,02/08/2022,220.00 ,PRINTING & STATIONERY,V001903389
ROCHDALE BOROUGH COUNCIL,02/08/2022,EARLY HELP AND SCHOOLS,D A LANGUAGES LIMITED,02/08/2022,96.88 ,TRANSLATION & INTERPRETATION,V001903390
ROCHDALE BOROUGH COUNCIL,02/08/2022,EARLY HELP AND SCHOOLS,YORKSHIRE PURCHASING ORGANISATION,02/08/2022,1.70 ,EQUIPMENT - GENERAL,V001903391
ROCHDALE BOROUGH COUNCIL,02/08/2022,EARLY HELP AND SCHOOLS,YORKSHIRE PURCHASING ORGANISATION,02/08/2022,1.70 ,EQUIPMENT - GENERAL,V001903391
ROCHDALE BOROUGH COUNCIL,02/08/2022,EARLY HELP AND SCHOOLS,YORKSHIRE PURCHASING ORGANISATION,02/08/2022,1.70 ,EQUIPMENT - GENERAL,V001903391
ROCHDALE BOROUGH COUNCIL,02/08/2022,EARLY HELP AND SCHOOLS,YORKSHIRE PURCHASING ORGANISATION,02/08/2022,1.70 ,EQUIPMENT - GENERAL,V001903391
ROCHDALE BOROUGH COUNCIL,02/08/2022,EARLY HELP AND SCHOOLS,YORKSHIRE PURCHASING ORGANISATION,02/08/2022,3.06 ,EQUIPMENT - GENERAL,V001903391
ROCHDALE BOROUGH COUNCIL,02/08/2022,EARLY HELP AND SCHOOLS,YORKSHIRE PURCHASING ORGANISATION,02/08/2022,3.16 ,EQUIPMENT - GENERAL,V001903391
ROCHDALE BOROUGH COUNCIL,02/08/2022,EARLY HELP AND SCHOOLS,YORKSHIRE PURCHASING ORGANISATION,02/08/2022,11.06 ,EQUIPMENT - GENERAL,V001903391
ROCHDALE BOROUGH COUNCIL,02/08/2022,EARLY HELP AND SCHOOLS,YORKSHIRE PURCHASING ORGANISATION,02/08/2022,15.94 ,EQUIPMENT - GENERAL,V001903391
ROCHDALE BOROUGH COUNCIL,02/08/2022,EARLY HELP AND SCHOOLS,YORKSHIRE PURCHASING ORGANISATION,02/08/2022,9.54 ,EQUIPMENT - GENERAL,V001903391
ROCHDALE BOROUGH COUNCIL,02/08/2022,EARLY HELP AND SCHOOLS,YORKSHIRE PURCHASING ORGANISATION,02/08/2022,6.07 ,EQUIPMENT - GENERAL,V001903391
ROCHDALE BOROUGH COUNCIL,02/08/2022,EARLY HELP AND SCHOOLS,YORKSHIRE PURCHASING ORGANISATION,02/08/2022,4.99 ,EQUIPMENT - GENERAL,V001903391
ROCHDALE BOROUGH COUNCIL,02/08/2022,ECONOMY DIRECTORATE,TAMESIDE METROPOLITAN BOROUGH COUNCIL,02/08/2022,10047.00 ,ACTIVITIES,V001903392
ROCHDALE BOROUGH COUNCIL,02/08/2022,NEIGHBOURHOODS AND ENVIRONMENT,SHORROCK TRICHEM LTD,02/08/2022,188.34 ,MAINTENANCE,V001903398
ROCHDALE BOROUGH COUNCIL,02/08/2022,NEIGHBOURHOODS AND ENVIRONMENT,YALE HOUSING ASSOCIATION LTD,02/08/2022,480.00 ,ACTIVITIES,V001903399
ROCHDALE BOROUGH COUNCIL,02/08/2022,EARLY HELP AND SCHOOLS,T I S LIMITED,02/08/2022,70.00 ,IT EQUIPMENT,V001903400
ROCHDALE BOROUGH COUNCIL,02/08/2022,NEIGHBOURHOODS AND ENVIRONMENT,XMA LIMITED,02/08/2022,10.46 ,IT EQUIPMENT,V001903401
ROCHDALE BOROUGH COUNCIL,02/08/2022,NEIGHBOURHOODS AND ENVIRONMENT,XMA LIMITED,02/08/2022,356.49 ,PURCHASE OF ICT HARDWARE,V001903402
ROCHDALE BOROUGH COUNCIL,02/08/2022,PROPERTY AND HIGHWAYS,ELECTRIC CENTER,02/08/2022,37.34 ,PROPERTY - WORKS ELEMENT,V001903403
ROCHDALE BOROUGH COUNCIL,02/08/2022,ADULT CARE LCO FUNCTIONS,BANNER GROUP LIMITED,02/08/2022,18.36 ,PRINTING & STATIONERY,V001903404
ROCHDALE BOROUGH COUNCIL,02/08/2022,ADULT CARE LCO FUNCTIONS,BANNER GROUP LIMITED,02/08/2022,35.32 ,PRINTING & STATIONERY,V001903404
ROCHDALE BOROUGH COUNCIL,02/08/2022,ADULT CARE LCO FUNCTIONS,BANNER GROUP LIMITED,02/08/2022,1.04 ,PRINTING & STATIONERY,V001903404
ROCHDALE BOROUGH COUNCIL,02/08/2022,ADULT CARE LCO FUNCTIONS,BANNER GROUP LIMITED,02/08/2022,1.04 ,PRINTING & STATIONERY,V001903404
ROCHDALE BOROUGH COUNCIL,02/08/2022,CHILDREN�S SOCIAL CARE,FOSTER CARES LTD,02/08/2022,783.00 ,FOSTER PARENTS BASIC ALLOWANCE,V001903405
ROCHDALE BOROUGH COUNCIL,02/08/2022,NEIGHBOURHOODS AND ENVIRONMENT,PERMISERV LTD,02/08/2022,660.00 ,EQUIPMENT - GENERAL,V001903406
ROCHDALE BOROUGH COUNCIL,02/08/2022,NEIGHBOURHOODS AND ENVIRONMENT,LS SYSTEMS LTD,02/08/2022,922.92 ,"TREES, SHRUBS, PLANTS",V001903407
ROCHDALE BOROUGH COUNCIL,02/08/2022,CHILDREN�S SOCIAL CARE,OLIVE BRANCH FOSTERING LTD,02/08/2022,2995.50 ,FOSTER PARENTS BASIC ALLOWANCE,V001903408
ROCHDALE BOROUGH COUNCIL,02/08/2022,CHILDREN�S SOCIAL CARE,OLIVE BRANCH FOSTERING LTD,02/08/2022,3169.29 ,FOSTER PARENTS BASIC ALLOWANCE,V001903409
ROCHDALE BOROUGH COUNCIL,02/08/2022,CHILDREN�S SOCIAL CARE,OLIVE BRANCH FOSTERING LTD,02/08/2022,3169.29 ,FOSTER PARENTS BASIC ALLOWANCE,V001903410
ROCHDALE BOROUGH COUNCIL,02/08/2022,NEIGHBOURHOODS AND ENVIRONMENT,ALLIANCE DISPOSABLES LIMITED,02/08/2022,4.76 ,CLEANING EQUIPMENT,V001903411
ROCHDALE BOROUGH COUNCIL,02/08/2022,NEIGHBOURHOODS AND ENVIRONMENT,ALLIANCE DISPOSABLES LIMITED,02/08/2022,4.76 ,CLEANING EQUIPMENT,V001903411
ROCHDALE BOROUGH COUNCIL,02/08/2022,NEIGHBOURHOODS AND ENVIRONMENT,ALLIANCE DISPOSABLES LIMITED,02/08/2022,75.30 ,CLEANING MATERIALS,V001903411
ROCHDALE BOROUGH COUNCIL,02/08/2022,NEIGHBOURHOODS AND ENVIRONMENT,ALLIANCE DISPOSABLES LIMITED,02/08/2022,15.80 ,CLEANING MATERIALS,V001903411
ROCHDALE BOROUGH COUNCIL,02/08/2022,NEIGHBOURHOODS AND ENVIRONMENT,ALLIANCE DISPOSABLES LIMITED,02/08/2022,30.00 ,CLEANING MATERIALS,V001903411
ROCHDALE BOROUGH COUNCIL,02/08/2022,NEIGHBOURHOODS AND ENVIRONMENT,ALLIANCE DISPOSABLES LIMITED,02/08/2022,23.20 ,CLEANING MATERIALS,V001903411
ROCHDALE BOROUGH COUNCIL,02/08/2022,NEIGHBOURHOODS AND ENVIRONMENT,ALLIANCE DISPOSABLES LIMITED,02/08/2022,75.00 ,CLEANING MATERIALS,V001903411
ROCHDALE BOROUGH COUNCIL,02/08/2022,NEIGHBOURHOODS AND ENVIRONMENT,ALLIANCE DISPOSABLES LIMITED,02/08/2022,35.85 ,CONSUMABLES,V001903411
ROCHDALE BOROUGH COUNCIL,02/08/2022,NEIGHBOURHOODS AND ENVIRONMENT,ALLIANCE DISPOSABLES LIMITED,02/08/2022,7.40 ,CLEANING EQUIPMENT,V001903411
ROCHDALE BOROUGH COUNCIL,02/08/2022,NEIGHBOURHOODS AND ENVIRONMENT,ALLIANCE DISPOSABLES LIMITED,02/08/2022,90.00 ,CLEANING MATERIALS,V001903411
ROCHDALE BOROUGH COUNCIL,02/08/2022,NEIGHBOURHOODS AND ENVIRONMENT,ALLIANCE DISPOSABLES LIMITED,02/08/2022,14.00 ,CLEANING MATERIALS,V001903411
ROCHDALE BOROUGH COUNCIL,02/08/2022,NEIGHBOURHOODS AND ENVIRONMENT,ALLIANCE DISPOSABLES LIMITED,02/08/2022,28.00 ,CLEANING MATERIALS,V001903411
ROCHDALE BOROUGH COUNCIL,02/08/2022,NEIGHBOURHOODS AND ENVIRONMENT,ALLIANCE DISPOSABLES LIMITED,02/08/2022,18.50 ,CONSUMABLES,V001903411
ROCHDALE BOROUGH COUNCIL,02/08/2022,NEIGHBOURHOODS AND ENVIRONMENT,ALLIANCE DISPOSABLES LIMITED,02/08/2022,70.00 ,CONSUMABLES,V001903411
ROCHDALE BOROUGH COUNCIL,02/08/2022,NEIGHBOURHOODS AND ENVIRONMENT,ALLIANCE DISPOSABLES LIMITED,02/08/2022,36.50 ,CONSUMABLES,V001903411
ROCHDALE BOROUGH COUNCIL,02/08/2022,NEIGHBOURHOODS AND ENVIRONMENT,ALLIANCE DISPOSABLES LIMITED,02/08/2022,5.50 ,CLEANING MATERIALS,V001903412
ROCHDALE BOROUGH COUNCIL,02/08/2022,NEIGHBOURHOODS AND ENVIRONMENT,ALLIANCE DISPOSABLES LIMITED,02/08/2022,6.25 ,CLEANING MATERIALS,V001903412
ROCHDALE BOROUGH COUNCIL,02/08/2022,NEIGHBOURHOODS AND ENVIRONMENT,RED ROSE TRAINING BOLTON LIMITED,02/08/2022,275.00 ,EQUIPMENT - GENERAL,V001903414
ROCHDALE BOROUGH COUNCIL,02/08/2022,NEIGHBOURHOODS AND ENVIRONMENT,CONTENUR UK LTD,02/08/2022,14370.20 ,PURCHASE OF FURNITURE AND EQUIPMENT,V001903416
ROCHDALE BOROUGH COUNCIL,02/08/2022,CHILDREN�S SOCIAL CARE,EXCEL FOSTERING,02/08/2022,128.02 ,FOSTER PARENTS BASIC ALLOWANCE,V001903417
ROCHDALE BOROUGH COUNCIL,02/08/2022,NEIGHBOURHOODS AND ENVIRONMENT,FDA DESIGN LTD,02/08/2022,960.00 ,ENVIRONMENTAL WORKS LANDSCAPE,V001903418
ROCHDALE BOROUGH COUNCIL,02/08/2022,NEIGHBOURHOODS AND ENVIRONMENT,ALLIANCE DISPOSABLES LIMITED,02/08/2022,4.76 ,CLEANING EQUIPMENT,V001903419
ROCHDALE BOROUGH COUNCIL,02/08/2022,NEIGHBOURHOODS AND ENVIRONMENT,ALLIANCE DISPOSABLES LIMITED,02/08/2022,11.60 ,CLEANING MATERIALS,V001903419
ROCHDALE BOROUGH COUNCIL,02/08/2022,NEIGHBOURHOODS AND ENVIRONMENT,ALLIANCE DISPOSABLES LIMITED,02/08/2022,11.80 ,CLEANING EQUIPMENT,V001903419
ROCHDALE BOROUGH COUNCIL,02/08/2022,NEIGHBOURHOODS AND ENVIRONMENT,ALLIANCE DISPOSABLES LIMITED,02/08/2022,11.80 ,CLEANING EQUIPMENT,V001903419
ROCHDALE BOROUGH COUNCIL,02/08/2022,NEIGHBOURHOODS AND ENVIRONMENT,ALLIANCE DISPOSABLES LIMITED,02/08/2022,18.50 ,CONSUMABLES,V001903419
ROCHDALE BOROUGH COUNCIL,02/08/2022,NEIGHBOURHOODS AND ENVIRONMENT,ALLIANCE DISPOSABLES LIMITED,02/08/2022,35.00 ,CONSUMABLES,V001903419
ROCHDALE BOROUGH COUNCIL,02/08/2022,NEIGHBOURHOODS AND ENVIRONMENT,ALLIANCE DISPOSABLES LIMITED,02/08/2022,33.50 ,CONSUMABLES,V001903419
ROCHDALE BOROUGH COUNCIL,02/08/2022,NEIGHBOURHOODS AND ENVIRONMENT,ALLIANCE DISPOSABLES LIMITED,02/08/2022,2.38 ,CLEANING EQUIPMENT,V001903420
ROCHDALE BOROUGH COUNCIL,02/08/2022,NEIGHBOURHOODS AND ENVIRONMENT,ALLIANCE DISPOSABLES LIMITED,02/08/2022,2.38 ,CLEANING EQUIPMENT,V001903420
ROCHDALE BOROUGH COUNCIL,02/08/2022,NEIGHBOURHOODS AND ENVIRONMENT,ALLIANCE DISPOSABLES LIMITED,02/08/2022,13.00 ,CLEANING EQUIPMENT,V001903420
ROCHDALE BOROUGH COUNCIL,02/08/2022,NEIGHBOURHOODS AND ENVIRONMENT,ALLIANCE DISPOSABLES LIMITED,02/08/2022,7.50 ,CLEANING MATERIALS,V001903420
ROCHDALE BOROUGH COUNCIL,02/08/2022,NEIGHBOURHOODS AND ENVIRONMENT,ALLIANCE DISPOSABLES LIMITED,02/08/2022,5.80 ,CLEANING MATERIALS,V001903420
ROCHDALE BOROUGH COUNCIL,02/08/2022,NEIGHBOURHOODS AND ENVIRONMENT,ALLIANCE DISPOSABLES LIMITED,02/08/2022,7.00 ,CLEANING MATERIALS,V001903420
ROCHDALE BOROUGH COUNCIL,01/08/2022,RESOURCES,CRITIQOM LIMITED,01/08/2022,22.00 ,PRINTING,V001903423
ROCHDALE BOROUGH COUNCIL,01/08/2022,RESOURCES,CRITIQOM LIMITED,01/08/2022,91.45 ,PRINTING,V001903424
ROCHDALE BOROUGH COUNCIL,01/08/2022,EARLY HELP AND SCHOOLS,FIVE RIVERS CHILD CARE LTD,01/08/2022,7350.00 ,OTHER LA`S - SEN PROVISION,V001903425
ROCHDALE BOROUGH COUNCIL,01/08/2022,CHILDREN�S SOCIAL CARE,IRWELL MEDICAL PRACTICE,01/08/2022,73.86 ,MEDICAL FEES,V001903426
ROCHDALE BOROUGH COUNCIL,01/08/2022,CHILDREN�S SOCIAL CARE,IRWELL MEDICAL PRACTICE,01/08/2022,73.86 ,MEDICAL FEES,V001903426
ROCHDALE BOROUGH COUNCIL,01/08/2022,PUBLIC HEALTH,LOCALA COMMUNITY PARTNERSHIPS,01/08/2022,246.00 ,PH OTHER CONTRACTS,V001903427
ROCHDALE BOROUGH COUNCIL,02/08/2022,NEIGHBOURHOODS AND ENVIRONMENT,THE OYSTER PARTNERSHIP LTD,02/08/2022,285.00 ,ACTIVITIES,V001903453
ROCHDALE BOROUGH COUNCIL,02/08/2022,NEIGHBOURHOODS AND ENVIRONMENT,THE OYSTER PARTNERSHIP LTD,02/08/2022,202.00 ,ACTIVITIES,V001903454
ROCHDALE BOROUGH COUNCIL,02/08/2022,NEIGHBOURHOODS AND ENVIRONMENT,THE OYSTER PARTNERSHIP LTD,02/08/2022,161.00 ,ACTIVITIES,V001903455
ROCHDALE BOROUGH COUNCIL,02/08/2022,NEIGHBOURHOODS AND ENVIRONMENT,THE OYSTER PARTNERSHIP LTD,02/08/2022,130.00 ,ACTIVITIES,V001903456
ROCHDALE BOROUGH COUNCIL,02/08/2022,NEIGHBOURHOODS AND ENVIRONMENT,THE OYSTER PARTNERSHIP LTD,02/08/2022,340.00 ,ACTIVITIES,V001903457
ROCHDALE BOROUGH COUNCIL,02/08/2022,NEIGHBOURHOODS AND ENVIRONMENT,THE OYSTER PARTNERSHIP LTD,02/08/2022,130.00 ,ACTIVITIES,V001903458
ROCHDALE BOROUGH COUNCIL,02/08/2022,NEIGHBOURHOODS AND ENVIRONMENT,THE OYSTER PARTNERSHIP LTD,02/08/2022,1662.23 ,AGENCY STAFF,V001903459
ROCHDALE BOROUGH COUNCIL,02/08/2022,NEIGHBOURHOODS AND ENVIRONMENT,THE OYSTER PARTNERSHIP LTD,02/08/2022,396.72 ,ACTIVITIES,V001903460
ROCHDALE BOROUGH COUNCIL,02/08/2022,NEIGHBOURHOODS AND ENVIRONMENT,THE OYSTER PARTNERSHIP LTD,02/08/2022,69.16 ,ACTIVITIES,V001903461
ROCHDALE BOROUGH COUNCIL,02/08/2022,NEIGHBOURHOODS AND ENVIRONMENT,THE OYSTER PARTNERSHIP LTD,02/08/2022,396.72 ,ACTIVITIES,V001903462
ROCHDALE BOROUGH COUNCIL,02/08/2022,CHILDREN�S SOCIAL CARE,INTRAQUEST COMMUNITY CIC,02/08/2022,350.00 ,ACTIVITIES,V001903463
ROCHDALE BOROUGH COUNCIL,02/08/2022,PROPERTY AND HIGHWAYS,NSL LIMITED,02/08/2022,51218.92 ,CONTRACTED SERVICES,V001903464
ROCHDALE BOROUGH COUNCIL,02/08/2022,CHILDREN�S SOCIAL CARE,C K CHILDCARE LTD,02/08/2022,1053.80 ,ACTIVITIES,V001903465
ROCHDALE BOROUGH COUNCIL,02/08/2022,NEIGHBOURHOODS AND ENVIRONMENT,STEVE WELLS ASSOCIATES LTD,02/08/2022,3000.00 ,ENVIRONMENTAL WORKS LANDSCAPE,V001903466
ROCHDALE BOROUGH COUNCIL,02/08/2022,EARLY HELP AND SCHOOLS,THE TOGETHER TRUST,02/08/2022,12301.92 ,OTHER LA`S - SEN PROVISION,V001903471
ROCHDALE BOROUGH COUNCIL,09/08/2022,EARLY HELP AND SCHOOLS,THE TOGETHER TRUST,09/08/2022,21642.36 ,OTHER LA`S - SEN PROVISION,V001903472
ROCHDALE BOROUGH COUNCIL,09/08/2022,EARLY HELP AND SCHOOLS,THE TOGETHER TRUST,09/08/2022,-21642.36 ,OTHER LA`S - SEN PROVISION,V001903473
ROCHDALE BOROUGH COUNCIL,02/08/2022,PROPERTY AND HIGHWAYS,XAIS ASSET MANAGEMENT LTD,02/08/2022,4640.00 ,ENGINEERS FEES,V001903477
ROCHDALE BOROUGH COUNCIL,01/08/2022,PROPERTY AND HIGHWAYS,WATERMAN INFASTRUCTURE AND ENVIRONMENT LTD,01/08/2022,2376.96 ,ROADWORKS,V001903479
ROCHDALE BOROUGH COUNCIL,01/08/2022,PROPERTY AND HIGHWAYS,WATERMAN INFASTRUCTURE AND ENVIRONMENT LTD,01/08/2022,3201.12 ,ROADWORKS,V001903481
ROCHDALE BOROUGH COUNCIL,02/08/2022,EARLY HELP AND SCHOOLS,MONARCH EDUCATION LTD,02/08/2022,618.00 ,OTHER LA`S - SEN PROVISION,V001903482
ROCHDALE BOROUGH COUNCIL,02/08/2022,EARLY HELP AND SCHOOLS,MONARCH EDUCATION LTD,02/08/2022,329.60 ,OTHER LA`S - SEN PROVISION,V001903483
ROCHDALE BOROUGH COUNCIL,02/08/2022,EARLY HELP AND SCHOOLS,BRINE LEAS SCHOOL,02/08/2022,12572.00 ,OTHER EST - SEN PROVISION,V001903485
ROCHDALE BOROUGH COUNCIL,02/08/2022,EARLY HELP AND SCHOOLS,BRINE LEAS SCHOOL,02/08/2022,7446.00 ,OTHER EST - SEN PROVISION,V001903486
ROCHDALE BOROUGH COUNCIL,02/08/2022,EARLY HELP AND SCHOOLS,FIVE RIVERS CHILD CARE LTD,02/08/2022,2280.00 ,OTHER LA`S - SEN PROVISION,V001903488
ROCHDALE BOROUGH COUNCIL,01/08/2022,PROPERTY AND HIGHWAYS,WATERMAN INFASTRUCTURE AND ENVIRONMENT LTD,01/08/2022,5942.40 ,ROADWORKS,V001903489
ROCHDALE BOROUGH COUNCIL,02/08/2022,ADULT CARE LCO FUNCTIONS,TF JONES PROPERTY SERVICES LTD,02/08/2022,4234.47 ,TRANSACTIONS-EXPENDITURE,V001903490
ROCHDALE BOROUGH COUNCIL,02/08/2022,ADULT CARE LCO FUNCTIONS,TF JONES PROPERTY SERVICES LTD,02/08/2022,4380.06 ,MINOR BUILDING WORKS,V001903491
ROCHDALE BOROUGH COUNCIL,02/08/2022,ADULT CARE LCO FUNCTIONS,TF JONES PROPERTY SERVICES LTD,02/08/2022,4967.56 ,MINOR BUILDING WORKS,V001903492
ROCHDALE BOROUGH COUNCIL,02/08/2022,PROPERTY AND HIGHWAYS,SURVEY SOLUTIONS,02/08/2022,6120.00 ,MINOR BUILDING WORKS,V001903496
ROCHDALE BOROUGH COUNCIL,02/08/2022,RESOURCES,BATE AND HOLLAND FUNERAL SERVICES LTD,02/08/2022,2500.00 ,UNDERTAKERS COSTS,V001903497
ROCHDALE BOROUGH COUNCIL,02/08/2022,ADULT CARE LCO FUNCTIONS,TF JONES PROPERTY SERVICES LTD,02/08/2022,4518.11 ,MINOR BUILDING WORKS,V001903498
ROCHDALE BOROUGH COUNCIL,02/08/2022,RESOURCES,BATE AND HOLLAND FUNERAL SERVICES LTD,02/08/2022,2400.00 ,UNDERTAKERS COSTS,V001903499
ROCHDALE BOROUGH COUNCIL,02/08/2022,ADULT CARE LCO FUNCTIONS,A AND D DOOR SYSTEMS LTD,02/08/2022,175.00 ,REPAIRS & ALTS OF BUILDINGS,V001903503
ROCHDALE BOROUGH COUNCIL,02/08/2022,PROPERTY AND HIGHWAYS,ELECTRIC CENTER,02/08/2022,5.46 ,PROPERTY - WORKS ELEMENT,V001903504
ROCHDALE BOROUGH COUNCIL,02/08/2022,PROPERTY AND HIGHWAYS,ELECTRIC CENTER,02/08/2022,35.48 ,PROPERTY - WORKS ELEMENT,V001903505
ROCHDALE BOROUGH COUNCIL,02/08/2022,PROPERTY AND HIGHWAYS,ELECTRIC CENTER,02/08/2022,1.73 ,PROPERTY - WORKS ELEMENT,V001903506
ROCHDALE BOROUGH COUNCIL,02/08/2022,PROPERTY AND HIGHWAYS,ELECTRIC CENTER,02/08/2022,23.87 ,PROPERTY - WORKS ELEMENT,V001903507
ROCHDALE BOROUGH COUNCIL,02/08/2022,NEIGHBOURHOODS AND ENVIRONMENT,ACCESS DOOR SYSTEMS LTD,02/08/2022,1080.00 ,REPAIRS & ALTS OF BUILDINGS,V001903544
ROCHDALE BOROUGH COUNCIL,02/08/2022,PROPERTY AND HIGHWAYS,ACCESS DOOR SYSTEMS LTD,02/08/2022,320.00 ,REPAIRS & ALTS OF BUILDINGS,V001903554
ROCHDALE BOROUGH COUNCIL,02/08/2022,PROPERTY AND HIGHWAYS,ECS CONSULTANTS LTD,02/08/2022,6000.00 ,CAPITAL SALARIES,V001903566
ROCHDALE BOROUGH COUNCIL,02/08/2022,ADULT CARE LCO FUNCTIONS,TF JONES PROPERTY SERVICES LTD,02/08/2022,4552.19 ,MINOR BUILDING WORKS,V001903569
ROCHDALE BOROUGH COUNCIL,02/08/2022,NEIGHBOURHOODS AND ENVIRONMENT,EMPLOYMENT LAW ADVISORY SERVICES LTD,02/08/2022,395.00 ,EQUIPMENT - GENERAL,V001903575
ROCHDALE BOROUGH COUNCIL,02/08/2022,RESOURCES,FORENSICS LTD,02/08/2022,1035.52 ,TOXICOLOGY PAYMENTS,V001903576
ROCHDALE BOROUGH COUNCIL,02/08/2022,NEIGHBOURHOODS AND ENVIRONMENT,BUCKINGHAM FUTURES,02/08/2022,1328.00 ,ACTIVITIES,V001903577
ROCHDALE BOROUGH COUNCIL,02/08/2022,ECONOMY DIRECTORATE,S SECURITY GROUP LTD,02/08/2022,7515.56 ,SECURITY,V001903578
ROCHDALE BOROUGH COUNCIL,02/08/2022,EARLY HELP AND SCHOOLS,APOLLO HOME HEALTHCARE,02/08/2022,400.80 ,HOME CARE - CHILDRENS SERVICES,V001903580
ROCHDALE BOROUGH COUNCIL,02/08/2022,RESOURCES,BANNER GROUP LIMITED,02/08/2022,30.49 ,STATIONERY,V001903582
ROCHDALE BOROUGH COUNCIL,02/08/2022,ADULT CARE LCO FUNCTIONS,STANNAH LIFT SERVICES LTD,02/08/2022,3435.00 ,MINOR BUILDING WORKS,V001903583
ROCHDALE BOROUGH COUNCIL,02/08/2022,CHILDREN�S SOCIAL CARE,THE BIG WORD,02/08/2022,93.47 ,TRANSLATION & INTERPRETATION,V001903584
ROCHDALE BOROUGH COUNCIL,02/08/2022,CHILDREN�S SOCIAL CARE,THE BIG WORD,02/08/2022,143.65 ,TRANSLATION & INTERPRETATION,V001903585
ROCHDALE BOROUGH COUNCIL,02/08/2022,ECONOMY DIRECTORATE,ARCO GROUP LIMITED,02/08/2022,72.85 ,EQUIPMENT - GENERAL,V001903604
ROCHDALE BOROUGH COUNCIL,02/08/2022,ECONOMY DIRECTORATE,ARCO GROUP LIMITED,02/08/2022,72.85 ,EQUIPMENT - GENERAL,V001903604
ROCHDALE BOROUGH COUNCIL,02/08/2022,ECONOMY DIRECTORATE,ARCO GROUP LIMITED,02/08/2022,72.85 ,EQUIPMENT - GENERAL,V001903604
ROCHDALE BOROUGH COUNCIL,02/08/2022,EARLY HELP AND SCHOOLS,ROYTON MINIBUSES LIMITED,02/08/2022,10470.50 ,TRAVELLING GENERAL EXPENSES,V001903606
ROCHDALE BOROUGH COUNCIL,02/08/2022,EARLY HELP AND SCHOOLS,ROYTON MINIBUSES LIMITED,02/08/2022,10470.50 ,TRAVELLING GENERAL EXPENSES,V001903606
ROCHDALE BOROUGH COUNCIL,02/08/2022,EARLY HELP AND SCHOOLS,ROYTON MINIBUSES LIMITED,02/08/2022,10470.50 ,TRAVELLING GENERAL EXPENSES,V001903606
ROCHDALE BOROUGH COUNCIL,02/08/2022,PROPERTY AND HIGHWAYS,ELECTRIC CENTER,02/08/2022,28.70 ,PROPERTY - WORKS ELEMENT,V001903609
ROCHDALE BOROUGH COUNCIL,02/08/2022,ECONOMY DIRECTORATE,JACKFIELD CONSERVATION STUDIO,02/08/2022,190.00 ,CONSULTANTS FEES,V001903610
ROCHDALE BOROUGH COUNCIL,02/08/2022,NEIGHBOURHOODS AND ENVIRONMENT,DAWSONGROUP SWEEPERS LTD,02/08/2022,3584.83 ,TRANSACTIONS-EXPENDITURE,V001903612
ROCHDALE BOROUGH COUNCIL,02/08/2022,NEIGHBOURHOODS AND ENVIRONMENT,ARCO GROUP LIMITED,02/08/2022,60.75 ,EQUIPMENT - GENERAL,V001903613
ROCHDALE BOROUGH COUNCIL,02/08/2022,NEIGHBOURHOODS AND ENVIRONMENT,ARCO GROUP LIMITED,02/08/2022,60.75 ,EQUIPMENT - GENERAL,V001903613
ROCHDALE BOROUGH COUNCIL,02/08/2022,NEIGHBOURHOODS AND ENVIRONMENT,ARCO GROUP LIMITED,02/08/2022,60.75 ,EQUIPMENT - GENERAL,V001903613
ROCHDALE BOROUGH COUNCIL,02/08/2022,NEIGHBOURHOODS AND ENVIRONMENT,ARCO GROUP LIMITED,02/08/2022,44.53 ,EQUIPMENT - GENERAL,V001903613
ROCHDALE BOROUGH COUNCIL,02/08/2022,NEIGHBOURHOODS AND ENVIRONMENT,ARCO GROUP LIMITED,02/08/2022,44.53 ,EQUIPMENT - GENERAL,V001903613
ROCHDALE BOROUGH COUNCIL,02/08/2022,NEIGHBOURHOODS AND ENVIRONMENT,ARCO GROUP LIMITED,02/08/2022,44.53 ,EQUIPMENT - GENERAL,V001903613
ROCHDALE BOROUGH COUNCIL,02/08/2022,NEIGHBOURHOODS AND ENVIRONMENT,BROXAP LIMITED,02/08/2022,2206.00 ,ACTIVITIES,V001903997
ROCHDALE BOROUGH COUNCIL,02/08/2022,NEIGHBOURHOODS AND ENVIRONMENT,BROXAP LIMITED,02/08/2022,2206.00 ,ACTIVITIES,V001903997
ROCHDALE BOROUGH COUNCIL,02/08/2022,RESOURCES,CDER GROUP LTD,02/08/2022,0.00 ,INPUT VAT - FEEDERS,V001904007
ROCHDALE BOROUGH COUNCIL,02/08/2022,RESOURCES,CDER GROUP LTD,02/08/2022,0.00 ,INPUT VAT -  ADJUSTMENTS,V001904008
ROCHDALE BOROUGH COUNCIL,02/08/2022,CHILDREN�S SOCIAL CARE,D A LANGUAGES LIMITED,02/08/2022,45.75 ,TRANSLATION & INTERPRETATION,V001904009
ROCHDALE BOROUGH COUNCIL,02/08/2022,CHILDREN�S SOCIAL CARE,D A LANGUAGES LIMITED,02/08/2022,90.00 ,TRANSLATION & INTERPRETATION,V001904010
ROCHDALE BOROUGH COUNCIL,02/08/2022,PROPERTY AND HIGHWAYS,FRANK KEY TOOL HIRE LTD,02/08/2022,21.00 ,PROPERTY - WORKS ELEMENT,V001904014
ROCHDALE BOROUGH COUNCIL,01/08/2022,NEIGHBOURHOODS AND ENVIRONMENT,J A CRYER EXCAVATION & GROUNDWORK CONTRACTORS LTD,01/08/2022,815.00 ,ENVIRONMENTAL WORKS LANDSCAPE,V001904017
ROCHDALE BOROUGH COUNCIL,02/08/2022,NEIGHBOURHOODS AND ENVIRONMENT,KILLGERM CHEMICALS LIMITED,02/08/2022,44.31 ,EQUIPMENT - GENERAL,V001904020
ROCHDALE BOROUGH COUNCIL,02/08/2022,NEIGHBOURHOODS AND ENVIRONMENT,KILLGERM CHEMICALS LIMITED,02/08/2022,29.54 ,EQUIPMENT - GENERAL,V001904020
ROCHDALE BOROUGH COUNCIL,02/08/2022,NEIGHBOURHOODS AND ENVIRONMENT,KILLGERM CHEMICALS LIMITED,02/08/2022,44.31 ,EQUIPMENT - GENERAL,V001904020
ROCHDALE BOROUGH COUNCIL,02/08/2022,NEIGHBOURHOODS AND ENVIRONMENT,KILLGERM CHEMICALS LIMITED,02/08/2022,28.74 ,EQUIPMENT - GENERAL,V001904020
ROCHDALE BOROUGH COUNCIL,02/08/2022,NEIGHBOURHOODS AND ENVIRONMENT,KILLGERM CHEMICALS LIMITED,02/08/2022,26.00 ,EQUIPMENT - GENERAL,V001904020
ROCHDALE BOROUGH COUNCIL,02/08/2022,NEIGHBOURHOODS AND ENVIRONMENT,KILLGERM CHEMICALS LIMITED,02/08/2022,139.19 ,EQUIPMENT - GENERAL,V001904020
ROCHDALE BOROUGH COUNCIL,02/08/2022,NEIGHBOURHOODS AND ENVIRONMENT,KILLGERM CHEMICALS LIMITED,02/08/2022,97.08 ,EQUIPMENT - GENERAL,V001904020
ROCHDALE BOROUGH COUNCIL,02/08/2022,NEIGHBOURHOODS AND ENVIRONMENT,KILLGERM CHEMICALS LIMITED,02/08/2022,95.20 ,EQUIPMENT - GENERAL,V001904020
ROCHDALE BOROUGH COUNCIL,02/08/2022,NEIGHBOURHOODS AND ENVIRONMENT,KILLGERM CHEMICALS LIMITED,02/08/2022,168.00 ,EQUIPMENT - GENERAL,V001904020
ROCHDALE BOROUGH COUNCIL,02/08/2022,ECONOMY DIRECTORATE,SEVEN ARCHITECTURE LTD,02/08/2022,1555.00 ,CONSULTANTS FEES,V001904022
ROCHDALE BOROUGH COUNCIL,02/08/2022,ADULT CARE LCO FUNCTIONS,TF JONES PROPERTY SERVICES LTD,02/08/2022,6803.43 ,MINOR BUILDING WORKS,V001904025
ROCHDALE BOROUGH COUNCIL,02/08/2022,NEIGHBOURHOODS AND ENVIRONMENT,MANCHESTER CITY COUNCIL,02/08/2022,1388.00 ,PROJECTS,V001904034
ROCHDALE BOROUGH COUNCIL,05/08/2022,NEIGHBOURHOODS AND ENVIRONMENT,PHS GROUP PLC,05/08/2022,81.75 ,EQUIPMENT - GENERAL,V001904036
ROCHDALE BOROUGH COUNCIL,02/08/2022,NEIGHBOURHOODS AND ENVIRONMENT,AMBEROL LIMITED,02/08/2022,661.88 ,"TREES, SHRUBS, PLANTS",V001904037
ROCHDALE BOROUGH COUNCIL,02/08/2022,NEIGHBOURHOODS AND ENVIRONMENT,AMBEROL LIMITED,02/08/2022,661.88 ,"TREES, SHRUBS, PLANTS",V001904037
ROCHDALE BOROUGH COUNCIL,02/08/2022,RESOURCES,TOPMARK CLAIMS MANAGEMENT LTD,02/08/2022,5000.00 ,TRANSACTIONS-EXPENDITURE,V001904039
ROCHDALE BOROUGH COUNCIL,02/08/2022,ECONOMY DIRECTORATE,REACH PUBLISHING SERVICES LTD,02/08/2022,53.19 ,PROFESSIONAL FEES,V001904041
ROCHDALE BOROUGH COUNCIL,02/08/2022,NEIGHBOURHOODS AND ENVIRONMENT,ROYAL MAIL GROUP LTD,02/08/2022,17.67 ,EQUIPMENT - GENERAL,V001904046
ROCHDALE BOROUGH COUNCIL,02/08/2022,NEIGHBOURHOODS AND ENVIRONMENT,KANE FUNERAL SERVICES,02/08/2022,1151.00 ,EQUIPMENT - GENERAL,V001904054
ROCHDALE BOROUGH COUNCIL,02/08/2022,ECONOMY DIRECTORATE,MILLENNIUM HYGIENE SERVICES,02/08/2022,41.53 ,HYGIENE EQUIPMENT,V001904057
ROCHDALE BOROUGH COUNCIL,02/08/2022,CHILDREN�S SOCIAL CARE,THE AIM PROJECT,02/08/2022,2782.67 ,TRAINING-QUALIFICATION,V001904058
ROCHDALE BOROUGH COUNCIL,02/08/2022,ECONOMY DIRECTORATE,HBL ASSOCIATES LTD,02/08/2022,3584.00 ,CONSULTANTS FEES,V001904061
ROCHDALE BOROUGH COUNCIL,02/08/2022,NEIGHBOURHOODS AND ENVIRONMENT,ENTERPRISE FLEX-E-RENT,02/08/2022,1815.33 ,TRANSACTIONS-EXPENDITURE,V001904062
ROCHDALE BOROUGH COUNCIL,02/08/2022,ADULT CARE LCO FUNCTIONS,TF JONES PROPERTY SERVICES LTD,02/08/2022,1900.33 ,MINOR BUILDING WORKS,V001904064
ROCHDALE BOROUGH COUNCIL,02/08/2022,CHILDREN�S SOCIAL CARE,THE BIG WORD,02/08/2022,28.50 ,TRANSLATION & INTERPRETATION,V001904077
ROCHDALE BOROUGH COUNCIL,02/08/2022,CHILDREN�S SOCIAL CARE,THE BIG WORD,02/08/2022,36.00 ,TRANSLATION & INTERPRETATION,V001904077
ROCHDALE BOROUGH COUNCIL,02/08/2022,CHILDREN�S SOCIAL CARE,THE BIG WORD,02/08/2022,30.50 ,TRANSLATION & INTERPRETATION,V001904077
ROCHDALE BOROUGH COUNCIL,02/08/2022,CHILDREN�S SOCIAL CARE,THE BIG WORD,02/08/2022,36.00 ,TRANSLATION & INTERPRETATION,V001904077
ROCHDALE BOROUGH COUNCIL,02/08/2022,CHILDREN�S SOCIAL CARE,THE BIG WORD,02/08/2022,30.50 ,TRANSLATION & INTERPRETATION,V001904077
ROCHDALE BOROUGH COUNCIL,02/08/2022,CHILDREN�S SOCIAL CARE,THE BIG WORD,02/08/2022,36.00 ,TRANSLATION & INTERPRETATION,V001904077
ROCHDALE BOROUGH COUNCIL,02/08/2022,CHILDREN�S SOCIAL CARE,THE BIG WORD,02/08/2022,42.00 ,TRANSLATION & INTERPRETATION,V001904077
ROCHDALE BOROUGH COUNCIL,02/08/2022,CHILDREN�S SOCIAL CARE,THE BIG WORD,02/08/2022,28.50 ,TRANSLATION & INTERPRETATION,V001904077
ROCHDALE BOROUGH COUNCIL,02/08/2022,CHILDREN�S SOCIAL CARE,THE BIG WORD,02/08/2022,42.00 ,TRANSLATION & INTERPRETATION,V001904077
ROCHDALE BOROUGH COUNCIL,02/08/2022,CHILDREN�S SOCIAL CARE,THE BIG WORD,02/08/2022,36.00 ,TRANSLATION & INTERPRETATION,V001904077
ROCHDALE BOROUGH COUNCIL,02/08/2022,EARLY HELP AND SCHOOLS,THE BIG WORD,02/08/2022,57.50 ,TRANSLATION & INTERPRETATION,V001904077
ROCHDALE BOROUGH COUNCIL,02/08/2022,EARLY HELP AND SCHOOLS,THE BIG WORD,02/08/2022,36.00 ,TRANSLATION & INTERPRETATION,V001904077
ROCHDALE BOROUGH COUNCIL,02/08/2022,EARLY HELP AND SCHOOLS,THE BIG WORD,02/08/2022,44.00 ,TRANSLATION & INTERPRETATION,V001904077
ROCHDALE BOROUGH COUNCIL,02/08/2022,EARLY HELP AND SCHOOLS,THE BIG WORD,02/08/2022,36.00 ,TRANSLATION & INTERPRETATION,V001904077
ROCHDALE BOROUGH COUNCIL,02/08/2022,EARLY HELP AND SCHOOLS,THE BIG WORD,02/08/2022,57.50 ,TRANSLATION & INTERPRETATION,V001904077
ROCHDALE BOROUGH COUNCIL,02/08/2022,EARLY HELP AND SCHOOLS,THE BIG WORD,02/08/2022,36.00 ,TRANSLATION & INTERPRETATION,V001904077
ROCHDALE BOROUGH COUNCIL,02/08/2022,EARLY HELP AND SCHOOLS,THE BIG WORD,02/08/2022,55.50 ,TRANSLATION & INTERPRETATION,V001904077
ROCHDALE BOROUGH COUNCIL,02/08/2022,EARLY HELP AND SCHOOLS,THE BIG WORD,02/08/2022,16.00 ,TRANSLATION & INTERPRETATION,V001904077
ROCHDALE BOROUGH COUNCIL,02/08/2022,CHILDREN�S SOCIAL CARE,THE BIG WORD,02/08/2022,55.50 ,TRANSLATION & INTERPRETATION,V001904077
ROCHDALE BOROUGH COUNCIL,02/08/2022,CHILDREN�S SOCIAL CARE,THE BIG WORD,02/08/2022,36.00 ,TRANSLATION & INTERPRETATION,V001904077
ROCHDALE BOROUGH COUNCIL,02/08/2022,CHILDREN�S SOCIAL CARE,THE BIG WORD,02/08/2022,2.00 ,TRANSLATION & INTERPRETATION,V001904077
ROCHDALE BOROUGH COUNCIL,02/08/2022,CHILDREN�S SOCIAL CARE,THE BIG WORD,02/08/2022,55.50 ,TRANSLATION & INTERPRETATION,V001904077
ROCHDALE BOROUGH COUNCIL,02/08/2022,CHILDREN�S SOCIAL CARE,THE BIG WORD,02/08/2022,36.00 ,TRANSLATION & INTERPRETATION,V001904077
ROCHDALE BOROUGH COUNCIL,02/08/2022,CHILDREN�S SOCIAL CARE,THE BIG WORD,02/08/2022,42.00 ,TRANSLATION & INTERPRETATION,V001904077
ROCHDALE BOROUGH COUNCIL,02/08/2022,CHILDREN�S SOCIAL CARE,THE BIG WORD,02/08/2022,36.00 ,TRANSLATION & INTERPRETATION,V001904077
ROCHDALE BOROUGH COUNCIL,02/08/2022,CHILDREN�S SOCIAL CARE,THE BIG WORD,02/08/2022,55.50 ,TRANSLATION & INTERPRETATION,V001904077
ROCHDALE BOROUGH COUNCIL,02/08/2022,CHILDREN�S SOCIAL CARE,THE BIG WORD,02/08/2022,28.50 ,TRANSLATION & INTERPRETATION,V001904077
ROCHDALE BOROUGH COUNCIL,02/08/2022,CHILDREN�S SOCIAL CARE,THE BIG WORD,02/08/2022,36.00 ,TRANSLATION & INTERPRETATION,V001904077
ROCHDALE BOROUGH COUNCIL,02/08/2022,EARLY HELP AND SCHOOLS,THE BIG WORD,02/08/2022,28.50 ,TRANSLATION & INTERPRETATION,V001904077
ROCHDALE BOROUGH COUNCIL,02/08/2022,EARLY HELP AND SCHOOLS,THE BIG WORD,02/08/2022,36.00 ,TRANSLATION & INTERPRETATION,V001904077
ROCHDALE BOROUGH COUNCIL,02/08/2022,CHILDREN�S SOCIAL CARE,THE BIG WORD,02/08/2022,35.25 ,TRANSLATION & INTERPRETATION,V001904077
ROCHDALE BOROUGH COUNCIL,02/08/2022,CHILDREN�S SOCIAL CARE,THE BIG WORD,02/08/2022,36.00 ,TRANSLATION & INTERPRETATION,V001904077
ROCHDALE BOROUGH COUNCIL,02/08/2022,CHILDREN�S SOCIAL CARE,THE BIG WORD,02/08/2022,28.50 ,TRANSLATION & INTERPRETATION,V001904077
ROCHDALE BOROUGH COUNCIL,02/08/2022,CHILDREN�S SOCIAL CARE,THE BIG WORD,02/08/2022,36.00 ,TRANSLATION & INTERPRETATION,V001904077
ROCHDALE BOROUGH COUNCIL,02/08/2022,CHILDREN�S SOCIAL CARE,THE BIG WORD,02/08/2022,28.50 ,TRANSLATION & INTERPRETATION,V001904077
ROCHDALE BOROUGH COUNCIL,02/08/2022,CHILDREN�S SOCIAL CARE,THE BIG WORD,02/08/2022,36.00 ,TRANSLATION & INTERPRETATION,V001904077
ROCHDALE BOROUGH COUNCIL,02/08/2022,CHILDREN�S SOCIAL CARE,THE BIG WORD,02/08/2022,55.50 ,TRANSLATION & INTERPRETATION,V001904077
ROCHDALE BOROUGH COUNCIL,02/08/2022,CHILDREN�S SOCIAL CARE,THE BIG WORD,02/08/2022,16.00 ,TRANSLATION & INTERPRETATION,V001904077
ROCHDALE BOROUGH COUNCIL,02/08/2022,EARLY HELP AND SCHOOLS,THE BIG WORD,02/08/2022,35.25 ,TRANSLATION & INTERPRETATION,V001904077
ROCHDALE BOROUGH COUNCIL,02/08/2022,EARLY HELP AND SCHOOLS,THE BIG WORD,02/08/2022,36.00 ,TRANSLATION & INTERPRETATION,V001904077
ROCHDALE BOROUGH COUNCIL,02/08/2022,EARLY HELP AND SCHOOLS,THE BIG WORD,02/08/2022,2.00 ,TRANSLATION & INTERPRETATION,V001904077
ROCHDALE BOROUGH COUNCIL,02/08/2022,CHILDREN�S SOCIAL CARE,THE BIG WORD,02/08/2022,28.50 ,TRANSLATION & INTERPRETATION,V001904077
ROCHDALE BOROUGH COUNCIL,02/08/2022,CHILDREN�S SOCIAL CARE,THE BIG WORD,02/08/2022,42.00 ,TRANSLATION & INTERPRETATION,V001904077
ROCHDALE BOROUGH COUNCIL,02/08/2022,CHILDREN�S SOCIAL CARE,THE BIG WORD,02/08/2022,36.00 ,TRANSLATION & INTERPRETATION,V001904077
ROCHDALE BOROUGH COUNCIL,02/08/2022,CHILDREN�S SOCIAL CARE,THE BIG WORD,02/08/2022,2.00 ,TRANSLATION & INTERPRETATION,V001904077
ROCHDALE BOROUGH COUNCIL,02/08/2022,CHILDREN�S SOCIAL CARE,THE BIG WORD,02/08/2022,42.00 ,TRANSLATION & INTERPRETATION,V001904077
ROCHDALE BOROUGH COUNCIL,02/08/2022,CHILDREN�S SOCIAL CARE,THE BIG WORD,02/08/2022,36.00 ,TRANSLATION & INTERPRETATION,V001904077
ROCHDALE BOROUGH COUNCIL,02/08/2022,CHILDREN�S SOCIAL CARE,THE BIG WORD,02/08/2022,2.00 ,TRANSLATION & INTERPRETATION,V001904077
ROCHDALE BOROUGH COUNCIL,02/08/2022,CHILDREN�S SOCIAL CARE,THE BIG WORD,02/08/2022,28.50 ,TRANSLATION & INTERPRETATION,V001904077
ROCHDALE BOROUGH COUNCIL,02/08/2022,CHILDREN�S SOCIAL CARE,THE BIG WORD,02/08/2022,36.00 ,TRANSLATION & INTERPRETATION,V001904077
ROCHDALE BOROUGH COUNCIL,02/08/2022,CHILDREN�S SOCIAL CARE,THE BIG WORD,02/08/2022,28.50 ,TRANSLATION & INTERPRETATION,V001904077
ROCHDALE BOROUGH COUNCIL,02/08/2022,CHILDREN�S SOCIAL CARE,THE BIG WORD,02/08/2022,28.50 ,TRANSLATION & INTERPRETATION,V001904077
ROCHDALE BOROUGH COUNCIL,02/08/2022,CHILDREN�S SOCIAL CARE,THE BIG WORD,02/08/2022,36.00 ,TRANSLATION & INTERPRETATION,V001904077
ROCHDALE BOROUGH COUNCIL,02/08/2022,CHILDREN�S SOCIAL CARE,THE BIG WORD,02/08/2022,37.25 ,TRANSLATION & INTERPRETATION,V001904077
ROCHDALE BOROUGH COUNCIL,02/08/2022,EARLY HELP AND SCHOOLS,THE BIG WORD,02/08/2022,28.50 ,TRANSLATION & INTERPRETATION,V001904077
ROCHDALE BOROUGH COUNCIL,02/08/2022,EARLY HELP AND SCHOOLS,THE BIG WORD,02/08/2022,36.00 ,TRANSLATION & INTERPRETATION,V001904077
ROCHDALE BOROUGH COUNCIL,02/08/2022,CHILDREN�S SOCIAL CARE,THE BIG WORD,02/08/2022,30.50 ,TRANSLATION & INTERPRETATION,V001904077
ROCHDALE BOROUGH COUNCIL,02/08/2022,CHILDREN�S SOCIAL CARE,THE BIG WORD,02/08/2022,36.00 ,TRANSLATION & INTERPRETATION,V001904077
ROCHDALE BOROUGH COUNCIL,02/08/2022,CHILDREN�S SOCIAL CARE,THE BIG WORD,02/08/2022,28.50 ,TRANSLATION & INTERPRETATION,V001904077
ROCHDALE BOROUGH COUNCIL,02/08/2022,CHILDREN�S SOCIAL CARE,THE BIG WORD,02/08/2022,35.25 ,TRANSLATION & INTERPRETATION,V001904077
ROCHDALE BOROUGH COUNCIL,02/08/2022,CHILDREN�S SOCIAL CARE,THE BIG WORD,02/08/2022,16.00 ,TRANSLATION & INTERPRETATION,V001904077
ROCHDALE BOROUGH COUNCIL,02/08/2022,RESOURCES,THE BIG WORD,02/08/2022,82.50 ,TRANSLATION & INTERPRETATION,V001904077
ROCHDALE BOROUGH COUNCIL,02/08/2022,RESOURCES,THE BIG WORD,02/08/2022,36.00 ,TRANSLATION & INTERPRETATION,V001904077
ROCHDALE BOROUGH COUNCIL,02/08/2022,RESOURCES,THE BIG WORD,02/08/2022,2.00 ,TRANSLATION & INTERPRETATION,V001904077
ROCHDALE BOROUGH COUNCIL,02/08/2022,CHILDREN�S SOCIAL CARE,THE BIG WORD,02/08/2022,28.50 ,TRANSLATION & INTERPRETATION,V001904077
ROCHDALE BOROUGH COUNCIL,02/08/2022,CHILDREN�S SOCIAL CARE,THE BIG WORD,02/08/2022,16.00 ,TRANSLATION & INTERPRETATION,V001904077
ROCHDALE BOROUGH COUNCIL,02/08/2022,CHILDREN�S SOCIAL CARE,THE BIG WORD,02/08/2022,28.50 ,TRANSLATION & INTERPRETATION,V001904077
ROCHDALE BOROUGH COUNCIL,02/08/2022,CHILDREN�S SOCIAL CARE,THE BIG WORD,02/08/2022,16.00 ,TRANSLATION & INTERPRETATION,V001904077
ROCHDALE BOROUGH COUNCIL,02/08/2022,EARLY HELP AND SCHOOLS,THE BIG WORD,02/08/2022,28.50 ,TRANSLATION & INTERPRETATION,V001904077
ROCHDALE BOROUGH COUNCIL,02/08/2022,EARLY HELP AND SCHOOLS,THE BIG WORD,02/08/2022,36.00 ,TRANSLATION & INTERPRETATION,V001904077
ROCHDALE BOROUGH COUNCIL,02/08/2022,EARLY HELP AND SCHOOLS,THE BIG WORD,02/08/2022,55.50 ,TRANSLATION & INTERPRETATION,V001904077
ROCHDALE BOROUGH COUNCIL,02/08/2022,EARLY HELP AND SCHOOLS,THE BIG WORD,02/08/2022,36.00 ,TRANSLATION & INTERPRETATION,V001904077
ROCHDALE BOROUGH COUNCIL,02/08/2022,EARLY HELP AND SCHOOLS,THE BIG WORD,02/08/2022,2.00 ,TRANSLATION & INTERPRETATION,V001904077
ROCHDALE BOROUGH COUNCIL,02/08/2022,EARLY HELP AND SCHOOLS,THE BIG WORD,02/08/2022,28.50 ,TRANSLATION & INTERPRETATION,V001904077
ROCHDALE BOROUGH COUNCIL,02/08/2022,EARLY HELP AND SCHOOLS,THE BIG WORD,02/08/2022,36.00 ,TRANSLATION & INTERPRETATION,V001904077
ROCHDALE BOROUGH COUNCIL,02/08/2022,CHILDREN�S SOCIAL CARE,THE BIG WORD,02/08/2022,71.00 ,TRANSLATION & INTERPRETATION,V001904077
ROCHDALE BOROUGH COUNCIL,02/08/2022,CHILDREN�S SOCIAL CARE,THE BIG WORD,02/08/2022,36.00 ,TRANSLATION & INTERPRETATION,V001904077
ROCHDALE BOROUGH COUNCIL,02/08/2022,CHILDREN�S SOCIAL CARE,THE BIG WORD,02/08/2022,48.75 ,TRANSLATION & INTERPRETATION,V001904077
ROCHDALE BOROUGH COUNCIL,02/08/2022,CHILDREN�S SOCIAL CARE,THE BIG WORD,02/08/2022,36.00 ,TRANSLATION & INTERPRETATION,V001904077
ROCHDALE BOROUGH COUNCIL,02/08/2022,CHILDREN�S SOCIAL CARE,THE BIG WORD,02/08/2022,28.50 ,TRANSLATION & INTERPRETATION,V001904077
ROCHDALE BOROUGH COUNCIL,02/08/2022,CHILDREN�S SOCIAL CARE,THE BIG WORD,02/08/2022,28.50 ,TRANSLATION & INTERPRETATION,V001904077
ROCHDALE BOROUGH COUNCIL,02/08/2022,CHILDREN�S SOCIAL CARE,THE BIG WORD,02/08/2022,36.00 ,TRANSLATION & INTERPRETATION,V001904077
ROCHDALE BOROUGH COUNCIL,02/08/2022,RESOURCES,THE BIG WORD,02/08/2022,55.50 ,TRANSLATION & INTERPRETATION,V001904077
ROCHDALE BOROUGH COUNCIL,02/08/2022,RESOURCES,THE BIG WORD,02/08/2022,36.00 ,TRANSLATION & INTERPRETATION,V001904077
ROCHDALE BOROUGH COUNCIL,02/08/2022,EARLY HELP AND SCHOOLS,THE BIG WORD,02/08/2022,37.25 ,TRANSLATION & INTERPRETATION,V001904077
ROCHDALE BOROUGH COUNCIL,02/08/2022,EARLY HELP AND SCHOOLS,THE BIG WORD,02/08/2022,36.00 ,TRANSLATION & INTERPRETATION,V001904077
ROCHDALE BOROUGH COUNCIL,02/08/2022,CHILDREN�S SOCIAL CARE,THE BIG WORD,02/08/2022,30.50 ,TRANSLATION & INTERPRETATION,V001904077
ROCHDALE BOROUGH COUNCIL,02/08/2022,CHILDREN�S SOCIAL CARE,THE BIG WORD,02/08/2022,36.00 ,TRANSLATION & INTERPRETATION,V001904077
ROCHDALE BOROUGH COUNCIL,02/08/2022,CHILDREN�S SOCIAL CARE,THE BIG WORD,02/08/2022,28.50 ,TRANSLATION & INTERPRETATION,V001904077
ROCHDALE BOROUGH COUNCIL,02/08/2022,CHILDREN�S SOCIAL CARE,THE BIG WORD,02/08/2022,30.50 ,TRANSLATION & INTERPRETATION,V001904077
ROCHDALE BOROUGH COUNCIL,02/08/2022,CHILDREN�S SOCIAL CARE,THE BIG WORD,02/08/2022,36.00 ,TRANSLATION & INTERPRETATION,V001904077
ROCHDALE BOROUGH COUNCIL,02/08/2022,CHILDREN�S SOCIAL CARE,THE BIG WORD,02/08/2022,37.25 ,TRANSLATION & INTERPRETATION,V001904077
ROCHDALE BOROUGH COUNCIL,02/08/2022,CHILDREN�S SOCIAL CARE,THE BIG WORD,02/08/2022,36.00 ,TRANSLATION & INTERPRETATION,V001904077
ROCHDALE BOROUGH COUNCIL,02/08/2022,CHILDREN�S SOCIAL CARE,THE BIG WORD,02/08/2022,28.50 ,TRANSLATION & INTERPRETATION,V001904077
ROCHDALE BOROUGH COUNCIL,02/08/2022,CHILDREN�S SOCIAL CARE,THE BIG WORD,02/08/2022,36.00 ,TRANSLATION & INTERPRETATION,V001904077
ROCHDALE BOROUGH COUNCIL,02/08/2022,CHILDREN�S SOCIAL CARE,THE BIG WORD,02/08/2022,55.50 ,TRANSLATION & INTERPRETATION,V001904077
ROCHDALE BOROUGH COUNCIL,02/08/2022,CHILDREN�S SOCIAL CARE,THE BIG WORD,02/08/2022,8.00 ,TRANSLATION & INTERPRETATION,V001904077
ROCHDALE BOROUGH COUNCIL,02/08/2022,CHILDREN�S SOCIAL CARE,THE BIG WORD,02/08/2022,42.00 ,TRANSLATION & INTERPRETATION,V001904077
ROCHDALE BOROUGH COUNCIL,02/08/2022,CHILDREN�S SOCIAL CARE,THE BIG WORD,02/08/2022,36.00 ,TRANSLATION & INTERPRETATION,V001904077
ROCHDALE BOROUGH COUNCIL,02/08/2022,EARLY HELP AND SCHOOLS,THE BIG WORD,02/08/2022,37.25 ,TRANSLATION & INTERPRETATION,V001904077
ROCHDALE BOROUGH COUNCIL,02/08/2022,EARLY HELP AND SCHOOLS,THE BIG WORD,02/08/2022,36.00 ,TRANSLATION & INTERPRETATION,V001904077
ROCHDALE BOROUGH COUNCIL,02/08/2022,CHILDREN�S SOCIAL CARE,THE BIG WORD,02/08/2022,28.50 ,TRANSLATION & INTERPRETATION,V001904077
ROCHDALE BOROUGH COUNCIL,02/08/2022,CHILDREN�S SOCIAL CARE,THE BIG WORD,02/08/2022,36.00 ,TRANSLATION & INTERPRETATION,V001904077
ROCHDALE BOROUGH COUNCIL,02/08/2022,CHILDREN�S SOCIAL CARE,THE BIG WORD,02/08/2022,28.50 ,TRANSLATION & INTERPRETATION,V001904077
ROCHDALE BOROUGH COUNCIL,02/08/2022,CHILDREN�S SOCIAL CARE,THE BIG WORD,02/08/2022,36.00 ,TRANSLATION & INTERPRETATION,V001904077
ROCHDALE BOROUGH COUNCIL,02/08/2022,EARLY HELP AND SCHOOLS,THE BIG WORD,02/08/2022,37.25 ,TRANSLATION & INTERPRETATION,V001904077
ROCHDALE BOROUGH COUNCIL,02/08/2022,EARLY HELP AND SCHOOLS,THE BIG WORD,02/08/2022,36.00 ,TRANSLATION & INTERPRETATION,V001904077
ROCHDALE BOROUGH COUNCIL,02/08/2022,CHILDREN�S SOCIAL CARE,THE BIG WORD,02/08/2022,55.50 ,TRANSLATION & INTERPRETATION,V001904077
ROCHDALE BOROUGH COUNCIL,02/08/2022,CHILDREN�S SOCIAL CARE,THE BIG WORD,02/08/2022,36.00 ,TRANSLATION & INTERPRETATION,V001904077
ROCHDALE BOROUGH COUNCIL,02/08/2022,ADULT CARE LCO FUNCTIONS,THE BIG WORD,02/08/2022,30.50 ,TRANSLATION & INTERPRETATION,V001904077
ROCHDALE BOROUGH COUNCIL,02/08/2022,ADULT CARE LCO FUNCTIONS,THE BIG WORD,02/08/2022,36.00 ,TRANSLATION & INTERPRETATION,V001904077
ROCHDALE BOROUGH COUNCIL,02/08/2022,CHILDREN�S SOCIAL CARE,THE BIG WORD,02/08/2022,30.50 ,TRANSLATION & INTERPRETATION,V001904077
ROCHDALE BOROUGH COUNCIL,02/08/2022,CHILDREN�S SOCIAL CARE,THE BIG WORD,02/08/2022,36.00 ,TRANSLATION & INTERPRETATION,V001904077
ROCHDALE BOROUGH COUNCIL,02/08/2022,CHILDREN�S SOCIAL CARE,THE BIG WORD,02/08/2022,55.50 ,TRANSLATION & INTERPRETATION,V001904077
ROCHDALE BOROUGH COUNCIL,02/08/2022,EARLY HELP AND SCHOOLS,THE BIG WORD,02/08/2022,42.00 ,TRANSLATION & INTERPRETATION,V001904077
ROCHDALE BOROUGH COUNCIL,02/08/2022,EARLY HELP AND SCHOOLS,THE BIG WORD,02/08/2022,36.00 ,TRANSLATION & INTERPRETATION,V001904077
ROCHDALE BOROUGH COUNCIL,02/08/2022,EARLY HELP AND SCHOOLS,THE BIG WORD,02/08/2022,2.00 ,TRANSLATION & INTERPRETATION,V001904077
ROCHDALE BOROUGH COUNCIL,02/08/2022,EARLY HELP AND SCHOOLS,THE BIG WORD,02/08/2022,28.50 ,TRANSLATION & INTERPRETATION,V001904077
ROCHDALE BOROUGH COUNCIL,02/08/2022,EARLY HELP AND SCHOOLS,THE BIG WORD,02/08/2022,36.00 ,TRANSLATION & INTERPRETATION,V001904077
ROCHDALE BOROUGH COUNCIL,02/08/2022,EARLY HELP AND SCHOOLS,THE BIG WORD,02/08/2022,2.00 ,TRANSLATION & INTERPRETATION,V001904077
ROCHDALE BOROUGH COUNCIL,02/08/2022,CHILDREN�S SOCIAL CARE,THE BIG WORD,02/08/2022,62.25 ,TRANSLATION & INTERPRETATION,V001904077
ROCHDALE BOROUGH COUNCIL,02/08/2022,CHILDREN�S SOCIAL CARE,THE BIG WORD,02/08/2022,42.00 ,TRANSLATION & INTERPRETATION,V001904077
ROCHDALE BOROUGH COUNCIL,02/08/2022,CHILDREN�S SOCIAL CARE,THE BIG WORD,02/08/2022,36.00 ,TRANSLATION & INTERPRETATION,V001904077
ROCHDALE BOROUGH COUNCIL,02/08/2022,CHILDREN�S SOCIAL CARE,THE BIG WORD,02/08/2022,55.50 ,TRANSLATION & INTERPRETATION,V001904077
ROCHDALE BOROUGH COUNCIL,02/08/2022,CHILDREN�S SOCIAL CARE,THE BIG WORD,02/08/2022,36.00 ,TRANSLATION & INTERPRETATION,V001904077
ROCHDALE BOROUGH COUNCIL,02/08/2022,CHILDREN�S SOCIAL CARE,THE BIG WORD,02/08/2022,28.50 ,TRANSLATION & INTERPRETATION,V001904077
ROCHDALE BOROUGH COUNCIL,02/08/2022,CHILDREN�S SOCIAL CARE,THE BIG WORD,02/08/2022,36.00 ,TRANSLATION & INTERPRETATION,V001904077
ROCHDALE BOROUGH COUNCIL,02/08/2022,CHILDREN�S SOCIAL CARE,THE BIG WORD,02/08/2022,2.00 ,TRANSLATION & INTERPRETATION,V001904077
ROCHDALE BOROUGH COUNCIL,02/08/2022,CHILDREN�S SOCIAL CARE,THE BIG WORD,02/08/2022,28.50 ,TRANSLATION & INTERPRETATION,V001904077
ROCHDALE BOROUGH COUNCIL,02/08/2022,CHILDREN�S SOCIAL CARE,THE BIG WORD,02/08/2022,2.00 ,TRANSLATION & INTERPRETATION,V001904077
ROCHDALE BOROUGH COUNCIL,02/08/2022,CHILDREN�S SOCIAL CARE,THE BIG WORD,02/08/2022,2.50 ,TRANSLATION & INTERPRETATION,V001904077
ROCHDALE BOROUGH COUNCIL,05/08/2022,NEIGHBOURHOODS AND ENVIRONMENT,EXCLUSEC,05/08/2022,10318.80 ,SECURITY,V001904083
ROCHDALE BOROUGH COUNCIL,05/08/2022,NEIGHBOURHOODS AND ENVIRONMENT,EXCLUSEC,05/08/2022,2448.00 ,SECURITY,V001904085
ROCHDALE BOROUGH COUNCIL,05/08/2022,NEIGHBOURHOODS AND ENVIRONMENT,ORCHARD RECYCLING SERVICE LTD,05/08/2022,2491.50 ,CONTRACTS,V001904088
ROCHDALE BOROUGH COUNCIL,05/08/2022,ADULT CARE LCO FUNCTIONS,ROUTES HEALTHCARE NORTH LTD,05/08/2022,94.92 ,HOME CARE - ADULT SERVICES,V001904090
ROCHDALE BOROUGH COUNCIL,05/08/2022,ADULT CARE LCO FUNCTIONS,ROUTES HEALTHCARE NORTH LTD,05/08/2022,244.08 ,HOME CARE - ADULT SERVICES,V001904091
ROCHDALE BOROUGH COUNCIL,05/08/2022,PUBLIC HEALTH,LIVERPOOL UNIVERSITY HOSPITALS NHS FOUNDATION TRUS,05/08/2022,135.00 ,PH OTHER CONTRACTS,V001904093
ROCHDALE BOROUGH COUNCIL,05/08/2022,ADULT CARE LCO FUNCTIONS,ROUTES HEALTHCARE NORTH LTD,05/08/2022,664.13 ,HOME CARE - ADULT SERVICES,V001904095
ROCHDALE BOROUGH COUNCIL,05/08/2022,EARLY HELP AND SCHOOLS,K S EDUCATION,05/08/2022,13621.14 ,OTHER LA`S - SEN PROVISION,V001904098
ROCHDALE BOROUGH COUNCIL,05/08/2022,EARLY HELP AND SCHOOLS,K S EDUCATION,05/08/2022,13621.14 ,OTHER LA`S - SEN PROVISION,V001904098
ROCHDALE BOROUGH COUNCIL,05/08/2022,ECONOMY DIRECTORATE, WALKER SIME LTD,05/08/2022,5400.00 ,CONSULTANTS FEES,V001904099
ROCHDALE BOROUGH COUNCIL,08/08/2022,PROPERTY AND HIGHWAYS,AGGREGATE INDUSTRIES UK LIMITED,08/08/2022,1000.37 ,HIGHWAYS CONTRACT,V001904105
ROCHDALE BOROUGH COUNCIL,08/08/2022,NEIGHBOURHOODS AND ENVIRONMENT,SCHNEIDER ELECTRIC LIMITED,08/08/2022,1666.50 ,SPECIFIED MAINTENANCE,V001904107
ROCHDALE BOROUGH COUNCIL,05/08/2022,ECONOMY DIRECTORATE,IRWELL STREET METALS,05/08/2022,257.16 ,REFUSE DISPOSAL,V001904109
ROCHDALE BOROUGH COUNCIL,05/08/2022,NEIGHBOURHOODS AND ENVIRONMENT,WHISTL UK LTD,05/08/2022,201.30 ,TRANSACTIONS-EXPENDITURE,V001904110
ROCHDALE BOROUGH COUNCIL,05/08/2022,NEIGHBOURHOODS AND ENVIRONMENT,BANNER GROUP LIMITED,05/08/2022,110.00 ,PRINTING & STATIONERY,V001904111
ROCHDALE BOROUGH COUNCIL,05/08/2022,ECONOMY DIRECTORATE,IRWELL STREET METALS,05/08/2022,171.44 ,REFUSE DISPOSAL,V001904115
ROCHDALE BOROUGH COUNCIL,02/08/2022,ADULT CARE LCO FUNCTIONS,TF JONES PROPERTY SERVICES LTD,02/08/2022,5478.96 ,MINOR BUILDING WORKS,V001904117
ROCHDALE BOROUGH COUNCIL,02/08/2022,PROPERTY AND HIGHWAYS,WEST WALLASEY CARE HIRE LTD,02/08/2022,476.00 ,REPAIRS & ALTS OF BUILDINGS,V001904130
ROCHDALE BOROUGH COUNCIL,02/08/2022,PROPERTY AND HIGHWAYS,AGGREGATE INDUSTRIES UK LIMITED,02/08/2022,933.73 ,HIGHWAYS CONTRACT,V001904131
ROCHDALE BOROUGH COUNCIL,02/08/2022,PROPERTY AND HIGHWAYS,FRANK KEY TOOL HIRE LTD,02/08/2022,140.00 ,REPAIRS & ALTS OF BUILDINGS,V001904136
ROCHDALE BOROUGH COUNCIL,02/08/2022,PROPERTY AND HIGHWAYS,FRANK KEY TOOL HIRE LTD,02/08/2022,150.00 ,REPAIRS & ALTS OF BUILDINGS,V001904137
ROCHDALE BOROUGH COUNCIL,02/08/2022,PROPERTY AND HIGHWAYS,FRANK KEY TOOL HIRE LTD,02/08/2022,168.00 ,REPAIRS & ALTS OF BUILDINGS,V001904138
ROCHDALE BOROUGH COUNCIL,02/08/2022,PROPERTY AND HIGHWAYS,MAYHURST BOLTON LTD,02/08/2022,744.42 ,TIPPING CHARGES,V001904139
ROCHDALE BOROUGH COUNCIL,03/08/2022,PROPERTY AND HIGHWAYS,ECS CONSULTANTS LTD,03/08/2022,6000.00 ,CAPITAL SALARIES,V001904141
ROCHDALE BOROUGH COUNCIL,02/08/2022,ECONOMY DIRECTORATE,S SECURITY GROUP LTD,02/08/2022,661.92 ,SECURITY,V001904146
ROCHDALE BOROUGH COUNCIL,05/08/2022,NEIGHBOURHOODS AND ENVIRONMENT,EXCLUSEC,05/08/2022,1035.04 ,SECURITY,V001904160
ROCHDALE BOROUGH COUNCIL,05/08/2022,NEIGHBOURHOODS AND ENVIRONMENT,EXCLUSEC,05/08/2022,11266.67 ,SECURITY,V001904161
ROCHDALE BOROUGH COUNCIL,09/08/2022,CHILDREN�S SOCIAL CARE,KEY2 MOVINGON,09/08/2022,10832.50 ,YOUNG PEOPLES RENTS,V001904165
ROCHDALE BOROUGH COUNCIL,05/08/2022,PROPERTY AND HIGHWAYS,SYNTAX CONTROLS LIMITED,05/08/2022,429.00 ,MINOR BUILDING WORKS,V001904166
ROCHDALE BOROUGH COUNCIL,02/08/2022,ECONOMY DIRECTORATE,LK CONSULT LTD,02/08/2022,250.00 ,MINOR BUILDING WORKS,V001904170
ROCHDALE BOROUGH COUNCIL,01/08/2022,CHILDREN�S SOCIAL CARE,NORTHERN COMMUNITY PATHWAYS LTD,01/08/2022,209.31 ,YOUNGE PERSONS ALLOWANCE,V001904172
ROCHDALE BOROUGH COUNCIL,02/08/2022,NEIGHBOURHOODS AND ENVIRONMENT,SHORROCK TRICHEM LTD,02/08/2022,58.88 ,MAINTENANCE,V001904175
ROCHDALE BOROUGH COUNCIL,02/08/2022,CHILDREN�S SOCIAL CARE,INSPIRE CHILDRENS SERVICES LTD,02/08/2022,13180.20 ,EBD (EMOT & BEHAV DIFF) PLACEMENTS,V001904178
ROCHDALE BOROUGH COUNCIL,02/08/2022,NEIGHBOURHOODS AND ENVIRONMENT,BANNER GROUP LIMITED,02/08/2022,60.69 ,IT EQUIPMENT,V001904180
ROCHDALE BOROUGH COUNCIL,02/08/2022,CHILDREN�S SOCIAL CARE,FIRST AFFINITY FOSTERING SERVICES LTD,02/08/2022,4264.20 ,FOSTER PARENTS BASIC ALLOWANCE,V001904181
ROCHDALE BOROUGH COUNCIL,02/08/2022,CHILDREN�S SOCIAL CARE,EXCEPTIONAL CARE LTD,02/08/2022,24428.58 ,EBD (EMOT & BEHAV DIFF) PLACEMENTS,V001904183
ROCHDALE BOROUGH COUNCIL,02/08/2022,PROPERTY AND HIGHWAYS,ELECTRIC CENTER,02/08/2022,97.90 ,PROPERTY - WORKS ELEMENT,V001904188
ROCHDALE BOROUGH COUNCIL,02/08/2022,CHILDREN�S SOCIAL CARE,BY THE BRIDGE THERAPUTIC FOSTERING SERVICE,02/08/2022,4417.50 ,FOSTER PARENTS BASIC ALLOWANCE,V001904190
ROCHDALE BOROUGH COUNCIL,02/08/2022,CHILDREN�S SOCIAL CARE,BY THE BRIDGE THERAPUTIC FOSTERING SERVICE,02/08/2022,4611.30 ,FOSTER PARENTS BASIC ALLOWANCE,V001904191
ROCHDALE BOROUGH COUNCIL,02/08/2022,CHILDREN�S SOCIAL CARE,BY THE BRIDGE THERAPUTIC FOSTERING SERVICE,02/08/2022,3940.20 ,FOSTER PARENTS BASIC ALLOWANCE,V001904192
ROCHDALE BOROUGH COUNCIL,02/08/2022,CHILDREN�S SOCIAL CARE,BY THE BRIDGE THERAPUTIC FOSTERING SERVICE,02/08/2022,4029.75 ,FOSTER PARENTS BASIC ALLOWANCE,V001904193
ROCHDALE BOROUGH COUNCIL,02/08/2022,CHILDREN�S SOCIAL CARE,BY THE BRIDGE THERAPUTIC FOSTERING SERVICE,02/08/2022,4029.75 ,FOSTER PARENTS BASIC ALLOWANCE,V001904194
ROCHDALE BOROUGH COUNCIL,02/08/2022,CHILDREN�S SOCIAL CARE,BY THE BRIDGE THERAPUTIC FOSTERING SERVICE,02/08/2022,3977.95 ,FOSTER PARENTS BASIC ALLOWANCE,V001904195
ROCHDALE BOROUGH COUNCIL,02/08/2022,CHILDREN�S SOCIAL CARE,BY THE BRIDGE THERAPUTIC FOSTERING SERVICE,02/08/2022,4380.00 ,FOSTER PARENTS BASIC ALLOWANCE,V001904196
ROCHDALE BOROUGH COUNCIL,02/08/2022,CHILDREN�S SOCIAL CARE,BY THE BRIDGE THERAPUTIC FOSTERING SERVICE,02/08/2022,1194.88 ,FOSTER PARENTS BASIC ALLOWANCE,V001904197
ROCHDALE BOROUGH COUNCIL,02/08/2022,NEIGHBOURHOODS AND ENVIRONMENT,ALLIANCE DISPOSABLES LIMITED,02/08/2022,80.90 ,EQUIPMENT - GENERAL,V001904198
ROCHDALE BOROUGH COUNCIL,02/08/2022,NEIGHBOURHOODS AND ENVIRONMENT,ALLIANCE DISPOSABLES LIMITED,02/08/2022,93.25 ,EQUIPMENT - GENERAL,V001904198
ROCHDALE BOROUGH COUNCIL,05/08/2022,CHILDREN�S SOCIAL CARE,PARALLEL PARENTS,05/08/2022,3782.40 ,FOSTER PARENTS BASIC ALLOWANCE,V001904199
ROCHDALE BOROUGH COUNCIL,02/08/2022,CHILDREN�S SOCIAL CARE,PARALLEL PARENTS,02/08/2022,3900.00 ,FOSTER PARENTS BASIC ALLOWANCE,V001904200
ROCHDALE BOROUGH COUNCIL,02/08/2022,ECONOMY DIRECTORATE,CBRE LTD LONDON,02/08/2022,6000.00 ,CONSULTANTS FEES,V001904201
ROCHDALE BOROUGH COUNCIL,02/08/2022,ECONOMY DIRECTORATE,NISBETS PLC,02/08/2022,52.98 ,EQUIPMENT - GENERAL,V001904202
ROCHDALE BOROUGH COUNCIL,02/08/2022,ECONOMY DIRECTORATE,NISBETS PLC,02/08/2022,38.99 ,EQUIPMENT - GENERAL,V001904203
ROCHDALE BOROUGH COUNCIL,02/08/2022,CHILDREN�S SOCIAL CARE,CARE 4 CHILDREN RESIDENTIAL SERVICES,02/08/2022,2943.60 ,FOSTER PARENTS BASIC ALLOWANCE,V001904204
ROCHDALE BOROUGH COUNCIL,02/08/2022,CHILDREN�S SOCIAL CARE,CARE 4 CHILDREN RESIDENTIAL SERVICES,02/08/2022,2973.30 ,FOSTER PARENTS BASIC ALLOWANCE,V001904205
ROCHDALE BOROUGH COUNCIL,02/08/2022,PROPERTY AND HIGHWAYS,PHOENIX SOFTWARE LIMITED,02/08/2022,92.16 ,SOFTWARE,V001904206
ROCHDALE BOROUGH COUNCIL,02/08/2022,PROPERTY AND HIGHWAYS,PHOENIX SOFTWARE LIMITED,02/08/2022,92.16 ,SOFTWARE,V001904206
ROCHDALE BOROUGH COUNCIL,02/08/2022,CHILDREN�S SOCIAL CARE,CARE 4 CHILDREN RESIDENTIAL SERVICES,02/08/2022,3131.70 ,FOSTER PARENTS BASIC ALLOWANCE,V001904207
ROCHDALE BOROUGH COUNCIL,02/08/2022,NEIGHBOURHOODS AND ENVIRONMENT,TRANSPORT FOR GREATER MANCHESTER,02/08/2022,3159.00 ,ADVERTISING,V001904208
ROCHDALE BOROUGH COUNCIL,02/08/2022,CHILDREN�S SOCIAL CARE,CARE 4 CHILDREN RESIDENTIAL SERVICES,02/08/2022,3100.50 ,FOSTER PARENTS BASIC ALLOWANCE,V001904209
ROCHDALE BOROUGH COUNCIL,02/08/2022,NEIGHBOURHOODS AND ENVIRONMENT,CALVAG,02/08/2022,98.00 ,EQUIPMENT - GENERAL,V001904210
ROCHDALE BOROUGH COUNCIL,02/08/2022,CHILDREN�S SOCIAL CARE,COMPASS CHILDRENS HOMES LTD,02/08/2022,18428.70 ,EBD (EMOT & BEHAV DIFF) PLACEMENTS,V001904211
ROCHDALE BOROUGH COUNCIL,02/08/2022,CHILDREN�S SOCIAL CARE,CHILD ACTION NORTHWEST,02/08/2022,3124.20 ,FOSTER PARENTS BASIC ALLOWANCE,V001904212
ROCHDALE BOROUGH COUNCIL,02/08/2022,ECONOMY DIRECTORATE,MILLENNIUM HYGIENE SERVICES,02/08/2022,73.54 ,HYGIENE EQUIPMENT,V001904213
ROCHDALE BOROUGH COUNCIL,02/08/2022,ECONOMY DIRECTORATE,MILLENNIUM HYGIENE SERVICES,02/08/2022,42.68 ,HYGIENE EQUIPMENT,V001904214
ROCHDALE BOROUGH COUNCIL,02/08/2022,CHILDREN�S SOCIAL CARE,LORIMER FOSTER SERVICES,02/08/2022,3407.14 ,FOSTER PARENTS BASIC ALLOWANCE,V001904215
ROCHDALE BOROUGH COUNCIL,02/08/2022,CHILDREN�S SOCIAL CARE,ONEXTRA CARE LTD,02/08/2022,19500.00 ,EBD (EMOT & BEHAV DIFF) PLACEMENTS,V001904216
ROCHDALE BOROUGH COUNCIL,02/08/2022,CHILDREN�S SOCIAL CARE,ONEXTRA CARE LTD,02/08/2022,17100.00 ,EBD (EMOT & BEHAV DIFF) PLACEMENTS,V001904217
ROCHDALE BOROUGH COUNCIL,02/08/2022,EARLY HELP AND SCHOOLS,BEAN COFFEE LIVERPOOL LTD,02/08/2022,23.40 ,PROVISIONS,V001904218
ROCHDALE BOROUGH COUNCIL,05/08/2022,NEIGHBOURHOODS AND ENVIRONMENT,CORNERSTONE PLACE,05/08/2022,3735.25 ,CONDITION SURVEYS,V001904219
ROCHDALE BOROUGH COUNCIL,05/08/2022,NEIGHBOURHOODS AND ENVIRONMENT,EXCLUSEC,05/08/2022,299.64 ,SECURITY,V001904220
ROCHDALE BOROUGH COUNCIL,05/08/2022,NEIGHBOURHOODS AND ENVIRONMENT,AGILISYS LIMITED,05/08/2022,29484.50 ,AGILISYS CONTRACT,V001904223
ROCHDALE BOROUGH COUNCIL,05/08/2022,CHILDREN�S SOCIAL CARE,CARITAS CARE LTD,05/08/2022,2142.90 ,FOSTER PARENTS BASIC ALLOWANCE,V001904224
ROCHDALE BOROUGH COUNCIL,05/08/2022,CHILDREN�S SOCIAL CARE,CARITAS CARE LTD,05/08/2022,2142.90 ,FOSTER PARENTS BASIC ALLOWANCE,V001904224
ROCHDALE BOROUGH COUNCIL,05/08/2022,CHILDREN�S SOCIAL CARE,CARITAS CARE LTD,05/08/2022,2142.90 ,FOSTER PARENTS BASIC ALLOWANCE,V001904225
ROCHDALE BOROUGH COUNCIL,05/08/2022,CHILDREN�S SOCIAL CARE,CARITAS CARE LTD,05/08/2022,2142.90 ,FOSTER PARENTS BASIC ALLOWANCE,V001904225
ROCHDALE BOROUGH COUNCIL,05/08/2022,ECONOMY DIRECTORATE, WALKER SIME LTD,05/08/2022,7215.00 ,CONSULTANTS FEES,V001904226
ROCHDALE BOROUGH COUNCIL,05/08/2022,EARLY HELP AND SCHOOLS,HEMPSALLS,05/08/2022,439.00 ,TRAINING,V001904227
ROCHDALE BOROUGH COUNCIL,05/08/2022,CHILDREN�S SOCIAL CARE,THE NATIONAL FOSTERING AGENCY LIMITED,05/08/2022,4536.00 ,FOSTER PARENTS BASIC ALLOWANCE,V001904232
ROCHDALE BOROUGH COUNCIL,05/08/2022,NEIGHBOURHOODS AND ENVIRONMENT,GROUNDWORK GREATER MANCHESTER,05/08/2022,950.00 ,CAPITAL SALARIES,V001904233
ROCHDALE BOROUGH COUNCIL,08/08/2022,CHILDREN�S SOCIAL CARE,CARE AND COMMUNITY LTD,08/08/2022,535.71 ,YOUNG PEOPLES RENTS,V001904235
ROCHDALE BOROUGH COUNCIL,08/08/2022,NEIGHBOURHOODS AND ENVIRONMENT,BANNER GROUP LIMITED,08/08/2022,1.28 ,PRINTING & STATIONERY,V001904236
ROCHDALE BOROUGH COUNCIL,08/08/2022,NEIGHBOURHOODS AND ENVIRONMENT,BANNER GROUP LIMITED,08/08/2022,1.04 ,PRINTING & STATIONERY,V001904236
ROCHDALE BOROUGH COUNCIL,08/08/2022,NEIGHBOURHOODS AND ENVIRONMENT,BANNER GROUP LIMITED,08/08/2022,1.30 ,PRINTING & STATIONERY,V001904236
ROCHDALE BOROUGH COUNCIL,08/08/2022,NEIGHBOURHOODS AND ENVIRONMENT,BANNER GROUP LIMITED,08/08/2022,0.63 ,PRINTING & STATIONERY,V001904236
ROCHDALE BOROUGH COUNCIL,08/08/2022,NEIGHBOURHOODS AND ENVIRONMENT,BANNER GROUP LIMITED,08/08/2022,5.53 ,PRINTING & STATIONERY,V001904236
ROCHDALE BOROUGH COUNCIL,08/08/2022,NEIGHBOURHOODS AND ENVIRONMENT,BANNER GROUP LIMITED,08/08/2022,2.16 ,PRINTING & STATIONERY,V001904236
ROCHDALE BOROUGH COUNCIL,08/08/2022,NEIGHBOURHOODS AND ENVIRONMENT,BANNER GROUP LIMITED,08/08/2022,0.76 ,PRINTING & STATIONERY,V001904236
ROCHDALE BOROUGH COUNCIL,08/08/2022,NEIGHBOURHOODS AND ENVIRONMENT,BANNER GROUP LIMITED,08/08/2022,0.83 ,PRINTING & STATIONERY,V001904236
ROCHDALE BOROUGH COUNCIL,08/08/2022,NEIGHBOURHOODS AND ENVIRONMENT,COMPUTACENTER UK LIMITED,08/08/2022,19376.00 ,TRANSACTIONS-EXPENDITURE,V001904237
ROCHDALE BOROUGH COUNCIL,08/08/2022,NEIGHBOURHOODS AND ENVIRONMENT,COMPUTACENTER UK LIMITED,08/08/2022,19376.00 ,TRANSACTIONS-EXPENDITURE,V001904237
ROCHDALE BOROUGH COUNCIL,08/08/2022,RESOURCES,NEC SOFTWARE SOLUTIONS UK LTD,08/08/2022,4640.00 ,AGENCY STAFF,V001904239
ROCHDALE BOROUGH COUNCIL,08/08/2022,NEIGHBOURHOODS AND ENVIRONMENT,G AND A TAYLOR HOTELS LTD,08/08/2022,7819.50 ,ACCOMMODATION,V001904240
ROCHDALE BOROUGH COUNCIL,05/08/2022,NEIGHBOURHOODS AND ENVIRONMENT,XMA LIMITED,05/08/2022,3317.38 ,PURCHASE OF ICT HARDWARE,V001904241
ROCHDALE BOROUGH COUNCIL,01/08/2022,ECONOMY DIRECTORATE,DESIGN FIRE CONSULTANTS LTD,01/08/2022,1420.00 ,CONSULTANTS FEES,V001904244
ROCHDALE BOROUGH COUNCIL,08/08/2022,ADULT CARE LCO FUNCTIONS,TF JONES PROPERTY SERVICES LTD,08/08/2022,6951.07 ,MINOR BUILDING WORKS,V001904248
ROCHDALE BOROUGH COUNCIL,05/08/2022,NEIGHBOURHOODS AND ENVIRONMENT,PERMISERV LTD,05/08/2022,291.00 ,EQUIPMENT - GENERAL,V001904249
ROCHDALE BOROUGH COUNCIL,08/08/2022,NEIGHBOURHOODS AND ENVIRONMENT,PROBRUSH,08/08/2022,2450.04 ,EQUIPMENT - GENERAL,V001904252
ROCHDALE BOROUGH COUNCIL,08/08/2022,NEIGHBOURHOODS AND ENVIRONMENT,PROBRUSH,08/08/2022,2840.19 ,EQUIPMENT - GENERAL,V001904252
ROCHDALE BOROUGH COUNCIL,08/08/2022,NEIGHBOURHOODS AND ENVIRONMENT,PROBRUSH,08/08/2022,141.26 ,EQUIPMENT - GENERAL,V001904252
ROCHDALE BOROUGH COUNCIL,08/08/2022,CHILDREN�S SOCIAL CARE,BALTIMORE CONSULTING LTD,08/08/2022,1998.30 ,AGENCY STAFF,V001904253
ROCHDALE BOROUGH COUNCIL,02/08/2022,NEIGHBOURHOODS AND ENVIRONMENT,HENDHAM HOTEL LTD,02/08/2022,1425.00 ,ACCOMMODATION,V001904254
ROCHDALE BOROUGH COUNCIL,02/08/2022,NEIGHBOURHOODS AND ENVIRONMENT,ALLSTAR BUSINESS SOLUTIONS LTD,02/08/2022,76.07 ,FUEL,V001904269
ROCHDALE BOROUGH COUNCIL,02/08/2022,NEIGHBOURHOODS AND ENVIRONMENT,ALLSTAR BUSINESS SOLUTIONS LTD,02/08/2022,31.65 ,FUEL,V001904269
ROCHDALE BOROUGH COUNCIL,02/08/2022,NEIGHBOURHOODS AND ENVIRONMENT,ALLSTAR BUSINESS SOLUTIONS LTD,02/08/2022,85.23 ,FUEL,V001904269
ROCHDALE BOROUGH COUNCIL,02/08/2022,NEIGHBOURHOODS AND ENVIRONMENT,ALLSTAR BUSINESS SOLUTIONS LTD,02/08/2022,1097.77 ,FUEL,V001904269
ROCHDALE BOROUGH COUNCIL,02/08/2022,NEIGHBOURHOODS AND ENVIRONMENT,ALLSTAR BUSINESS SOLUTIONS LTD,02/08/2022,304.16 ,FUEL,V001904269
ROCHDALE BOROUGH COUNCIL,02/08/2022,NEIGHBOURHOODS AND ENVIRONMENT,ALLSTAR BUSINESS SOLUTIONS LTD,02/08/2022,200.32 ,FUEL,V001904269
ROCHDALE BOROUGH COUNCIL,02/08/2022,EARLY HELP AND SCHOOLS,ALLSTAR BUSINESS SOLUTIONS LTD,02/08/2022,100.75 ,FUEL,V001904269
ROCHDALE BOROUGH COUNCIL,02/08/2022,NEIGHBOURHOODS AND ENVIRONMENT,ALLSTAR BUSINESS SOLUTIONS LTD,02/08/2022,75.42 ,FUEL,V001904269
ROCHDALE BOROUGH COUNCIL,02/08/2022,CHILDREN�S SOCIAL CARE,ALLSTAR BUSINESS SOLUTIONS LTD,02/08/2022,48.29 ,FUEL,V001904269
ROCHDALE BOROUGH COUNCIL,02/08/2022,PROPERTY AND HIGHWAYS,ALLSTAR BUSINESS SOLUTIONS LTD,02/08/2022,50.11 ,CAR PARKING CONTRACT,V001904269
ROCHDALE BOROUGH COUNCIL,02/08/2022,PROPERTY AND HIGHWAYS,ALLSTAR BUSINESS SOLUTIONS LTD,02/08/2022,78.46 ,FUEL,V001904269
ROCHDALE BOROUGH COUNCIL,02/08/2022,PROPERTY AND HIGHWAYS,ALLSTAR BUSINESS SOLUTIONS LTD,02/08/2022,44.12 ,FUEL,V001904269
ROCHDALE BOROUGH COUNCIL,02/08/2022,NEIGHBOURHOODS AND ENVIRONMENT,SOLOPROTECT LTD,02/08/2022,309.28 ,SECURITY,V001904272
ROCHDALE BOROUGH COUNCIL,02/08/2022,EARLY HELP AND SCHOOLS,REDACTED - PERSONAL DATA,02/08/2022,4753.66 ,OTHER LA`S - SEN PROVISION,V001904280
ROCHDALE BOROUGH COUNCIL,02/08/2022,EARLY HELP AND SCHOOLS,REDACTED - PERSONAL DATA,02/08/2022,5148.83 ,OTHER LA`S - SEN PROVISION,V001904281
ROCHDALE BOROUGH COUNCIL,02/08/2022,EARLY HELP AND SCHOOLS,REDACTED - PERSONAL DATA,02/08/2022,4753.66 ,OTHER LA`S - SEN PROVISION,V001904282
ROCHDALE BOROUGH COUNCIL,02/08/2022,EARLY HELP AND SCHOOLS,REDACTED - PERSONAL DATA,02/08/2022,5662.33 ,OTHER LA`S - SEN PROVISION,V001904283
ROCHDALE BOROUGH COUNCIL,02/08/2022,EARLY HELP AND SCHOOLS,REDACTED - PERSONAL DATA,02/08/2022,1827.80 ,TRAVELLING GENERAL EXPENSES,V001904284
ROCHDALE BOROUGH COUNCIL,02/08/2022,EARLY HELP AND SCHOOLS,REDACTED - PERSONAL DATA,02/08/2022,981.67 ,TRAVELLING GENERAL EXPENSES,V001904285
ROCHDALE BOROUGH COUNCIL,05/08/2022,EARLY HELP AND SCHOOLS,OLDHAM COLLEGE,05/08/2022,32981.00 ,OTHER EST - SEN PROVISION,V001904286
ROCHDALE BOROUGH COUNCIL,08/08/2022,PROPERTY AND HIGHWAYS,JETCHEM SYSTEMS LTD,08/08/2022,1958.00 ,MINOR BUILDING WORKS,V001904288
ROCHDALE BOROUGH COUNCIL,05/08/2022,PROPERTY AND HIGHWAYS,MAYHURST BOLTON LTD,05/08/2022,1279.60 ,TIPPING CHARGES,V001904289
ROCHDALE BOROUGH COUNCIL,05/08/2022,PROPERTY AND HIGHWAYS,DAWSONGROUP SWEEPERS LTD,05/08/2022,1586.02 ,MINOR BUILDING WORKS,V001904290
ROCHDALE BOROUGH COUNCIL,05/08/2022,PROPERTY AND HIGHWAYS,DAWSONGROUP SWEEPERS LTD,05/08/2022,1586.02 ,MINOR BUILDING WORKS,V001904291
ROCHDALE BOROUGH COUNCIL,05/08/2022,PROPERTY AND HIGHWAYS,DAWSONGROUP SWEEPERS LTD,05/08/2022,1586.02 ,MINOR BUILDING WORKS,V001904292
ROCHDALE BOROUGH COUNCIL,05/08/2022,PROPERTY AND HIGHWAYS,DAWSONGROUP SWEEPERS LTD,05/08/2022,1586.02 ,MINOR BUILDING WORKS,V001904293
ROCHDALE BOROUGH COUNCIL,05/08/2022,PROPERTY AND HIGHWAYS,DAWSONGROUP SWEEPERS LTD,05/08/2022,1586.02 ,MINOR BUILDING WORKS,V001904294
ROCHDALE BOROUGH COUNCIL,05/08/2022,PROPERTY AND HIGHWAYS,DAWSONGROUP SWEEPERS LTD,05/08/2022,1586.02 ,MINOR BUILDING WORKS,V001904295
ROCHDALE BOROUGH COUNCIL,05/08/2022,PROPERTY AND HIGHWAYS,DAWSONGROUP SWEEPERS LTD,05/08/2022,1586.02 ,MINOR BUILDING WORKS,V001904296
ROCHDALE BOROUGH COUNCIL,02/08/2022,CHILDREN�S SOCIAL CARE,NORTHERN COMMUNITY PATHWAYS LTD,02/08/2022,3351.43 ,YOUNG PEOPLES RENTS,V001904298
ROCHDALE BOROUGH COUNCIL,02/08/2022,CHILDREN�S SOCIAL CARE,NORTHERN COMMUNITY PATHWAYS LTD,02/08/2022,-550.00 ,YOUNG PEOPLES RENTS,V001904299
ROCHDALE BOROUGH COUNCIL,02/08/2022,ECONOMY DIRECTORATE,DWF LAW LLP,02/08/2022,2016.00 ,CONSULTANTS FEES,V001904315
ROCHDALE BOROUGH COUNCIL,01/08/2022,ECONOMY DIRECTORATE,CONSTELLIA CONSULTANCY LTD,01/08/2022,36503.21 ,CONSULTANTS FEES,V001904316
ROCHDALE BOROUGH COUNCIL,02/08/2022,PROPERTY AND HIGHWAYS,REACH PUBLISHING SERVICES LTD,02/08/2022,111.24 ,LEGAL SERVICES INTERNAL,V001904320
ROCHDALE BOROUGH COUNCIL,02/08/2022,PROPERTY AND HIGHWAYS,REACH PUBLISHING SERVICES LTD,02/08/2022,129.78 ,LEGAL SERVICES INTERNAL,V001904321
ROCHDALE BOROUGH COUNCIL,02/08/2022,PROPERTY AND HIGHWAYS,REACH PUBLISHING SERVICES LTD,02/08/2022,101.97 ,LEGAL SERVICES INTERNAL,V001904322
ROCHDALE BOROUGH COUNCIL,02/08/2022,NEIGHBOURHOODS AND ENVIRONMENT,BEAN COFFEE LIVERPOOL LTD,02/08/2022,114.40 ,REFRESHMENTS,V001904323
ROCHDALE BOROUGH COUNCIL,05/08/2022,NEIGHBOURHOODS AND ENVIRONMENT,ADLIB AUDIO LTD,05/08/2022,3050.00 ,CONSULTANT FEES,V001904325
ROCHDALE BOROUGH COUNCIL,05/08/2022,NEIGHBOURHOODS AND ENVIRONMENT,WHISTL UK LTD,05/08/2022,602.52 ,TRANSACTIONS-EXPENDITURE,V001904327
ROCHDALE BOROUGH COUNCIL,01/08/2022,EARLY HELP AND SCHOOLS,ARJO UK LTD,01/08/2022,54.00 ,SPECIFIED MAINTENANCE,V001904329
ROCHDALE BOROUGH COUNCIL,02/08/2022,NEIGHBOURHOODS AND ENVIRONMENT,SHORROCK TRICHEM LTD,02/08/2022,127.64 ,MAINTENANCE,V001904330
ROCHDALE BOROUGH COUNCIL,08/08/2022,PROPERTY AND HIGHWAYS,ELECTRIC CENTER,08/08/2022,38.58 ,PROPERTY - WORKS ELEMENT,V001904333
ROCHDALE BOROUGH COUNCIL,08/08/2022,RESOURCES,HB EDITORIAL SERVICES LTD,08/08/2022,3995.00 ,SUBSCRIPTIONS,V001904334
ROCHDALE BOROUGH COUNCIL,08/08/2022,RESOURCES,MANCHESTER UNIVERSITY NHS FOUNDATION TRUST MFT,08/08/2022,109.00 ,CHILDRENS POST MORTEMS,V001904335
ROCHDALE BOROUGH COUNCIL,08/08/2022,CHILDREN�S SOCIAL CARE,THREE CIRCLES FOSTERING,08/08/2022,3578.57 ,FOSTER PARENTS BASIC ALLOWANCE,V001904336
ROCHDALE BOROUGH COUNCIL,05/08/2022,NEIGHBOURHOODS AND ENVIRONMENT,ROYAL MAIL GROUP LTD,05/08/2022,99.70 ,POSTAGE,V001904337
ROCHDALE BOROUGH COUNCIL,08/08/2022,CHILDREN�S SOCIAL CARE,THREE CIRCLES FOSTERING,08/08/2022,3420.00 ,FOSTER PARENTS BASIC ALLOWANCE,V001904338
ROCHDALE BOROUGH COUNCIL,08/08/2022,CHILDREN�S SOCIAL CARE,THREE CIRCLES FOSTERING,08/08/2022,3334.29 ,FOSTER PARENTS BASIC ALLOWANCE,V001904339
ROCHDALE BOROUGH COUNCIL,08/08/2022,CHILDREN�S SOCIAL CARE,THREE CIRCLES FOSTERING,08/08/2022,3420.00 ,FOSTER PARENTS BASIC ALLOWANCE,V001904340
ROCHDALE BOROUGH COUNCIL,08/08/2022,CHILDREN�S SOCIAL CARE,THREE CIRCLES FOSTERING,08/08/2022,333.72 ,FOSTER PARENTS BASIC ALLOWANCE,V001904341
ROCHDALE BOROUGH COUNCIL,08/08/2022,CHILDREN�S SOCIAL CARE,THREE CIRCLES FOSTERING,08/08/2022,83.43 ,FOSTER PARENTS BASIC ALLOWANCE,V001904341
ROCHDALE BOROUGH COUNCIL,08/08/2022,CHILDREN�S SOCIAL CARE,BALTIMORE CONSULTING LTD,08/08/2022,1650.90 ,AGENCY STAFF,V001904342
ROCHDALE BOROUGH COUNCIL,08/08/2022,CHILDREN�S SOCIAL CARE,EASY AVENUES LTD,08/08/2022,78.78 ,STAFF TRAVELLING EXPENSES,V001904344
ROCHDALE BOROUGH COUNCIL,16/08/2022,ADULT CARE LCO FUNCTIONS,TF JONES PROPERTY SERVICES LTD,16/08/2022,4646.26 ,MINOR BUILDING WORKS,V001904345
ROCHDALE BOROUGH COUNCIL,02/08/2022,ECONOMY DIRECTORATE,VPS UK LTD,02/08/2022,43.80 ,REPAIRS & ALTS OF BUILDINGS,V001904346
ROCHDALE BOROUGH COUNCIL,02/08/2022,CHILDREN�S SOCIAL CARE,WITHERSLACK INTEGRATED PROVISION,02/08/2022,16294.66 ,EBD (EMOT & BEHAV DIFF) PLACEMENTS,V001904347
ROCHDALE BOROUGH COUNCIL,02/08/2022,ADULT CARE LCO FUNCTIONS,TF JONES PROPERTY SERVICES LTD,02/08/2022,5750.27 ,MINOR BUILDING WORKS,V001904354
ROCHDALE BOROUGH COUNCIL,02/08/2022,ADULT CARE LCO FUNCTIONS,TF JONES PROPERTY SERVICES LTD,02/08/2022,5713.86 ,MINOR BUILDING WORKS,V001904355
ROCHDALE BOROUGH COUNCIL,08/08/2022,NEIGHBOURHOODS AND ENVIRONMENT,SYNECTICS SECURITY LTD,08/08/2022,3664.27 ,MINOR BUILDING WORKS,V001904356
ROCHDALE BOROUGH COUNCIL,02/08/2022,EARLY HELP AND SCHOOLS,INSPIREDSPACES ROCHDALE PROJECTCO2 LTD,02/08/2022,441839.01 ,PFI SCHEMES RPIX,V001904357
ROCHDALE BOROUGH COUNCIL,01/08/2022,EARLY HELP AND SCHOOLS,INSPIREDSPACES ROCHDALE PROJECT CO1 LTD,01/08/2022,387942.26 ,PFI SCHEMES RPIX,V001904358
ROCHDALE BOROUGH COUNCIL,01/08/2022,EARLY HELP AND SCHOOLS,PENNINE CARE IN PATIENT SERVICES PRIORY,01/08/2022,375.00 ,OTHER EST - SEN PROVISION,V001904360
ROCHDALE BOROUGH COUNCIL,09/08/2022,NEIGHBOURHOODS AND ENVIRONMENT,ACS BUSINESS SUPPLIES,09/08/2022,839.27 ,PRINTING & STATIONERY,V001904364
ROCHDALE BOROUGH COUNCIL,05/08/2022,ECONOMY DIRECTORATE,RESTORATION PROJECTS LTD,05/08/2022,26031.74 ,MINOR BUILDING WORKS,V001904366
ROCHDALE BOROUGH COUNCIL,02/08/2022,PROPERTY AND HIGHWAYS,NRG ILLUMINATION LTD,02/08/2022,91931.71 ,MINOR BUILDING WORKS,V001904367
ROCHDALE BOROUGH COUNCIL,08/08/2022,PROPERTY AND HIGHWAYS,ELECTRIC CENTER,08/08/2022,93.44 ,PROPERTY - WORKS ELEMENT,V001904369
ROCHDALE BOROUGH COUNCIL,05/08/2022,PROPERTY AND HIGHWAYS,ELECTRIC CENTER,05/08/2022,4.45 ,PROPERTY - WORKS ELEMENT,V001904370
ROCHDALE BOROUGH COUNCIL,05/08/2022,PROPERTY AND HIGHWAYS,ELECTRIC CENTER,05/08/2022,13.05 ,PROPERTY - WORKS ELEMENT,V001904372
ROCHDALE BOROUGH COUNCIL,05/08/2022,PROPERTY AND HIGHWAYS,ELECTRIC CENTER,05/08/2022,143.60 ,PROPERTY - WORKS ELEMENT,V001904373
ROCHDALE BOROUGH COUNCIL,05/08/2022,PROPERTY AND HIGHWAYS,ELECTRIC CENTER,05/08/2022,122.56 ,PROPERTY - WORKS ELEMENT,V001904374
ROCHDALE BOROUGH COUNCIL,05/08/2022,CHILDREN�S SOCIAL CARE,THE BIG WORD,05/08/2022,1895.07 ,TRANSLATION & INTERPRETATION,V001904381
ROCHDALE BOROUGH COUNCIL,05/08/2022,CHILDREN�S SOCIAL CARE,THE BIG WORD,05/08/2022,118.61 ,TRANSLATION & INTERPRETATION,V001904381
ROCHDALE BOROUGH COUNCIL,05/08/2022,NEIGHBOURHOODS AND ENVIRONMENT,THE BIG WORD,05/08/2022,190.69 ,TRANSLATION & INTERPRETATION,V001904381
ROCHDALE BOROUGH COUNCIL,05/08/2022,EARLY HELP AND SCHOOLS,THE BIG WORD,05/08/2022,7.30 ,TRANSLATION & INTERPRETATION,V001904381
ROCHDALE BOROUGH COUNCIL,05/08/2022,EARLY HELP AND SCHOOLS,THE BIG WORD,05/08/2022,34.83 ,TRANSLATION & INTERPRETATION,V001904381
ROCHDALE BOROUGH COUNCIL,05/08/2022,ADULT CARE LCO FUNCTIONS,THE BIG WORD,05/08/2022,120.27 ,TRANSLATION & INTERPRETATION,V001904381
ROCHDALE BOROUGH COUNCIL,05/08/2022,EARLY HELP AND SCHOOLS,THE BIG WORD,05/08/2022,74.01 ,TRANSLATION & INTERPRETATION,V001904381
ROCHDALE BOROUGH COUNCIL,05/08/2022,EARLY HELP AND SCHOOLS,THE BIG WORD,05/08/2022,62.84 ,TRANSLATION & INTERPRETATION,V001904381
ROCHDALE BOROUGH COUNCIL,05/08/2022,NEIGHBOURHOODS AND ENVIRONMENT,THE BIG WORD,05/08/2022,51.83 ,TRANSLATION & INTERPRETATION,V001904381
ROCHDALE BOROUGH COUNCIL,01/08/2022,PROPERTY AND HIGHWAYS,VINK UK LIMITED,01/08/2022,245.34 ,PROPERTY - WORKS ELEMENT,V001904385
ROCHDALE BOROUGH COUNCIL,05/08/2022,NEIGHBOURHOODS AND ENVIRONMENT,CICELEY COMMERCIALS LIMITED,05/08/2022,59.40 ,VEHICLE MAINTENANCE,V001904387
ROCHDALE BOROUGH COUNCIL,02/08/2022,NEIGHBOURHOODS AND ENVIRONMENT,QUICKCO,02/08/2022,69.50 ,TRANSACTIONS-EXPENDITURE,V001904388
ROCHDALE BOROUGH COUNCIL,02/08/2022,NEIGHBOURHOODS AND ENVIRONMENT,QUICKCO,02/08/2022,69.50 ,TRANSACTIONS-EXPENDITURE,V001904388
ROCHDALE BOROUGH COUNCIL,02/08/2022,NEIGHBOURHOODS AND ENVIRONMENT,DENNIS EAGLE LTD,02/08/2022,123.13 ,VEHICLE MAINTENANCE,V001904389
ROCHDALE BOROUGH COUNCIL,02/08/2022,NEIGHBOURHOODS AND ENVIRONMENT,DENNIS EAGLE LTD,02/08/2022,95.20 ,VEHICLE MAINTENANCE,V001904389
ROCHDALE BOROUGH COUNCIL,02/08/2022,NEIGHBOURHOODS AND ENVIRONMENT,DENNIS EAGLE LTD,02/08/2022,45.00 ,VEHICLE MAINTENANCE,V001904389
ROCHDALE BOROUGH COUNCIL,02/08/2022,NEIGHBOURHOODS AND ENVIRONMENT,F R SHARROCK LIMITED,02/08/2022,408.00 ,TRANSACTIONS-EXPENDITURE,V001904391
ROCHDALE BOROUGH COUNCIL,02/08/2022,NEIGHBOURHOODS AND ENVIRONMENT,F R SHARROCK LIMITED,02/08/2022,17.85 ,TRANSACTIONS-EXPENDITURE,V001904391
ROCHDALE BOROUGH COUNCIL,02/08/2022,NEIGHBOURHOODS AND ENVIRONMENT,F R SHARROCK LIMITED,02/08/2022,483.89 ,VEHICLE MAINTENANCE,V001904392
ROCHDALE BOROUGH COUNCIL,02/08/2022,NEIGHBOURHOODS AND ENVIRONMENT,F R SHARROCK LIMITED,02/08/2022,22.70 ,VEHICLE MAINTENANCE,V001904392
ROCHDALE BOROUGH COUNCIL,02/08/2022,NEIGHBOURHOODS AND ENVIRONMENT,F R SHARROCK LIMITED,02/08/2022,30.48 ,TRANSACTIONS-EXPENDITURE,V001904393
ROCHDALE BOROUGH COUNCIL,02/08/2022,NEIGHBOURHOODS AND ENVIRONMENT,F R SHARROCK LIMITED,02/08/2022,8.02 ,TRANSACTIONS-EXPENDITURE,V001904393
ROCHDALE BOROUGH COUNCIL,02/08/2022,NEIGHBOURHOODS AND ENVIRONMENT,F R SHARROCK LIMITED,02/08/2022,193.40 ,TRANSACTIONS-EXPENDITURE,V001904393
ROCHDALE BOROUGH COUNCIL,02/08/2022,NEIGHBOURHOODS AND ENVIRONMENT,F R SHARROCK LIMITED,02/08/2022,208.30 ,TRANSACTIONS-EXPENDITURE,V001904394
ROCHDALE BOROUGH COUNCIL,02/08/2022,NEIGHBOURHOODS AND ENVIRONMENT,ROLAND BARNES MAINTENANCE,02/08/2022,110.84 ,VEHICLE MAINTENANCE,V001904396
ROCHDALE BOROUGH COUNCIL,02/08/2022,NEIGHBOURHOODS AND ENVIRONMENT,ROLAND BARNES MAINTENANCE,02/08/2022,34.80 ,VEHICLE MAINTENANCE,V001904397
ROCHDALE BOROUGH COUNCIL,02/08/2022,NEIGHBOURHOODS AND ENVIRONMENT,ROLAND BARNES MAINTENANCE,02/08/2022,25.00 ,VEHICLE MAINTENANCE,V001904397
ROCHDALE BOROUGH COUNCIL,02/08/2022,NEIGHBOURHOODS AND ENVIRONMENT,ROLAND BARNES MAINTENANCE,02/08/2022,5.44 ,VEHICLE MAINTENANCE,V001904397
ROCHDALE BOROUGH COUNCIL,02/08/2022,NEIGHBOURHOODS AND ENVIRONMENT,ROLAND BARNES MAINTENANCE,02/08/2022,14.85 ,VEHICLE MAINTENANCE,V001904397
ROCHDALE BOROUGH COUNCIL,02/08/2022,NEIGHBOURHOODS AND ENVIRONMENT,ROLAND BARNES MAINTENANCE,02/08/2022,26.25 ,VEHICLE MAINTENANCE,V001904397
ROCHDALE BOROUGH COUNCIL,02/08/2022,NEIGHBOURHOODS AND ENVIRONMENT,ROLAND BARNES MAINTENANCE,02/08/2022,47.50 ,VEHICLE MAINTENANCE,V001904397
ROCHDALE BOROUGH COUNCIL,02/08/2022,NEIGHBOURHOODS AND ENVIRONMENT,ROLAND BARNES MAINTENANCE,02/08/2022,114.75 ,VEHICLE MAINTENANCE,V001904397
ROCHDALE BOROUGH COUNCIL,02/08/2022,NEIGHBOURHOODS AND ENVIRONMENT,ROLAND BARNES MAINTENANCE,02/08/2022,8.98 ,VEHICLE MAINTENANCE,V001904397
ROCHDALE BOROUGH COUNCIL,02/08/2022,NEIGHBOURHOODS AND ENVIRONMENT,ROLAND BARNES MAINTENANCE,02/08/2022,12.50 ,VEHICLE MAINTENANCE,V001904397
ROCHDALE BOROUGH COUNCIL,02/08/2022,NEIGHBOURHOODS AND ENVIRONMENT,ROLAND BARNES MAINTENANCE,02/08/2022,21.60 ,VEHICLE MAINTENANCE,V001904397
ROCHDALE BOROUGH COUNCIL,02/08/2022,NEIGHBOURHOODS AND ENVIRONMENT,ROLAND BARNES MAINTENANCE,02/08/2022,7.22 ,VEHICLE MAINTENANCE,V001904397
ROCHDALE BOROUGH COUNCIL,02/08/2022,NEIGHBOURHOODS AND ENVIRONMENT,ROLAND BARNES MAINTENANCE,02/08/2022,11.43 ,VEHICLE MAINTENANCE,V001904397
ROCHDALE BOROUGH COUNCIL,02/08/2022,NEIGHBOURHOODS AND ENVIRONMENT,ROLAND BARNES MAINTENANCE,02/08/2022,1.50 ,VEHICLE MAINTENANCE,V001904397
ROCHDALE BOROUGH COUNCIL,02/08/2022,NEIGHBOURHOODS AND ENVIRONMENT,ROLAND BARNES MAINTENANCE,02/08/2022,4.50 ,VEHICLE MAINTENANCE,V001904397
ROCHDALE BOROUGH COUNCIL,02/08/2022,NEIGHBOURHOODS AND ENVIRONMENT,ROLAND BARNES MAINTENANCE,02/08/2022,14.90 ,VEHICLE MAINTENANCE,V001904397
ROCHDALE BOROUGH COUNCIL,02/08/2022,NEIGHBOURHOODS AND ENVIRONMENT,ROLAND BARNES MAINTENANCE,02/08/2022,16.90 ,VEHICLE MAINTENANCE,V001904397
ROCHDALE BOROUGH COUNCIL,02/08/2022,NEIGHBOURHOODS AND ENVIRONMENT,ROLAND BARNES MAINTENANCE,02/08/2022,18.94 ,VEHICLE MAINTENANCE,V001904397
ROCHDALE BOROUGH COUNCIL,02/08/2022,NEIGHBOURHOODS AND ENVIRONMENT,ROLAND BARNES MAINTENANCE,02/08/2022,23.26 ,VEHICLE MAINTENANCE,V001904397
ROCHDALE BOROUGH COUNCIL,02/08/2022,NEIGHBOURHOODS AND ENVIRONMENT,ROLAND BARNES MAINTENANCE,02/08/2022,32.11 ,VEHICLE MAINTENANCE,V001904397
ROCHDALE BOROUGH COUNCIL,02/08/2022,NEIGHBOURHOODS AND ENVIRONMENT,CALIBRATION ENGINEERING SERVICES LTD,02/08/2022,105.00 ,WEAR AND TEAR,V001904399
ROCHDALE BOROUGH COUNCIL,02/08/2022,NEIGHBOURHOODS AND ENVIRONMENT,CALIBRATION ENGINEERING SERVICES LTD,02/08/2022,25.00 ,WEAR AND TEAR,V001904399
ROCHDALE BOROUGH COUNCIL,02/08/2022,NEIGHBOURHOODS AND ENVIRONMENT,TERBERG MATEC UK LIMITED,02/08/2022,1450.71 ,VEHICLE MAINTENANCE,V001904400
ROCHDALE BOROUGH COUNCIL,02/08/2022,NEIGHBOURHOODS AND ENVIRONMENT,TERBERG MATEC UK LIMITED,02/08/2022,25.00 ,VEHICLE MAINTENANCE,V001904400
ROCHDALE BOROUGH COUNCIL,02/08/2022,NEIGHBOURHOODS AND ENVIRONMENT,F R SHARROCK LIMITED,02/08/2022,458.72 ,TRANSACTIONS-EXPENDITURE,V001904401
ROCHDALE BOROUGH COUNCIL,02/08/2022,NEIGHBOURHOODS AND ENVIRONMENT,F R SHARROCK LIMITED,02/08/2022,630.00 ,VEHICLE MAINTENANCE,V001904402
ROCHDALE BOROUGH COUNCIL,02/08/2022,NEIGHBOURHOODS AND ENVIRONMENT,VIZWEAR,02/08/2022,40.42 ,TRANSACTIONS-EXPENDITURE,V001904404
ROCHDALE BOROUGH COUNCIL,02/08/2022,NEIGHBOURHOODS AND ENVIRONMENT,VIZWEAR,02/08/2022,80.83 ,TRANSACTIONS-EXPENDITURE,V001904404
ROCHDALE BOROUGH COUNCIL,02/08/2022,NEIGHBOURHOODS AND ENVIRONMENT,VIZWEAR,02/08/2022,13.47 ,TRANSACTIONS-EXPENDITURE,V001904404
ROCHDALE BOROUGH COUNCIL,02/08/2022,NEIGHBOURHOODS AND ENVIRONMENT,VIZWEAR,02/08/2022,13.01 ,TRANSACTIONS-EXPENDITURE,V001904404
ROCHDALE BOROUGH COUNCIL,02/08/2022,NEIGHBOURHOODS AND ENVIRONMENT,VIZWEAR,02/08/2022,19.51 ,TRANSACTIONS-EXPENDITURE,V001904404
ROCHDALE BOROUGH COUNCIL,02/08/2022,NEIGHBOURHOODS AND ENVIRONMENT,VIZWEAR,02/08/2022,6.50 ,TRANSACTIONS-EXPENDITURE,V001904404
ROCHDALE BOROUGH COUNCIL,02/08/2022,NEIGHBOURHOODS AND ENVIRONMENT,VIZWEAR,02/08/2022,6.50 ,TRANSACTIONS-EXPENDITURE,V001904404
ROCHDALE BOROUGH COUNCIL,02/08/2022,NEIGHBOURHOODS AND ENVIRONMENT,VIZWEAR,02/08/2022,82.88 ,TRANSACTIONS-EXPENDITURE,V001904404
ROCHDALE BOROUGH COUNCIL,02/08/2022,NEIGHBOURHOODS AND ENVIRONMENT,VIZWEAR,02/08/2022,41.44 ,TRANSACTIONS-EXPENDITURE,V001904404
ROCHDALE BOROUGH COUNCIL,02/08/2022,NEIGHBOURHOODS AND ENVIRONMENT,VIZWEAR,02/08/2022,20.72 ,TRANSACTIONS-EXPENDITURE,V001904404
ROCHDALE BOROUGH COUNCIL,02/08/2022,NEIGHBOURHOODS AND ENVIRONMENT,VIZWEAR,02/08/2022,62.16 ,TRANSACTIONS-EXPENDITURE,V001904404
ROCHDALE BOROUGH COUNCIL,02/08/2022,NEIGHBOURHOODS AND ENVIRONMENT,VIZWEAR,02/08/2022,18.40 ,TRANSACTIONS-EXPENDITURE,V001904404
ROCHDALE BOROUGH COUNCIL,02/08/2022,NEIGHBOURHOODS AND ENVIRONMENT,VIZWEAR,02/08/2022,9.20 ,TRANSACTIONS-EXPENDITURE,V001904404
ROCHDALE BOROUGH COUNCIL,02/08/2022,NEIGHBOURHOODS AND ENVIRONMENT,VIZWEAR,02/08/2022,128.00 ,TRANSACTIONS-EXPENDITURE,V001904404
ROCHDALE BOROUGH COUNCIL,02/08/2022,NEIGHBOURHOODS AND ENVIRONMENT,VIZWEAR,02/08/2022,46.07 ,TRANSACTIONS-EXPENDITURE,V001904404
ROCHDALE BOROUGH COUNCIL,02/08/2022,NEIGHBOURHOODS AND ENVIRONMENT,F R SHARROCK LIMITED,02/08/2022,136.35 ,TRANSACTIONS-EXPENDITURE,V001904406
ROCHDALE BOROUGH COUNCIL,02/08/2022,NEIGHBOURHOODS AND ENVIRONMENT,BALMERS GM LTD,02/08/2022,22.91 ,TRANSACTIONS-EXPENDITURE,V001904407
ROCHDALE BOROUGH COUNCIL,02/08/2022,NEIGHBOURHOODS AND ENVIRONMENT,BALMERS GM LTD,02/08/2022,22.91 ,TRANSACTIONS-EXPENDITURE,V001904407
ROCHDALE BOROUGH COUNCIL,02/08/2022,NEIGHBOURHOODS AND ENVIRONMENT,BALMERS GM LTD,02/08/2022,20.68 ,TRANSACTIONS-EXPENDITURE,V001904407
ROCHDALE BOROUGH COUNCIL,02/08/2022,NEIGHBOURHOODS AND ENVIRONMENT,BALMERS GM LTD,02/08/2022,20.68 ,TRANSACTIONS-EXPENDITURE,V001904407
ROCHDALE BOROUGH COUNCIL,02/08/2022,NEIGHBOURHOODS AND ENVIRONMENT,ARCO GROUP LIMITED,02/08/2022,60.11 ,TRANSACTIONS-EXPENDITURE,V001904408
ROCHDALE BOROUGH COUNCIL,02/08/2022,NEIGHBOURHOODS AND ENVIRONMENT,ARCO GROUP LIMITED,02/08/2022,60.11 ,TRANSACTIONS-EXPENDITURE,V001904408
ROCHDALE BOROUGH COUNCIL,02/08/2022,NEIGHBOURHOODS AND ENVIRONMENT,ARCO GROUP LIMITED,02/08/2022,60.11 ,TRANSACTIONS-EXPENDITURE,V001904408
ROCHDALE BOROUGH COUNCIL,02/08/2022,NEIGHBOURHOODS AND ENVIRONMENT,BALMERS GM LTD,02/08/2022,75.61 ,TRANSACTIONS-EXPENDITURE,V001904409
ROCHDALE BOROUGH COUNCIL,02/08/2022,NEIGHBOURHOODS AND ENVIRONMENT,BALMERS GM LTD,02/08/2022,75.61 ,TRANSACTIONS-EXPENDITURE,V001904409
ROCHDALE BOROUGH COUNCIL,02/08/2022,NEIGHBOURHOODS AND ENVIRONMENT,BALMERS GM LTD,02/08/2022,94.17 ,TRANSACTIONS-EXPENDITURE,V001904409
ROCHDALE BOROUGH COUNCIL,02/08/2022,NEIGHBOURHOODS AND ENVIRONMENT,BALMERS GM LTD,02/08/2022,94.17 ,TRANSACTIONS-EXPENDITURE,V001904409
ROCHDALE BOROUGH COUNCIL,02/08/2022,NEIGHBOURHOODS AND ENVIRONMENT,ARCO GROUP LIMITED,02/08/2022,53.10 ,TRANSACTIONS-EXPENDITURE,V001904410
ROCHDALE BOROUGH COUNCIL,02/08/2022,NEIGHBOURHOODS AND ENVIRONMENT,ARCO GROUP LIMITED,02/08/2022,53.10 ,TRANSACTIONS-EXPENDITURE,V001904410
ROCHDALE BOROUGH COUNCIL,02/08/2022,NEIGHBOURHOODS AND ENVIRONMENT,ARCO GROUP LIMITED,02/08/2022,53.10 ,TRANSACTIONS-EXPENDITURE,V001904410
ROCHDALE BOROUGH COUNCIL,02/08/2022,NEIGHBOURHOODS AND ENVIRONMENT,ARCO GROUP LIMITED,02/08/2022,106.26 ,TRANSACTIONS-EXPENDITURE,V001904411
ROCHDALE BOROUGH COUNCIL,02/08/2022,NEIGHBOURHOODS AND ENVIRONMENT,ARCO GROUP LIMITED,02/08/2022,106.26 ,TRANSACTIONS-EXPENDITURE,V001904411
ROCHDALE BOROUGH COUNCIL,02/08/2022,NEIGHBOURHOODS AND ENVIRONMENT,ARCO GROUP LIMITED,02/08/2022,106.26 ,TRANSACTIONS-EXPENDITURE,V001904411
ROCHDALE BOROUGH COUNCIL,02/08/2022,NEIGHBOURHOODS AND ENVIRONMENT,ARCO GROUP LIMITED,02/08/2022,106.24 ,TRANSACTIONS-EXPENDITURE,V001904411
ROCHDALE BOROUGH COUNCIL,02/08/2022,NEIGHBOURHOODS AND ENVIRONMENT,ARCO GROUP LIMITED,02/08/2022,106.24 ,TRANSACTIONS-EXPENDITURE,V001904411
ROCHDALE BOROUGH COUNCIL,02/08/2022,NEIGHBOURHOODS AND ENVIRONMENT,ARCO GROUP LIMITED,02/08/2022,106.24 ,TRANSACTIONS-EXPENDITURE,V001904411
ROCHDALE BOROUGH COUNCIL,02/08/2022,NEIGHBOURHOODS AND ENVIRONMENT,ARCO GROUP LIMITED,02/08/2022,53.10 ,TRANSACTIONS-EXPENDITURE,V001904411
ROCHDALE BOROUGH COUNCIL,02/08/2022,NEIGHBOURHOODS AND ENVIRONMENT,ARCO GROUP LIMITED,02/08/2022,53.10 ,TRANSACTIONS-EXPENDITURE,V001904411
ROCHDALE BOROUGH COUNCIL,02/08/2022,NEIGHBOURHOODS AND ENVIRONMENT,ARCO GROUP LIMITED,02/08/2022,53.10 ,TRANSACTIONS-EXPENDITURE,V001904411
ROCHDALE BOROUGH COUNCIL,02/08/2022,NEIGHBOURHOODS AND ENVIRONMENT,THE HELPING HAND COMPANY LTD,02/08/2022,775.80 ,TRANSACTIONS-EXPENDITURE,V001904412
ROCHDALE BOROUGH COUNCIL,05/08/2022,NEIGHBOURHOODS AND ENVIRONMENT,CICELEY COMMERCIALS LIMITED,05/08/2022,6.51 ,VEHICLE MAINTENANCE,V001904413
ROCHDALE BOROUGH COUNCIL,04/08/2022,NEIGHBOURHOODS AND ENVIRONMENT,PARTSPLUS,04/08/2022,287.98 ,VEHICLE MAINTENANCE,V001904414
ROCHDALE BOROUGH COUNCIL,04/08/2022,NEIGHBOURHOODS AND ENVIRONMENT,PARTSPLUS,04/08/2022,65.97 ,VEHICLE MAINTENANCE,V001904414
ROCHDALE BOROUGH COUNCIL,02/08/2022,NEIGHBOURHOODS AND ENVIRONMENT,FAUN ZOELLER UK LTD,02/08/2022,16.50 ,VEHICLE MAINTENANCE,V001904415
ROCHDALE BOROUGH COUNCIL,02/08/2022,NEIGHBOURHOODS AND ENVIRONMENT,FAUN ZOELLER UK LTD,02/08/2022,127.25 ,VEHICLE MAINTENANCE,V001904415
ROCHDALE BOROUGH COUNCIL,05/08/2022,NEIGHBOURHOODS AND ENVIRONMENT,CICELEY COMMERCIALS LIMITED,05/08/2022,8.55 ,VEHICLE MAINTENANCE,V001904416
ROCHDALE BOROUGH COUNCIL,05/08/2022,NEIGHBOURHOODS AND ENVIRONMENT,UK TELEMATICS LTD,05/08/2022,126.00 ,VEHICLE MAINTENANCE,V001904418
ROCHDALE BOROUGH COUNCIL,05/08/2022,NEIGHBOURHOODS AND ENVIRONMENT,UK TELEMATICS LTD,05/08/2022,68.25 ,VEHICLE MAINTENANCE,V001904419
ROCHDALE BOROUGH COUNCIL,05/08/2022,NEIGHBOURHOODS AND ENVIRONMENT,UK TELEMATICS LTD,05/08/2022,57.75 ,WEAR AND TEAR,V001904420
ROCHDALE BOROUGH COUNCIL,05/08/2022,NEIGHBOURHOODS AND ENVIRONMENT,LODGE TYRE CO LTD,05/08/2022,7218.00 ,TYRES,V001904421
ROCHDALE BOROUGH COUNCIL,05/08/2022,NEIGHBOURHOODS AND ENVIRONMENT,BERENDSEN UK LTD,05/08/2022,614.27 ,"CLOTHES, UNIFORM AND LAUNDRY",V001904422
ROCHDALE BOROUGH COUNCIL,05/08/2022,NEIGHBOURHOODS AND ENVIRONMENT,FAUN ZOELLER UK LTD,05/08/2022,1693.96 ,VEHICLE MAINTENANCE,V001904424
ROCHDALE BOROUGH COUNCIL,05/08/2022,NEIGHBOURHOODS AND ENVIRONMENT,F R SHARROCK LIMITED,05/08/2022,265.44 ,TRANSACTIONS-EXPENDITURE,V001904425
ROCHDALE BOROUGH COUNCIL,05/08/2022,NEIGHBOURHOODS AND ENVIRONMENT,LODGE TYRE CO LTD,05/08/2022,107.15 ,VEHICLE MAINTENANCE,V001904426
ROCHDALE BOROUGH COUNCIL,05/08/2022,NEIGHBOURHOODS AND ENVIRONMENT,BOC LIMITED,05/08/2022,34.00 ,VEHICLE MAINTENANCE,V001904427
ROCHDALE BOROUGH COUNCIL,05/08/2022,NEIGHBOURHOODS AND ENVIRONMENT,BOC LIMITED,05/08/2022,34.00 ,VEHICLE MAINTENANCE,V001904427
ROCHDALE BOROUGH COUNCIL,05/08/2022,NEIGHBOURHOODS AND ENVIRONMENT,BOC LIMITED,05/08/2022,75.40 ,VEHICLE MAINTENANCE,V001904427
ROCHDALE BOROUGH COUNCIL,05/08/2022,NEIGHBOURHOODS AND ENVIRONMENT,BOC LIMITED,05/08/2022,75.40 ,VEHICLE MAINTENANCE,V001904427
ROCHDALE BOROUGH COUNCIL,05/08/2022,NEIGHBOURHOODS AND ENVIRONMENT,BOC LIMITED,05/08/2022,19.85 ,VEHICLE MAINTENANCE,V001904427
ROCHDALE BOROUGH COUNCIL,05/08/2022,NEIGHBOURHOODS AND ENVIRONMENT,BOC LIMITED,05/08/2022,19.85 ,VEHICLE MAINTENANCE,V001904427
ROCHDALE BOROUGH COUNCIL,05/08/2022,NEIGHBOURHOODS AND ENVIRONMENT,BOC LIMITED,05/08/2022,74.40 ,VEHICLE MAINTENANCE,V001904427
ROCHDALE BOROUGH COUNCIL,05/08/2022,NEIGHBOURHOODS AND ENVIRONMENT,BOC LIMITED,05/08/2022,74.40 ,VEHICLE MAINTENANCE,V001904427
ROCHDALE BOROUGH COUNCIL,05/08/2022,NEIGHBOURHOODS AND ENVIRONMENT,BOC LIMITED,05/08/2022,99.20 ,VEHICLE MAINTENANCE,V001904427
ROCHDALE BOROUGH COUNCIL,05/08/2022,NEIGHBOURHOODS AND ENVIRONMENT,BOC LIMITED,05/08/2022,99.20 ,VEHICLE MAINTENANCE,V001904427
ROCHDALE BOROUGH COUNCIL,05/08/2022,NEIGHBOURHOODS AND ENVIRONMENT,BOC LIMITED,05/08/2022,7.00 ,VEHICLE MAINTENANCE,V001904427
ROCHDALE BOROUGH COUNCIL,05/08/2022,NEIGHBOURHOODS AND ENVIRONMENT,BOC LIMITED,05/08/2022,7.00 ,VEHICLE MAINTENANCE,V001904427
ROCHDALE BOROUGH COUNCIL,05/08/2022,NEIGHBOURHOODS AND ENVIRONMENT,BOC LIMITED,05/08/2022,6.75 ,VEHICLE MAINTENANCE,V001904427
ROCHDALE BOROUGH COUNCIL,05/08/2022,NEIGHBOURHOODS AND ENVIRONMENT,BOC LIMITED,05/08/2022,6.75 ,VEHICLE MAINTENANCE,V001904427
ROCHDALE BOROUGH COUNCIL,05/08/2022,NEIGHBOURHOODS AND ENVIRONMENT,BOC LIMITED,05/08/2022,5.00 ,VEHICLE MAINTENANCE,V001904427
ROCHDALE BOROUGH COUNCIL,05/08/2022,NEIGHBOURHOODS AND ENVIRONMENT,BOC LIMITED,05/08/2022,5.00 ,VEHICLE MAINTENANCE,V001904427
ROCHDALE BOROUGH COUNCIL,05/08/2022,NEIGHBOURHOODS AND ENVIRONMENT,CICELEY COMMERCIALS LIMITED,05/08/2022,318.75 ,VEHICLE MAINTENANCE,V001904428
ROCHDALE BOROUGH COUNCIL,05/08/2022,NEIGHBOURHOODS AND ENVIRONMENT,CICELEY COMMERCIALS LIMITED,05/08/2022,101.70 ,VEHICLE MAINTENANCE,V001904428
ROCHDALE BOROUGH COUNCIL,05/08/2022,NEIGHBOURHOODS AND ENVIRONMENT,CICELEY COMMERCIALS LIMITED,05/08/2022,5.10 ,VEHICLE MAINTENANCE,V001904428
ROCHDALE BOROUGH COUNCIL,05/08/2022,NEIGHBOURHOODS AND ENVIRONMENT,CICELEY COMMERCIALS LIMITED,05/08/2022,12.06 ,VEHICLE MAINTENANCE,V001904429
ROCHDALE BOROUGH COUNCIL,05/08/2022,NEIGHBOURHOODS AND ENVIRONMENT,INDESPENSION LIMITED,05/08/2022,99.96 ,VEHICLE MAINTENANCE,V001904430
ROCHDALE BOROUGH COUNCIL,05/08/2022,NEIGHBOURHOODS AND ENVIRONMENT,INDESPENSION LIMITED,05/08/2022,99.96 ,VEHICLE MAINTENANCE,V001904430
ROCHDALE BOROUGH COUNCIL,05/08/2022,NEIGHBOURHOODS AND ENVIRONMENT,INDESPENSION LIMITED,05/08/2022,52.43 ,VEHICLE MAINTENANCE,V001904431
ROCHDALE BOROUGH COUNCIL,05/08/2022,NEIGHBOURHOODS AND ENVIRONMENT,INDESPENSION LIMITED,05/08/2022,52.43 ,VEHICLE MAINTENANCE,V001904431
ROCHDALE BOROUGH COUNCIL,05/08/2022,NEIGHBOURHOODS AND ENVIRONMENT,INDESPENSION LIMITED,05/08/2022,4.50 ,VEHICLE MAINTENANCE,V001904431
ROCHDALE BOROUGH COUNCIL,05/08/2022,NEIGHBOURHOODS AND ENVIRONMENT,INDESPENSION LIMITED,05/08/2022,4.50 ,VEHICLE MAINTENANCE,V001904431
ROCHDALE BOROUGH COUNCIL,05/08/2022,NEIGHBOURHOODS AND ENVIRONMENT,INDESPENSION LIMITED,05/08/2022,18.00 ,VEHICLE MAINTENANCE,V001904432
ROCHDALE BOROUGH COUNCIL,05/08/2022,NEIGHBOURHOODS AND ENVIRONMENT,INDESPENSION LIMITED,05/08/2022,18.00 ,VEHICLE MAINTENANCE,V001904432
ROCHDALE BOROUGH COUNCIL,05/08/2022,NEIGHBOURHOODS AND ENVIRONMENT,INDESPENSION LIMITED,05/08/2022,18.00 ,VEHICLE MAINTENANCE,V001904432
ROCHDALE BOROUGH COUNCIL,05/08/2022,NEIGHBOURHOODS AND ENVIRONMENT,INDESPENSION LIMITED,05/08/2022,18.00 ,VEHICLE MAINTENANCE,V001904432
ROCHDALE BOROUGH COUNCIL,05/08/2022,NEIGHBOURHOODS AND ENVIRONMENT,INDESPENSION LIMITED,05/08/2022,58.30 ,VEHICLE MAINTENANCE,V001904432
ROCHDALE BOROUGH COUNCIL,05/08/2022,NEIGHBOURHOODS AND ENVIRONMENT,INDESPENSION LIMITED,05/08/2022,58.30 ,VEHICLE MAINTENANCE,V001904432
ROCHDALE BOROUGH COUNCIL,05/08/2022,NEIGHBOURHOODS AND ENVIRONMENT,INDESPENSION LIMITED,05/08/2022,12.57 ,VEHICLE MAINTENANCE,V001904432
ROCHDALE BOROUGH COUNCIL,05/08/2022,NEIGHBOURHOODS AND ENVIRONMENT,INDESPENSION LIMITED,05/08/2022,12.57 ,VEHICLE MAINTENANCE,V001904432
ROCHDALE BOROUGH COUNCIL,05/08/2022,NEIGHBOURHOODS AND ENVIRONMENT,INDESPENSION LIMITED,05/08/2022,8.38 ,VEHICLE MAINTENANCE,V001904432
ROCHDALE BOROUGH COUNCIL,05/08/2022,NEIGHBOURHOODS AND ENVIRONMENT,INDESPENSION LIMITED,05/08/2022,8.38 ,VEHICLE MAINTENANCE,V001904432
ROCHDALE BOROUGH COUNCIL,05/08/2022,NEIGHBOURHOODS AND ENVIRONMENT,INDESPENSION LIMITED,05/08/2022,7.50 ,VEHICLE MAINTENANCE,V001904432
ROCHDALE BOROUGH COUNCIL,05/08/2022,NEIGHBOURHOODS AND ENVIRONMENT,INDESPENSION LIMITED,05/08/2022,7.50 ,VEHICLE MAINTENANCE,V001904432
ROCHDALE BOROUGH COUNCIL,08/08/2022,NEIGHBOURHOODS AND ENVIRONMENT,ALPINE RESCUE AND RECOVERY SERVICES LTD.,08/08/2022,450.00 ,VEHICLE MAINTENANCE,V001904433
ROCHDALE BOROUGH COUNCIL,08/08/2022,NEIGHBOURHOODS AND ENVIRONMENT,ALPINE RESCUE AND RECOVERY SERVICES LTD.,08/08/2022,150.00 ,VEHICLE MAINTENANCE,V001904434
ROCHDALE BOROUGH COUNCIL,08/08/2022,NEIGHBOURHOODS AND ENVIRONMENT,ALPINE RESCUE AND RECOVERY SERVICES LTD.,08/08/2022,150.00 ,VEHICLE MAINTENANCE,V001904435
ROCHDALE BOROUGH COUNCIL,08/08/2022,NEIGHBOURHOODS AND ENVIRONMENT,ALPINE RESCUE AND RECOVERY SERVICES LTD.,08/08/2022,250.00 ,VEHICLE MAINTENANCE,V001904436
ROCHDALE BOROUGH COUNCIL,08/08/2022,NEIGHBOURHOODS AND ENVIRONMENT,ALPINE RESCUE AND RECOVERY SERVICES LTD.,08/08/2022,150.00 ,VEHICLE MAINTENANCE,V001904437
ROCHDALE BOROUGH COUNCIL,08/08/2022,NEIGHBOURHOODS AND ENVIRONMENT,FAUN ZOELLER UK LTD,08/08/2022,503.74 ,VEHICLE MAINTENANCE,V001904438
ROCHDALE BOROUGH COUNCIL,11/08/2022,NEIGHBOURHOODS AND ENVIRONMENT,ARCO GROUP LIMITED,11/08/2022,46.56 ,TRANSACTIONS-EXPENDITURE,V001904439
ROCHDALE BOROUGH COUNCIL,11/08/2022,NEIGHBOURHOODS AND ENVIRONMENT,ARCO GROUP LIMITED,11/08/2022,46.56 ,TRANSACTIONS-EXPENDITURE,V001904439
ROCHDALE BOROUGH COUNCIL,11/08/2022,NEIGHBOURHOODS AND ENVIRONMENT,ARCO GROUP LIMITED,11/08/2022,46.56 ,TRANSACTIONS-EXPENDITURE,V001904439
ROCHDALE BOROUGH COUNCIL,08/08/2022,NEIGHBOURHOODS AND ENVIRONMENT,BUCHER MUNICIPAL LTD,08/08/2022,69.05 ,VEHICLE MAINTENANCE,V001904440
ROCHDALE BOROUGH COUNCIL,08/08/2022,NEIGHBOURHOODS AND ENVIRONMENT,BUCHER MUNICIPAL LTD,08/08/2022,69.05 ,VEHICLE MAINTENANCE,V001904440
ROCHDALE BOROUGH COUNCIL,08/08/2022,NEIGHBOURHOODS AND ENVIRONMENT,BUCHER MUNICIPAL LTD,08/08/2022,147.18 ,VEHICLE MAINTENANCE,V001904440
ROCHDALE BOROUGH COUNCIL,08/08/2022,NEIGHBOURHOODS AND ENVIRONMENT,BUCHER MUNICIPAL LTD,08/08/2022,147.18 ,VEHICLE MAINTENANCE,V001904440
ROCHDALE BOROUGH COUNCIL,08/08/2022,NEIGHBOURHOODS AND ENVIRONMENT,BUCHER MUNICIPAL LTD,08/08/2022,198.30 ,VEHICLE MAINTENANCE,V001904440
ROCHDALE BOROUGH COUNCIL,08/08/2022,NEIGHBOURHOODS AND ENVIRONMENT,BUCHER MUNICIPAL LTD,08/08/2022,198.30 ,VEHICLE MAINTENANCE,V001904440
ROCHDALE BOROUGH COUNCIL,08/08/2022,NEIGHBOURHOODS AND ENVIRONMENT,BUCHER MUNICIPAL LTD,08/08/2022,48.96 ,VEHICLE MAINTENANCE,V001904440
ROCHDALE BOROUGH COUNCIL,08/08/2022,NEIGHBOURHOODS AND ENVIRONMENT,BUCHER MUNICIPAL LTD,08/08/2022,48.96 ,VEHICLE MAINTENANCE,V001904440
ROCHDALE BOROUGH COUNCIL,08/08/2022,NEIGHBOURHOODS AND ENVIRONMENT,BUCHER MUNICIPAL LTD,08/08/2022,2.45 ,VEHICLE MAINTENANCE,V001904440
ROCHDALE BOROUGH COUNCIL,08/08/2022,NEIGHBOURHOODS AND ENVIRONMENT,BUCHER MUNICIPAL LTD,08/08/2022,2.45 ,VEHICLE MAINTENANCE,V001904440
ROCHDALE BOROUGH COUNCIL,08/08/2022,NEIGHBOURHOODS AND ENVIRONMENT,BUCHER MUNICIPAL LTD,08/08/2022,2.80 ,VEHICLE MAINTENANCE,V001904440
ROCHDALE BOROUGH COUNCIL,08/08/2022,NEIGHBOURHOODS AND ENVIRONMENT,BUCHER MUNICIPAL LTD,08/08/2022,2.80 ,VEHICLE MAINTENANCE,V001904440
ROCHDALE BOROUGH COUNCIL,08/08/2022,NEIGHBOURHOODS AND ENVIRONMENT,BUCHER MUNICIPAL LTD,08/08/2022,126.62 ,VEHICLE MAINTENANCE,V001904440
ROCHDALE BOROUGH COUNCIL,08/08/2022,NEIGHBOURHOODS AND ENVIRONMENT,BUCHER MUNICIPAL LTD,08/08/2022,126.62 ,VEHICLE MAINTENANCE,V001904440
ROCHDALE BOROUGH COUNCIL,08/08/2022,NEIGHBOURHOODS AND ENVIRONMENT,DENNIS EAGLE LTD,08/08/2022,136.11 ,VEHICLE MAINTENANCE,V001904441
ROCHDALE BOROUGH COUNCIL,08/08/2022,NEIGHBOURHOODS AND ENVIRONMENT,AEBI SCHMIDT UK LIMITED,08/08/2022,408.47 ,VEHICLE MAINTENANCE,V001904442
ROCHDALE BOROUGH COUNCIL,08/08/2022,NEIGHBOURHOODS AND ENVIRONMENT,AEBI SCHMIDT UK LIMITED,08/08/2022,16.75 ,VEHICLE MAINTENANCE,V001904442
ROCHDALE BOROUGH COUNCIL,08/08/2022,NEIGHBOURHOODS AND ENVIRONMENT,FAUN ZOELLER UK LTD,08/08/2022,502.32 ,VEHICLE MAINTENANCE,V001904443
ROCHDALE BOROUGH COUNCIL,08/08/2022,NEIGHBOURHOODS AND ENVIRONMENT,FAUN ZOELLER UK LTD,08/08/2022,16.50 ,VEHICLE MAINTENANCE,V001904443
ROCHDALE BOROUGH COUNCIL,08/08/2022,NEIGHBOURHOODS AND ENVIRONMENT,PENNINE PUMP & TANK CO,08/08/2022,20.30 ,WEAR AND TEAR,V001904444
ROCHDALE BOROUGH COUNCIL,08/08/2022,NEIGHBOURHOODS AND ENVIRONMENT,PENNINE PUMP & TANK CO,08/08/2022,150.00 ,WEAR AND TEAR,V001904444
ROCHDALE BOROUGH COUNCIL,05/08/2022,PROPERTY AND HIGHWAYS,MARCHBRIDGE BUILDERS LIMITED,05/08/2022,5700.00 ,MINOR BUILDING WORKS,V001904447
ROCHDALE BOROUGH COUNCIL,05/08/2022,ECONOMY DIRECTORATE,SYNTAX CONTROLS LIMITED,05/08/2022,86.00 ,REPAIRS & ALTS OF BUILDINGS,V001904511
ROCHDALE BOROUGH COUNCIL,01/08/2022,ADULT CARE LCO FUNCTIONS,B AND M WASTE SERVICES,01/08/2022,10.61 ,REFUSE DISPOSAL,V001904512
ROCHDALE BOROUGH COUNCIL,01/08/2022,ADULT CARE LCO FUNCTIONS,B AND M WASTE SERVICES,01/08/2022,10.61 ,REFUSE DISPOSAL,V001904512
ROCHDALE BOROUGH COUNCIL,01/08/2022,ADULT CARE LCO FUNCTIONS,B AND M WASTE SERVICES,01/08/2022,10.61 ,REFUSE DISPOSAL,V001904512
ROCHDALE BOROUGH COUNCIL,01/08/2022,ADULT CARE LCO FUNCTIONS,B AND M WASTE SERVICES,01/08/2022,6.48 ,REFUSE DISPOSAL,V001904512
ROCHDALE BOROUGH COUNCIL,01/08/2022,ADULT CARE LCO FUNCTIONS,B AND M WASTE SERVICES,01/08/2022,6.48 ,REFUSE DISPOSAL,V001904512
ROCHDALE BOROUGH COUNCIL,01/08/2022,ADULT CARE LCO FUNCTIONS,B AND M WASTE SERVICES,01/08/2022,6.48 ,REFUSE DISPOSAL,V001904512
ROCHDALE BOROUGH COUNCIL,01/08/2022,NEIGHBOURHOODS AND ENVIRONMENT,B AND M WASTE SERVICES,01/08/2022,6.92 ,REFUSE DISPOSAL,V001904512
ROCHDALE BOROUGH COUNCIL,01/08/2022,NEIGHBOURHOODS AND ENVIRONMENT,B AND M WASTE SERVICES,01/08/2022,2.90 ,REFUSE DISPOSAL,V001904512
ROCHDALE BOROUGH COUNCIL,01/08/2022,NEIGHBOURHOODS AND ENVIRONMENT,B AND M WASTE SERVICES,01/08/2022,6.92 ,REFUSE DISPOSAL,V001904512
ROCHDALE BOROUGH COUNCIL,01/08/2022,NEIGHBOURHOODS AND ENVIRONMENT,B AND M WASTE SERVICES,01/08/2022,5.90 ,REFUSE DISPOSAL,V001904512
ROCHDALE BOROUGH COUNCIL,01/08/2022,NEIGHBOURHOODS AND ENVIRONMENT,B AND M WASTE SERVICES,01/08/2022,6.92 ,REFUSE DISPOSAL,V001904512
ROCHDALE BOROUGH COUNCIL,01/08/2022,NEIGHBOURHOODS AND ENVIRONMENT,B AND M WASTE SERVICES,01/08/2022,6.20 ,REFUSE DISPOSAL,V001904512
ROCHDALE BOROUGH COUNCIL,01/08/2022,NEIGHBOURHOODS AND ENVIRONMENT,B AND M WASTE SERVICES,01/08/2022,6.92 ,REFUSE DISPOSAL,V001904512
ROCHDALE BOROUGH COUNCIL,01/08/2022,ECONOMY DIRECTORATE,B AND M WASTE SERVICES,01/08/2022,11.79 ,REFUSE DISPOSAL,V001904512
ROCHDALE BOROUGH COUNCIL,01/08/2022,ECONOMY DIRECTORATE,B AND M WASTE SERVICES,01/08/2022,11.79 ,REFUSE DISPOSAL,V001904512
ROCHDALE BOROUGH COUNCIL,01/08/2022,ECONOMY DIRECTORATE,B AND M WASTE SERVICES,01/08/2022,11.79 ,REFUSE DISPOSAL,V001904512
ROCHDALE BOROUGH COUNCIL,01/08/2022,ECONOMY DIRECTORATE,B AND M WASTE SERVICES,01/08/2022,11.79 ,REFUSE DISPOSAL,V001904512
ROCHDALE BOROUGH COUNCIL,01/08/2022,ECONOMY DIRECTORATE,B AND M WASTE SERVICES,01/08/2022,11.79 ,REFUSE DISPOSAL,V001904512
ROCHDALE BOROUGH COUNCIL,01/08/2022,ECONOMY DIRECTORATE,B AND M WASTE SERVICES,01/08/2022,0.60 ,REFUSE DISPOSAL,V001904512
ROCHDALE BOROUGH COUNCIL,01/08/2022,ECONOMY DIRECTORATE,B AND M WASTE SERVICES,01/08/2022,11.79 ,REFUSE DISPOSAL,V001904512
ROCHDALE BOROUGH COUNCIL,01/08/2022,ECONOMY DIRECTORATE,B AND M WASTE SERVICES,01/08/2022,11.79 ,REFUSE DISPOSAL,V001904512
ROCHDALE BOROUGH COUNCIL,01/08/2022,ECONOMY DIRECTORATE,B AND M WASTE SERVICES,01/08/2022,11.79 ,REFUSE DISPOSAL,V001904512
ROCHDALE BOROUGH COUNCIL,01/08/2022,ECONOMY DIRECTORATE,B AND M WASTE SERVICES,01/08/2022,11.79 ,REFUSE DISPOSAL,V001904512
ROCHDALE BOROUGH COUNCIL,01/08/2022,ECONOMY DIRECTORATE,B AND M WASTE SERVICES,01/08/2022,8.62 ,REFUSE DISPOSAL,V001904512
ROCHDALE BOROUGH COUNCIL,01/08/2022,ECONOMY DIRECTORATE,B AND M WASTE SERVICES,01/08/2022,8.62 ,REFUSE DISPOSAL,V001904512
ROCHDALE BOROUGH COUNCIL,01/08/2022,ECONOMY DIRECTORATE,B AND M WASTE SERVICES,01/08/2022,8.62 ,REFUSE DISPOSAL,V001904512
ROCHDALE BOROUGH COUNCIL,01/08/2022,ECONOMY DIRECTORATE,B AND M WASTE SERVICES,01/08/2022,8.62 ,REFUSE DISPOSAL,V001904512
ROCHDALE BOROUGH COUNCIL,01/08/2022,ECONOMY DIRECTORATE,B AND M WASTE SERVICES,01/08/2022,8.62 ,REFUSE DISPOSAL,V001904512
ROCHDALE BOROUGH COUNCIL,01/08/2022,NEIGHBOURHOODS AND ENVIRONMENT,B AND M WASTE SERVICES,01/08/2022,12.87 ,REFUSE DISPOSAL,V001904512
ROCHDALE BOROUGH COUNCIL,01/08/2022,NEIGHBOURHOODS AND ENVIRONMENT,B AND M WASTE SERVICES,01/08/2022,12.87 ,REFUSE DISPOSAL,V001904512
ROCHDALE BOROUGH COUNCIL,01/08/2022,NEIGHBOURHOODS AND ENVIRONMENT,B AND M WASTE SERVICES,01/08/2022,12.87 ,REFUSE DISPOSAL,V001904512
ROCHDALE BOROUGH COUNCIL,01/08/2022,NEIGHBOURHOODS AND ENVIRONMENT,B AND M WASTE SERVICES,01/08/2022,12.87 ,REFUSE DISPOSAL,V001904512
ROCHDALE BOROUGH COUNCIL,01/08/2022,NEIGHBOURHOODS AND ENVIRONMENT,B AND M WASTE SERVICES,01/08/2022,12.87 ,REFUSE DISPOSAL,V001904512
ROCHDALE BOROUGH COUNCIL,01/08/2022,NEIGHBOURHOODS AND ENVIRONMENT,B AND M WASTE SERVICES,01/08/2022,0.80 ,REFUSE DISPOSAL,V001904512
ROCHDALE BOROUGH COUNCIL,01/08/2022,NEIGHBOURHOODS AND ENVIRONMENT,B AND M WASTE SERVICES,01/08/2022,6.59 ,REFUSE DISPOSAL,V001904512
ROCHDALE BOROUGH COUNCIL,01/08/2022,NEIGHBOURHOODS AND ENVIRONMENT,B AND M WASTE SERVICES,01/08/2022,6.59 ,REFUSE DISPOSAL,V001904512
ROCHDALE BOROUGH COUNCIL,01/08/2022,NEIGHBOURHOODS AND ENVIRONMENT,B AND M WASTE SERVICES,01/08/2022,6.59 ,REFUSE DISPOSAL,V001904512
ROCHDALE BOROUGH COUNCIL,01/08/2022,NEIGHBOURHOODS AND ENVIRONMENT,B AND M WASTE SERVICES,01/08/2022,6.59 ,REFUSE DISPOSAL,V001904512
ROCHDALE BOROUGH COUNCIL,01/08/2022,NEIGHBOURHOODS AND ENVIRONMENT,B AND M WASTE SERVICES,01/08/2022,6.59 ,REFUSE DISPOSAL,V001904512
ROCHDALE BOROUGH COUNCIL,01/08/2022,NEIGHBOURHOODS AND ENVIRONMENT,B AND M WASTE SERVICES,01/08/2022,5.99 ,REFUSE DISPOSAL,V001904512
ROCHDALE BOROUGH COUNCIL,01/08/2022,NEIGHBOURHOODS AND ENVIRONMENT,B AND M WASTE SERVICES,01/08/2022,5.99 ,REFUSE DISPOSAL,V001904512
ROCHDALE BOROUGH COUNCIL,01/08/2022,NEIGHBOURHOODS AND ENVIRONMENT,B AND M WASTE SERVICES,01/08/2022,5.99 ,REFUSE DISPOSAL,V001904512
ROCHDALE BOROUGH COUNCIL,01/08/2022,NEIGHBOURHOODS AND ENVIRONMENT,B AND M WASTE SERVICES,01/08/2022,5.99 ,REFUSE DISPOSAL,V001904512
ROCHDALE BOROUGH COUNCIL,01/08/2022,NEIGHBOURHOODS AND ENVIRONMENT,B AND M WASTE SERVICES,01/08/2022,5.99 ,REFUSE DISPOSAL,V001904512
ROCHDALE BOROUGH COUNCIL,01/08/2022,NEIGHBOURHOODS AND ENVIRONMENT,B AND M WASTE SERVICES,01/08/2022,6.92 ,REFUSE DISPOSAL,V001904512
ROCHDALE BOROUGH COUNCIL,01/08/2022,NEIGHBOURHOODS AND ENVIRONMENT,B AND M WASTE SERVICES,01/08/2022,3.80 ,REFUSE DISPOSAL,V001904512
ROCHDALE BOROUGH COUNCIL,01/08/2022,NEIGHBOURHOODS AND ENVIRONMENT,B AND M WASTE SERVICES,01/08/2022,6.92 ,REFUSE DISPOSAL,V001904512
ROCHDALE BOROUGH COUNCIL,01/08/2022,NEIGHBOURHOODS AND ENVIRONMENT,B AND M WASTE SERVICES,01/08/2022,2.40 ,REFUSE DISPOSAL,V001904512
ROCHDALE BOROUGH COUNCIL,01/08/2022,NEIGHBOURHOODS AND ENVIRONMENT,B AND M WASTE SERVICES,01/08/2022,6.92 ,REFUSE DISPOSAL,V001904512
ROCHDALE BOROUGH COUNCIL,01/08/2022,NEIGHBOURHOODS AND ENVIRONMENT,B AND M WASTE SERVICES,01/08/2022,0.40 ,REFUSE DISPOSAL,V001904512
ROCHDALE BOROUGH COUNCIL,01/08/2022,NEIGHBOURHOODS AND ENVIRONMENT,B AND M WASTE SERVICES,01/08/2022,6.92 ,REFUSE DISPOSAL,V001904512
ROCHDALE BOROUGH COUNCIL,01/08/2022,EARLY HELP AND SCHOOLS,B AND M WASTE SERVICES,01/08/2022,12.87 ,REFUSE DISPOSAL,V001904512
ROCHDALE BOROUGH COUNCIL,01/08/2022,EARLY HELP AND SCHOOLS,B AND M WASTE SERVICES,01/08/2022,12.87 ,REFUSE DISPOSAL,V001904512
ROCHDALE BOROUGH COUNCIL,01/08/2022,EARLY HELP AND SCHOOLS,B AND M WASTE SERVICES,01/08/2022,12.87 ,REFUSE DISPOSAL,V001904512
ROCHDALE BOROUGH COUNCIL,01/08/2022,EARLY HELP AND SCHOOLS,B AND M WASTE SERVICES,01/08/2022,12.87 ,REFUSE DISPOSAL,V001904512
ROCHDALE BOROUGH COUNCIL,01/08/2022,ECONOMY DIRECTORATE,B AND M WASTE SERVICES,01/08/2022,12.87 ,REFUSE DISPOSAL,V001904512
ROCHDALE BOROUGH COUNCIL,01/08/2022,ECONOMY DIRECTORATE,B AND M WASTE SERVICES,01/08/2022,12.87 ,REFUSE DISPOSAL,V001904512
ROCHDALE BOROUGH COUNCIL,01/08/2022,ECONOMY DIRECTORATE,B AND M WASTE SERVICES,01/08/2022,12.87 ,REFUSE DISPOSAL,V001904512
ROCHDALE BOROUGH COUNCIL,01/08/2022,ECONOMY DIRECTORATE,B AND M WASTE SERVICES,01/08/2022,12.87 ,REFUSE DISPOSAL,V001904512
ROCHDALE BOROUGH COUNCIL,01/08/2022,ECONOMY DIRECTORATE,B AND M WASTE SERVICES,01/08/2022,22.70 ,REFUSE DISPOSAL,V001904512
ROCHDALE BOROUGH COUNCIL,01/08/2022,ECONOMY DIRECTORATE,B AND M WASTE SERVICES,01/08/2022,22.70 ,REFUSE DISPOSAL,V001904512
ROCHDALE BOROUGH COUNCIL,01/08/2022,ECONOMY DIRECTORATE,B AND M WASTE SERVICES,01/08/2022,22.70 ,REFUSE DISPOSAL,V001904512
ROCHDALE BOROUGH COUNCIL,01/08/2022,ECONOMY DIRECTORATE,B AND M WASTE SERVICES,01/08/2022,22.70 ,REFUSE DISPOSAL,V001904512
ROCHDALE BOROUGH COUNCIL,01/08/2022,CHILDREN�S SOCIAL CARE,B AND M WASTE SERVICES,01/08/2022,682.56 ,REFUSE DISPOSAL,V001904512
ROCHDALE BOROUGH COUNCIL,01/08/2022,CHILDREN�S SOCIAL CARE,B AND M WASTE SERVICES,01/08/2022,11.60 ,REFUSE DISPOSAL,V001904512
ROCHDALE BOROUGH COUNCIL,01/08/2022,CHILDREN�S SOCIAL CARE,B AND M WASTE SERVICES,01/08/2022,12.87 ,REFUSE DISPOSAL,V001904512
ROCHDALE BOROUGH COUNCIL,01/08/2022,CHILDREN�S SOCIAL CARE,B AND M WASTE SERVICES,01/08/2022,0.60 ,REFUSE DISPOSAL,V001904512
ROCHDALE BOROUGH COUNCIL,01/08/2022,CHILDREN�S SOCIAL CARE,B AND M WASTE SERVICES,01/08/2022,12.87 ,REFUSE DISPOSAL,V001904512
ROCHDALE BOROUGH COUNCIL,01/08/2022,CHILDREN�S SOCIAL CARE,B AND M WASTE SERVICES,01/08/2022,12.87 ,REFUSE DISPOSAL,V001904512
ROCHDALE BOROUGH COUNCIL,01/08/2022,CHILDREN�S SOCIAL CARE,B AND M WASTE SERVICES,01/08/2022,12.87 ,REFUSE DISPOSAL,V001904512
ROCHDALE BOROUGH COUNCIL,01/08/2022,NEIGHBOURHOODS AND ENVIRONMENT,B AND M WASTE SERVICES,01/08/2022,19.64 ,REFUSE DISPOSAL,V001904512
ROCHDALE BOROUGH COUNCIL,01/08/2022,NEIGHBOURHOODS AND ENVIRONMENT,B AND M WASTE SERVICES,01/08/2022,19.64 ,REFUSE DISPOSAL,V001904512
ROCHDALE BOROUGH COUNCIL,01/08/2022,NEIGHBOURHOODS AND ENVIRONMENT,B AND M WASTE SERVICES,01/08/2022,19.64 ,REFUSE DISPOSAL,V001904512
ROCHDALE BOROUGH COUNCIL,01/08/2022,NEIGHBOURHOODS AND ENVIRONMENT,B AND M WASTE SERVICES,01/08/2022,19.64 ,REFUSE DISPOSAL,V001904512
ROCHDALE BOROUGH COUNCIL,01/08/2022,NEIGHBOURHOODS AND ENVIRONMENT,B AND M WASTE SERVICES,01/08/2022,6.59 ,REFUSE DISPOSAL,V001904512
ROCHDALE BOROUGH COUNCIL,01/08/2022,NEIGHBOURHOODS AND ENVIRONMENT,B AND M WASTE SERVICES,01/08/2022,6.59 ,REFUSE DISPOSAL,V001904512
ROCHDALE BOROUGH COUNCIL,01/08/2022,NEIGHBOURHOODS AND ENVIRONMENT,B AND M WASTE SERVICES,01/08/2022,6.59 ,REFUSE DISPOSAL,V001904512
ROCHDALE BOROUGH COUNCIL,01/08/2022,NEIGHBOURHOODS AND ENVIRONMENT,B AND M WASTE SERVICES,01/08/2022,6.59 ,REFUSE DISPOSAL,V001904512
ROCHDALE BOROUGH COUNCIL,01/08/2022,NEIGHBOURHOODS AND ENVIRONMENT,B AND M WASTE SERVICES,01/08/2022,6.92 ,REFUSE DISPOSAL,V001904512
ROCHDALE BOROUGH COUNCIL,01/08/2022,NEIGHBOURHOODS AND ENVIRONMENT,B AND M WASTE SERVICES,01/08/2022,6.92 ,REFUSE DISPOSAL,V001904512
ROCHDALE BOROUGH COUNCIL,01/08/2022,NEIGHBOURHOODS AND ENVIRONMENT,B AND M WASTE SERVICES,01/08/2022,6.92 ,REFUSE DISPOSAL,V001904512
ROCHDALE BOROUGH COUNCIL,01/08/2022,NEIGHBOURHOODS AND ENVIRONMENT,B AND M WASTE SERVICES,01/08/2022,6.92 ,REFUSE DISPOSAL,V001904512
ROCHDALE BOROUGH COUNCIL,01/08/2022,NEIGHBOURHOODS AND ENVIRONMENT,B AND M WASTE SERVICES,01/08/2022,5.99 ,REFUSE DISPOSAL,V001904512
ROCHDALE BOROUGH COUNCIL,01/08/2022,NEIGHBOURHOODS AND ENVIRONMENT,B AND M WASTE SERVICES,01/08/2022,5.99 ,REFUSE DISPOSAL,V001904512
ROCHDALE BOROUGH COUNCIL,01/08/2022,NEIGHBOURHOODS AND ENVIRONMENT,B AND M WASTE SERVICES,01/08/2022,5.99 ,REFUSE DISPOSAL,V001904512
ROCHDALE BOROUGH COUNCIL,01/08/2022,NEIGHBOURHOODS AND ENVIRONMENT,B AND M WASTE SERVICES,01/08/2022,5.99 ,REFUSE DISPOSAL,V001904512
ROCHDALE BOROUGH COUNCIL,01/08/2022,EARLY HELP AND SCHOOLS,B AND M WASTE SERVICES,01/08/2022,22.70 ,REFUSE DISPOSAL,V001904512
ROCHDALE BOROUGH COUNCIL,01/08/2022,EARLY HELP AND SCHOOLS,B AND M WASTE SERVICES,01/08/2022,22.70 ,REFUSE DISPOSAL,V001904512
ROCHDALE BOROUGH COUNCIL,01/08/2022,EARLY HELP AND SCHOOLS,B AND M WASTE SERVICES,01/08/2022,22.70 ,REFUSE DISPOSAL,V001904512
ROCHDALE BOROUGH COUNCIL,01/08/2022,EARLY HELP AND SCHOOLS,B AND M WASTE SERVICES,01/08/2022,22.70 ,REFUSE DISPOSAL,V001904512
ROCHDALE BOROUGH COUNCIL,01/08/2022,NEIGHBOURHOODS AND ENVIRONMENT,B AND M WASTE SERVICES,01/08/2022,8.96 ,REFUSE DISPOSAL,V001904512
ROCHDALE BOROUGH COUNCIL,01/08/2022,NEIGHBOURHOODS AND ENVIRONMENT,B AND M WASTE SERVICES,01/08/2022,4.00 ,REFUSE DISPOSAL,V001904512
ROCHDALE BOROUGH COUNCIL,01/08/2022,NEIGHBOURHOODS AND ENVIRONMENT,B AND M WASTE SERVICES,01/08/2022,8.96 ,REFUSE DISPOSAL,V001904512
ROCHDALE BOROUGH COUNCIL,01/08/2022,NEIGHBOURHOODS AND ENVIRONMENT,B AND M WASTE SERVICES,01/08/2022,1.00 ,REFUSE DISPOSAL,V001904512
ROCHDALE BOROUGH COUNCIL,01/08/2022,NEIGHBOURHOODS AND ENVIRONMENT,B AND M WASTE SERVICES,01/08/2022,8.96 ,REFUSE DISPOSAL,V001904512
ROCHDALE BOROUGH COUNCIL,01/08/2022,NEIGHBOURHOODS AND ENVIRONMENT,B AND M WASTE SERVICES,01/08/2022,0.60 ,REFUSE DISPOSAL,V001904512
ROCHDALE BOROUGH COUNCIL,01/08/2022,NEIGHBOURHOODS AND ENVIRONMENT,B AND M WASTE SERVICES,01/08/2022,9.82 ,REFUSE DISPOSAL,V001904512
ROCHDALE BOROUGH COUNCIL,01/08/2022,NEIGHBOURHOODS AND ENVIRONMENT,B AND M WASTE SERVICES,01/08/2022,9.82 ,REFUSE DISPOSAL,V001904512
ROCHDALE BOROUGH COUNCIL,01/08/2022,NEIGHBOURHOODS AND ENVIRONMENT,B AND M WASTE SERVICES,01/08/2022,4.60 ,REFUSE DISPOSAL,V001904512
ROCHDALE BOROUGH COUNCIL,01/08/2022,NEIGHBOURHOODS AND ENVIRONMENT,B AND M WASTE SERVICES,01/08/2022,9.82 ,REFUSE DISPOSAL,V001904512
ROCHDALE BOROUGH COUNCIL,01/08/2022,CHILDREN�S SOCIAL CARE,B AND M WASTE SERVICES,01/08/2022,6.59 ,REFUSE DISPOSAL,V001904512
ROCHDALE BOROUGH COUNCIL,01/08/2022,CHILDREN�S SOCIAL CARE,B AND M WASTE SERVICES,01/08/2022,6.59 ,REFUSE DISPOSAL,V001904512
ROCHDALE BOROUGH COUNCIL,01/08/2022,CHILDREN�S SOCIAL CARE,B AND M WASTE SERVICES,01/08/2022,6.59 ,REFUSE DISPOSAL,V001904512
ROCHDALE BOROUGH COUNCIL,01/08/2022,CHILDREN�S SOCIAL CARE,B AND M WASTE SERVICES,01/08/2022,6.59 ,REFUSE DISPOSAL,V001904512
ROCHDALE BOROUGH COUNCIL,01/08/2022,CHILDREN�S SOCIAL CARE,B AND M WASTE SERVICES,01/08/2022,5.99 ,REFUSE DISPOSAL,V001904512
ROCHDALE BOROUGH COUNCIL,01/08/2022,CHILDREN�S SOCIAL CARE,B AND M WASTE SERVICES,01/08/2022,5.99 ,REFUSE DISPOSAL,V001904512
ROCHDALE BOROUGH COUNCIL,01/08/2022,CHILDREN�S SOCIAL CARE,B AND M WASTE SERVICES,01/08/2022,5.99 ,REFUSE DISPOSAL,V001904512
ROCHDALE BOROUGH COUNCIL,01/08/2022,CHILDREN�S SOCIAL CARE,B AND M WASTE SERVICES,01/08/2022,5.99 ,REFUSE DISPOSAL,V001904512
ROCHDALE BOROUGH COUNCIL,01/08/2022,CHILDREN�S SOCIAL CARE,B AND M WASTE SERVICES,01/08/2022,7.74 ,REFUSE DISPOSAL,V001904512
ROCHDALE BOROUGH COUNCIL,01/08/2022,CHILDREN�S SOCIAL CARE,B AND M WASTE SERVICES,01/08/2022,7.74 ,REFUSE DISPOSAL,V001904512
ROCHDALE BOROUGH COUNCIL,01/08/2022,CHILDREN�S SOCIAL CARE,B AND M WASTE SERVICES,01/08/2022,7.74 ,REFUSE DISPOSAL,V001904512
ROCHDALE BOROUGH COUNCIL,01/08/2022,CHILDREN�S SOCIAL CARE,B AND M WASTE SERVICES,01/08/2022,0.90 ,REFUSE DISPOSAL,V001904512
ROCHDALE BOROUGH COUNCIL,01/08/2022,CHILDREN�S SOCIAL CARE,B AND M WASTE SERVICES,01/08/2022,7.74 ,REFUSE DISPOSAL,V001904512
ROCHDALE BOROUGH COUNCIL,01/08/2022,NEIGHBOURHOODS AND ENVIRONMENT,B AND M WASTE SERVICES,01/08/2022,12.87 ,REFUSE DISPOSAL,V001904512
ROCHDALE BOROUGH COUNCIL,01/08/2022,NEIGHBOURHOODS AND ENVIRONMENT,B AND M WASTE SERVICES,01/08/2022,12.87 ,REFUSE DISPOSAL,V001904512
ROCHDALE BOROUGH COUNCIL,01/08/2022,NEIGHBOURHOODS AND ENVIRONMENT,B AND M WASTE SERVICES,01/08/2022,12.87 ,REFUSE DISPOSAL,V001904512
ROCHDALE BOROUGH COUNCIL,01/08/2022,NEIGHBOURHOODS AND ENVIRONMENT,B AND M WASTE SERVICES,01/08/2022,12.87 ,REFUSE DISPOSAL,V001904512
ROCHDALE BOROUGH COUNCIL,01/08/2022,EARLY HELP AND SCHOOLS,B AND M WASTE SERVICES,01/08/2022,12.87 ,REFUSE DISPOSAL,V001904512
ROCHDALE BOROUGH COUNCIL,01/08/2022,EARLY HELP AND SCHOOLS,B AND M WASTE SERVICES,01/08/2022,12.87 ,REFUSE DISPOSAL,V001904512
ROCHDALE BOROUGH COUNCIL,01/08/2022,EARLY HELP AND SCHOOLS,B AND M WASTE SERVICES,01/08/2022,12.87 ,REFUSE DISPOSAL,V001904512
ROCHDALE BOROUGH COUNCIL,01/08/2022,EARLY HELP AND SCHOOLS,B AND M WASTE SERVICES,01/08/2022,12.87 ,REFUSE DISPOSAL,V001904512
ROCHDALE BOROUGH COUNCIL,01/08/2022,EARLY HELP AND SCHOOLS,B AND M WASTE SERVICES,01/08/2022,12.87 ,REFUSE DISPOSAL,V001904512
ROCHDALE BOROUGH COUNCIL,01/08/2022,EARLY HELP AND SCHOOLS,B AND M WASTE SERVICES,01/08/2022,12.87 ,REFUSE DISPOSAL,V001904512
ROCHDALE BOROUGH COUNCIL,01/08/2022,EARLY HELP AND SCHOOLS,B AND M WASTE SERVICES,01/08/2022,12.87 ,REFUSE DISPOSAL,V001904512
ROCHDALE BOROUGH COUNCIL,01/08/2022,EARLY HELP AND SCHOOLS,B AND M WASTE SERVICES,01/08/2022,0.60 ,REFUSE DISPOSAL,V001904512
ROCHDALE BOROUGH COUNCIL,01/08/2022,EARLY HELP AND SCHOOLS,B AND M WASTE SERVICES,01/08/2022,12.87 ,REFUSE DISPOSAL,V001904512
ROCHDALE BOROUGH COUNCIL,01/08/2022,ECONOMY DIRECTORATE,B AND M WASTE SERVICES,01/08/2022,72.45 ,REFUSE DISPOSAL,V001904512
ROCHDALE BOROUGH COUNCIL,01/08/2022,ECONOMY DIRECTORATE,B AND M WASTE SERVICES,01/08/2022,72.45 ,REFUSE DISPOSAL,V001904512
ROCHDALE BOROUGH COUNCIL,01/08/2022,ECONOMY DIRECTORATE,B AND M WASTE SERVICES,01/08/2022,72.45 ,REFUSE DISPOSAL,V001904512
ROCHDALE BOROUGH COUNCIL,01/08/2022,ECONOMY DIRECTORATE,B AND M WASTE SERVICES,01/08/2022,72.45 ,REFUSE DISPOSAL,V001904512
ROCHDALE BOROUGH COUNCIL,01/08/2022,ECONOMY DIRECTORATE,B AND M WASTE SERVICES,01/08/2022,18.20 ,REFUSE DISPOSAL,V001904512
ROCHDALE BOROUGH COUNCIL,01/08/2022,ECONOMY DIRECTORATE,B AND M WASTE SERVICES,01/08/2022,72.45 ,REFUSE DISPOSAL,V001904512
ROCHDALE BOROUGH COUNCIL,01/08/2022,ECONOMY DIRECTORATE,B AND M WASTE SERVICES,01/08/2022,14.32 ,REFUSE DISPOSAL,V001904512
ROCHDALE BOROUGH COUNCIL,01/08/2022,ECONOMY DIRECTORATE,B AND M WASTE SERVICES,01/08/2022,14.32 ,REFUSE DISPOSAL,V001904512
ROCHDALE BOROUGH COUNCIL,01/08/2022,ECONOMY DIRECTORATE,B AND M WASTE SERVICES,01/08/2022,14.32 ,REFUSE DISPOSAL,V001904512
ROCHDALE BOROUGH COUNCIL,01/08/2022,ECONOMY DIRECTORATE,B AND M WASTE SERVICES,01/08/2022,14.32 ,REFUSE DISPOSAL,V001904512
ROCHDALE BOROUGH COUNCIL,01/08/2022,ECONOMY DIRECTORATE,B AND M WASTE SERVICES,01/08/2022,14.32 ,REFUSE DISPOSAL,V001904512
ROCHDALE BOROUGH COUNCIL,01/08/2022,NEIGHBOURHOODS AND ENVIRONMENT,B AND M WASTE SERVICES,01/08/2022,6.92 ,REFUSE DISPOSAL,V001904512
ROCHDALE BOROUGH COUNCIL,01/08/2022,NEIGHBOURHOODS AND ENVIRONMENT,B AND M WASTE SERVICES,01/08/2022,6.92 ,REFUSE DISPOSAL,V001904512
ROCHDALE BOROUGH COUNCIL,01/08/2022,NEIGHBOURHOODS AND ENVIRONMENT,B AND M WASTE SERVICES,01/08/2022,6.92 ,REFUSE DISPOSAL,V001904512
ROCHDALE BOROUGH COUNCIL,01/08/2022,NEIGHBOURHOODS AND ENVIRONMENT,B AND M WASTE SERVICES,01/08/2022,6.92 ,REFUSE DISPOSAL,V001904512
ROCHDALE BOROUGH COUNCIL,01/08/2022,NEIGHBOURHOODS AND ENVIRONMENT,B AND M WASTE SERVICES,01/08/2022,6.92 ,REFUSE DISPOSAL,V001904512
ROCHDALE BOROUGH COUNCIL,01/08/2022,NEIGHBOURHOODS AND ENVIRONMENT,B AND M WASTE SERVICES,01/08/2022,5.99 ,REFUSE DISPOSAL,V001904512
ROCHDALE BOROUGH COUNCIL,01/08/2022,NEIGHBOURHOODS AND ENVIRONMENT,B AND M WASTE SERVICES,01/08/2022,5.99 ,REFUSE DISPOSAL,V001904512
ROCHDALE BOROUGH COUNCIL,01/08/2022,NEIGHBOURHOODS AND ENVIRONMENT,B AND M WASTE SERVICES,01/08/2022,5.99 ,REFUSE DISPOSAL,V001904512
ROCHDALE BOROUGH COUNCIL,01/08/2022,NEIGHBOURHOODS AND ENVIRONMENT,B AND M WASTE SERVICES,01/08/2022,5.99 ,REFUSE DISPOSAL,V001904512
ROCHDALE BOROUGH COUNCIL,01/08/2022,NEIGHBOURHOODS AND ENVIRONMENT,B AND M WASTE SERVICES,01/08/2022,5.99 ,REFUSE DISPOSAL,V001904512
ROCHDALE BOROUGH COUNCIL,01/08/2022,CHILDREN�S SOCIAL CARE,B AND M WASTE SERVICES,01/08/2022,4.20 ,REFUSE DISPOSAL,V001904512
ROCHDALE BOROUGH COUNCIL,01/08/2022,CHILDREN�S SOCIAL CARE,B AND M WASTE SERVICES,01/08/2022,16.60 ,REFUSE DISPOSAL,V001904512
ROCHDALE BOROUGH COUNCIL,01/08/2022,CHILDREN�S SOCIAL CARE,B AND M WASTE SERVICES,01/08/2022,16.60 ,REFUSE DISPOSAL,V001904512
ROCHDALE BOROUGH COUNCIL,01/08/2022,CHILDREN�S SOCIAL CARE,B AND M WASTE SERVICES,01/08/2022,16.60 ,REFUSE DISPOSAL,V001904512
ROCHDALE BOROUGH COUNCIL,01/08/2022,CHILDREN�S SOCIAL CARE,B AND M WASTE SERVICES,01/08/2022,16.60 ,REFUSE DISPOSAL,V001904512
ROCHDALE BOROUGH COUNCIL,01/08/2022,EARLY HELP AND SCHOOLS,B AND M WASTE SERVICES,01/08/2022,6.92 ,REFUSE DISPOSAL,V001904512
ROCHDALE BOROUGH COUNCIL,01/08/2022,EARLY HELP AND SCHOOLS,B AND M WASTE SERVICES,01/08/2022,1.70 ,REFUSE DISPOSAL,V001904512
ROCHDALE BOROUGH COUNCIL,01/08/2022,EARLY HELP AND SCHOOLS,B AND M WASTE SERVICES,01/08/2022,6.92 ,REFUSE DISPOSAL,V001904512
ROCHDALE BOROUGH COUNCIL,01/08/2022,EARLY HELP AND SCHOOLS,B AND M WASTE SERVICES,01/08/2022,6.92 ,REFUSE DISPOSAL,V001904512
ROCHDALE BOROUGH COUNCIL,01/08/2022,EARLY HELP AND SCHOOLS,B AND M WASTE SERVICES,01/08/2022,6.92 ,REFUSE DISPOSAL,V001904512
ROCHDALE BOROUGH COUNCIL,01/08/2022,EARLY HELP AND SCHOOLS,B AND M WASTE SERVICES,01/08/2022,6.92 ,REFUSE DISPOSAL,V001904512
ROCHDALE BOROUGH COUNCIL,01/08/2022,NEIGHBOURHOODS AND ENVIRONMENT,B AND M WASTE SERVICES,01/08/2022,10.80 ,REFUSE DISPOSAL,V001904512
ROCHDALE BOROUGH COUNCIL,01/08/2022,NEIGHBOURHOODS AND ENVIRONMENT,B AND M WASTE SERVICES,01/08/2022,10.80 ,REFUSE DISPOSAL,V001904512
ROCHDALE BOROUGH COUNCIL,01/08/2022,NEIGHBOURHOODS AND ENVIRONMENT,B AND M WASTE SERVICES,01/08/2022,10.80 ,REFUSE DISPOSAL,V001904512
ROCHDALE BOROUGH COUNCIL,01/08/2022,NEIGHBOURHOODS AND ENVIRONMENT,B AND M WASTE SERVICES,01/08/2022,10.80 ,REFUSE DISPOSAL,V001904512
ROCHDALE BOROUGH COUNCIL,01/08/2022,NEIGHBOURHOODS AND ENVIRONMENT,B AND M WASTE SERVICES,01/08/2022,10.80 ,REFUSE DISPOSAL,V001904512
ROCHDALE BOROUGH COUNCIL,01/08/2022,NEIGHBOURHOODS AND ENVIRONMENT,B AND M WASTE SERVICES,01/08/2022,6.28 ,REFUSE DISPOSAL,V001904512
ROCHDALE BOROUGH COUNCIL,01/08/2022,NEIGHBOURHOODS AND ENVIRONMENT,B AND M WASTE SERVICES,01/08/2022,6.28 ,REFUSE DISPOSAL,V001904512
ROCHDALE BOROUGH COUNCIL,01/08/2022,NEIGHBOURHOODS AND ENVIRONMENT,B AND M WASTE SERVICES,01/08/2022,6.28 ,REFUSE DISPOSAL,V001904512
ROCHDALE BOROUGH COUNCIL,01/08/2022,NEIGHBOURHOODS AND ENVIRONMENT,B AND M WASTE SERVICES,01/08/2022,6.28 ,REFUSE DISPOSAL,V001904512
ROCHDALE BOROUGH COUNCIL,01/08/2022,NEIGHBOURHOODS AND ENVIRONMENT,B AND M WASTE SERVICES,01/08/2022,1.50 ,REFUSE DISPOSAL,V001904512
ROCHDALE BOROUGH COUNCIL,01/08/2022,NEIGHBOURHOODS AND ENVIRONMENT,B AND M WASTE SERVICES,01/08/2022,6.28 ,REFUSE DISPOSAL,V001904512
ROCHDALE BOROUGH COUNCIL,01/08/2022,NEIGHBOURHOODS AND ENVIRONMENT,B AND M WASTE SERVICES,01/08/2022,5.99 ,REFUSE DISPOSAL,V001904512
ROCHDALE BOROUGH COUNCIL,01/08/2022,NEIGHBOURHOODS AND ENVIRONMENT,B AND M WASTE SERVICES,01/08/2022,5.99 ,REFUSE DISPOSAL,V001904512
ROCHDALE BOROUGH COUNCIL,01/08/2022,NEIGHBOURHOODS AND ENVIRONMENT,B AND M WASTE SERVICES,01/08/2022,5.99 ,REFUSE DISPOSAL,V001904512
ROCHDALE BOROUGH COUNCIL,01/08/2022,NEIGHBOURHOODS AND ENVIRONMENT,B AND M WASTE SERVICES,01/08/2022,5.99 ,REFUSE DISPOSAL,V001904512
ROCHDALE BOROUGH COUNCIL,01/08/2022,NEIGHBOURHOODS AND ENVIRONMENT,B AND M WASTE SERVICES,01/08/2022,5.99 ,REFUSE DISPOSAL,V001904512
ROCHDALE BOROUGH COUNCIL,01/08/2022,NEIGHBOURHOODS AND ENVIRONMENT,B AND M WASTE SERVICES,01/08/2022,6.92 ,REFUSE DISPOSAL,V001904512
ROCHDALE BOROUGH COUNCIL,01/08/2022,NEIGHBOURHOODS AND ENVIRONMENT,B AND M WASTE SERVICES,01/08/2022,6.92 ,REFUSE DISPOSAL,V001904512
ROCHDALE BOROUGH COUNCIL,01/08/2022,NEIGHBOURHOODS AND ENVIRONMENT,B AND M WASTE SERVICES,01/08/2022,6.92 ,REFUSE DISPOSAL,V001904512
ROCHDALE BOROUGH COUNCIL,01/08/2022,NEIGHBOURHOODS AND ENVIRONMENT,B AND M WASTE SERVICES,01/08/2022,6.92 ,REFUSE DISPOSAL,V001904512
ROCHDALE BOROUGH COUNCIL,01/08/2022,NEIGHBOURHOODS AND ENVIRONMENT,B AND M WASTE SERVICES,01/08/2022,6.92 ,REFUSE DISPOSAL,V001904512
ROCHDALE BOROUGH COUNCIL,01/08/2022,NEIGHBOURHOODS AND ENVIRONMENT,B AND M WASTE SERVICES,01/08/2022,5.99 ,REFUSE DISPOSAL,V001904512
ROCHDALE BOROUGH COUNCIL,01/08/2022,NEIGHBOURHOODS AND ENVIRONMENT,B AND M WASTE SERVICES,01/08/2022,5.99 ,REFUSE DISPOSAL,V001904512
ROCHDALE BOROUGH COUNCIL,01/08/2022,NEIGHBOURHOODS AND ENVIRONMENT,B AND M WASTE SERVICES,01/08/2022,5.99 ,REFUSE DISPOSAL,V001904512
ROCHDALE BOROUGH COUNCIL,01/08/2022,NEIGHBOURHOODS AND ENVIRONMENT,B AND M WASTE SERVICES,01/08/2022,5.99 ,REFUSE DISPOSAL,V001904512
ROCHDALE BOROUGH COUNCIL,01/08/2022,NEIGHBOURHOODS AND ENVIRONMENT,B AND M WASTE SERVICES,01/08/2022,5.99 ,REFUSE DISPOSAL,V001904512
ROCHDALE BOROUGH COUNCIL,01/08/2022,EARLY HELP AND SCHOOLS,B AND M WASTE SERVICES,01/08/2022,12.87 ,REFUSE DISPOSAL,V001904512
ROCHDALE BOROUGH COUNCIL,01/08/2022,EARLY HELP AND SCHOOLS,B AND M WASTE SERVICES,01/08/2022,12.87 ,REFUSE DISPOSAL,V001904512
ROCHDALE BOROUGH COUNCIL,01/08/2022,EARLY HELP AND SCHOOLS,B AND M WASTE SERVICES,01/08/2022,12.87 ,REFUSE DISPOSAL,V001904512
ROCHDALE BOROUGH COUNCIL,01/08/2022,EARLY HELP AND SCHOOLS,B AND M WASTE SERVICES,01/08/2022,12.87 ,REFUSE DISPOSAL,V001904512
ROCHDALE BOROUGH COUNCIL,01/08/2022,EARLY HELP AND SCHOOLS,B AND M WASTE SERVICES,01/08/2022,12.87 ,REFUSE DISPOSAL,V001904512
ROCHDALE BOROUGH COUNCIL,01/08/2022,EARLY HELP AND SCHOOLS,B AND M WASTE SERVICES,01/08/2022,12.87 ,REFUSE DISPOSAL,V001904512
ROCHDALE BOROUGH COUNCIL,01/08/2022,EARLY HELP AND SCHOOLS,B AND M WASTE SERVICES,01/08/2022,0.60 ,REFUSE DISPOSAL,V001904512
ROCHDALE BOROUGH COUNCIL,01/08/2022,EARLY HELP AND SCHOOLS,B AND M WASTE SERVICES,01/08/2022,12.87 ,REFUSE DISPOSAL,V001904512
ROCHDALE BOROUGH COUNCIL,01/08/2022,EARLY HELP AND SCHOOLS,B AND M WASTE SERVICES,01/08/2022,12.87 ,REFUSE DISPOSAL,V001904512
ROCHDALE BOROUGH COUNCIL,01/08/2022,PROPERTY AND HIGHWAYS,B AND M WASTE SERVICES,01/08/2022,51.48 ,REFUSE DISPOSAL,V001904512
ROCHDALE BOROUGH COUNCIL,01/08/2022,PROPERTY AND HIGHWAYS,B AND M WASTE SERVICES,01/08/2022,9.40 ,REFUSE DISPOSAL,V001904512
ROCHDALE BOROUGH COUNCIL,01/08/2022,PROPERTY AND HIGHWAYS,B AND M WASTE SERVICES,01/08/2022,51.48 ,REFUSE DISPOSAL,V001904512
ROCHDALE BOROUGH COUNCIL,01/08/2022,PROPERTY AND HIGHWAYS,B AND M WASTE SERVICES,01/08/2022,51.48 ,REFUSE DISPOSAL,V001904512
ROCHDALE BOROUGH COUNCIL,01/08/2022,PROPERTY AND HIGHWAYS,B AND M WASTE SERVICES,01/08/2022,51.48 ,REFUSE DISPOSAL,V001904512
ROCHDALE BOROUGH COUNCIL,01/08/2022,PROPERTY AND HIGHWAYS,B AND M WASTE SERVICES,01/08/2022,51.48 ,REFUSE DISPOSAL,V001904512
ROCHDALE BOROUGH COUNCIL,01/08/2022,PROPERTY AND HIGHWAYS,B AND M WASTE SERVICES,01/08/2022,51.48 ,REFUSE DISPOSAL,V001904512
ROCHDALE BOROUGH COUNCIL,01/08/2022,PROPERTY AND HIGHWAYS,B AND M WASTE SERVICES,01/08/2022,41.40 ,REFUSE DISPOSAL,V001904512
ROCHDALE BOROUGH COUNCIL,01/08/2022,PROPERTY AND HIGHWAYS,B AND M WASTE SERVICES,01/08/2022,51.48 ,REFUSE DISPOSAL,V001904512
ROCHDALE BOROUGH COUNCIL,01/08/2022,PROPERTY AND HIGHWAYS,B AND M WASTE SERVICES,01/08/2022,51.48 ,REFUSE DISPOSAL,V001904512
ROCHDALE BOROUGH COUNCIL,01/08/2022,PROPERTY AND HIGHWAYS,B AND M WASTE SERVICES,01/08/2022,51.48 ,REFUSE DISPOSAL,V001904512
ROCHDALE BOROUGH COUNCIL,01/08/2022,PROPERTY AND HIGHWAYS,B AND M WASTE SERVICES,01/08/2022,51.48 ,REFUSE DISPOSAL,V001904512
ROCHDALE BOROUGH COUNCIL,01/08/2022,PROPERTY AND HIGHWAYS,B AND M WASTE SERVICES,01/08/2022,51.48 ,REFUSE DISPOSAL,V001904512
ROCHDALE BOROUGH COUNCIL,01/08/2022,PROPERTY AND HIGHWAYS,B AND M WASTE SERVICES,01/08/2022,51.48 ,REFUSE DISPOSAL,V001904512
ROCHDALE BOROUGH COUNCIL,01/08/2022,PROPERTY AND HIGHWAYS,B AND M WASTE SERVICES,01/08/2022,51.48 ,REFUSE DISPOSAL,V001904512
ROCHDALE BOROUGH COUNCIL,01/08/2022,PROPERTY AND HIGHWAYS,B AND M WASTE SERVICES,01/08/2022,8.67 ,REFUSE DISPOSAL,V001904512
ROCHDALE BOROUGH COUNCIL,01/08/2022,PROPERTY AND HIGHWAYS,B AND M WASTE SERVICES,01/08/2022,8.67 ,REFUSE DISPOSAL,V001904512
ROCHDALE BOROUGH COUNCIL,01/08/2022,PROPERTY AND HIGHWAYS,B AND M WASTE SERVICES,01/08/2022,8.67 ,REFUSE DISPOSAL,V001904512
ROCHDALE BOROUGH COUNCIL,01/08/2022,PROPERTY AND HIGHWAYS,B AND M WASTE SERVICES,01/08/2022,8.67 ,REFUSE DISPOSAL,V001904512
ROCHDALE BOROUGH COUNCIL,01/08/2022,PROPERTY AND HIGHWAYS,B AND M WASTE SERVICES,01/08/2022,8.67 ,REFUSE DISPOSAL,V001904512
ROCHDALE BOROUGH COUNCIL,01/08/2022,PROPERTY AND HIGHWAYS,B AND M WASTE SERVICES,01/08/2022,8.67 ,REFUSE DISPOSAL,V001904512
ROCHDALE BOROUGH COUNCIL,01/08/2022,PROPERTY AND HIGHWAYS,B AND M WASTE SERVICES,01/08/2022,8.67 ,REFUSE DISPOSAL,V001904512
ROCHDALE BOROUGH COUNCIL,01/08/2022,PROPERTY AND HIGHWAYS,B AND M WASTE SERVICES,01/08/2022,8.67 ,REFUSE DISPOSAL,V001904512
ROCHDALE BOROUGH COUNCIL,01/08/2022,PROPERTY AND HIGHWAYS,B AND M WASTE SERVICES,01/08/2022,11.42 ,REFUSE DISPOSAL,V001904512
ROCHDALE BOROUGH COUNCIL,01/08/2022,PROPERTY AND HIGHWAYS,B AND M WASTE SERVICES,01/08/2022,11.42 ,REFUSE DISPOSAL,V001904512
ROCHDALE BOROUGH COUNCIL,01/08/2022,PROPERTY AND HIGHWAYS,B AND M WASTE SERVICES,01/08/2022,11.42 ,REFUSE DISPOSAL,V001904512
ROCHDALE BOROUGH COUNCIL,01/08/2022,PROPERTY AND HIGHWAYS,B AND M WASTE SERVICES,01/08/2022,11.42 ,REFUSE DISPOSAL,V001904512
ROCHDALE BOROUGH COUNCIL,01/08/2022,CHILDREN�S SOCIAL CARE,B AND M WASTE SERVICES,01/08/2022,12.87 ,REFUSE DISPOSAL,V001904512
ROCHDALE BOROUGH COUNCIL,01/08/2022,CHILDREN�S SOCIAL CARE,B AND M WASTE SERVICES,01/08/2022,12.87 ,REFUSE DISPOSAL,V001904512
ROCHDALE BOROUGH COUNCIL,01/08/2022,CHILDREN�S SOCIAL CARE,B AND M WASTE SERVICES,01/08/2022,12.87 ,REFUSE DISPOSAL,V001904512
ROCHDALE BOROUGH COUNCIL,01/08/2022,CHILDREN�S SOCIAL CARE,B AND M WASTE SERVICES,01/08/2022,12.87 ,REFUSE DISPOSAL,V001904512
ROCHDALE BOROUGH COUNCIL,01/08/2022,NEIGHBOURHOODS AND ENVIRONMENT,B AND M WASTE SERVICES,01/08/2022,9.82 ,REFUSE DISPOSAL,V001904512
ROCHDALE BOROUGH COUNCIL,01/08/2022,NEIGHBOURHOODS AND ENVIRONMENT,B AND M WASTE SERVICES,01/08/2022,9.82 ,REFUSE DISPOSAL,V001904512
ROCHDALE BOROUGH COUNCIL,01/08/2022,NEIGHBOURHOODS AND ENVIRONMENT,B AND M WASTE SERVICES,01/08/2022,9.82 ,REFUSE DISPOSAL,V001904512
ROCHDALE BOROUGH COUNCIL,01/08/2022,NEIGHBOURHOODS AND ENVIRONMENT,B AND M WASTE SERVICES,01/08/2022,9.82 ,REFUSE DISPOSAL,V001904512
ROCHDALE BOROUGH COUNCIL,01/08/2022,NEIGHBOURHOODS AND ENVIRONMENT,B AND M WASTE SERVICES,01/08/2022,6.92 ,REFUSE DISPOSAL,V001904512
ROCHDALE BOROUGH COUNCIL,01/08/2022,NEIGHBOURHOODS AND ENVIRONMENT,B AND M WASTE SERVICES,01/08/2022,0.40 ,REFUSE DISPOSAL,V001904512
ROCHDALE BOROUGH COUNCIL,01/08/2022,NEIGHBOURHOODS AND ENVIRONMENT,B AND M WASTE SERVICES,01/08/2022,6.92 ,REFUSE DISPOSAL,V001904512
ROCHDALE BOROUGH COUNCIL,01/08/2022,NEIGHBOURHOODS AND ENVIRONMENT,B AND M WASTE SERVICES,01/08/2022,6.92 ,REFUSE DISPOSAL,V001904512
ROCHDALE BOROUGH COUNCIL,01/08/2022,NEIGHBOURHOODS AND ENVIRONMENT,B AND M WASTE SERVICES,01/08/2022,6.92 ,REFUSE DISPOSAL,V001904512
ROCHDALE BOROUGH COUNCIL,01/08/2022,NEIGHBOURHOODS AND ENVIRONMENT,B AND M WASTE SERVICES,01/08/2022,1.40 ,REFUSE DISPOSAL,V001904512
ROCHDALE BOROUGH COUNCIL,01/08/2022,NEIGHBOURHOODS AND ENVIRONMENT,B AND M WASTE SERVICES,01/08/2022,6.92 ,REFUSE DISPOSAL,V001904512
ROCHDALE BOROUGH COUNCIL,01/08/2022,NEIGHBOURHOODS AND ENVIRONMENT,B AND M WASTE SERVICES,01/08/2022,5.99 ,REFUSE DISPOSAL,V001904512
ROCHDALE BOROUGH COUNCIL,01/08/2022,NEIGHBOURHOODS AND ENVIRONMENT,B AND M WASTE SERVICES,01/08/2022,5.99 ,REFUSE DISPOSAL,V001904512
ROCHDALE BOROUGH COUNCIL,01/08/2022,NEIGHBOURHOODS AND ENVIRONMENT,B AND M WASTE SERVICES,01/08/2022,5.99 ,REFUSE DISPOSAL,V001904512
ROCHDALE BOROUGH COUNCIL,01/08/2022,NEIGHBOURHOODS AND ENVIRONMENT,B AND M WASTE SERVICES,01/08/2022,5.99 ,REFUSE DISPOSAL,V001904512
ROCHDALE BOROUGH COUNCIL,01/08/2022,NEIGHBOURHOODS AND ENVIRONMENT,B AND M WASTE SERVICES,01/08/2022,5.99 ,REFUSE DISPOSAL,V001904512
ROCHDALE BOROUGH COUNCIL,01/08/2022,NEIGHBOURHOODS AND ENVIRONMENT,B AND M WASTE SERVICES,01/08/2022,5.99 ,REFUSE DISPOSAL,V001904512
ROCHDALE BOROUGH COUNCIL,01/08/2022,NEIGHBOURHOODS AND ENVIRONMENT,B AND M WASTE SERVICES,01/08/2022,5.99 ,REFUSE DISPOSAL,V001904512
ROCHDALE BOROUGH COUNCIL,01/08/2022,NEIGHBOURHOODS AND ENVIRONMENT,B AND M WASTE SERVICES,01/08/2022,5.99 ,REFUSE DISPOSAL,V001904512
ROCHDALE BOROUGH COUNCIL,01/08/2022,NEIGHBOURHOODS AND ENVIRONMENT,B AND M WASTE SERVICES,01/08/2022,5.99 ,REFUSE DISPOSAL,V001904512
ROCHDALE BOROUGH COUNCIL,01/08/2022,NEIGHBOURHOODS AND ENVIRONMENT,B AND M WASTE SERVICES,01/08/2022,6.92 ,REFUSE DISPOSAL,V001904512
ROCHDALE BOROUGH COUNCIL,01/08/2022,NEIGHBOURHOODS AND ENVIRONMENT,B AND M WASTE SERVICES,01/08/2022,6.92 ,REFUSE DISPOSAL,V001904512
ROCHDALE BOROUGH COUNCIL,01/08/2022,NEIGHBOURHOODS AND ENVIRONMENT,B AND M WASTE SERVICES,01/08/2022,6.92 ,REFUSE DISPOSAL,V001904512
ROCHDALE BOROUGH COUNCIL,01/08/2022,NEIGHBOURHOODS AND ENVIRONMENT,B AND M WASTE SERVICES,01/08/2022,6.92 ,REFUSE DISPOSAL,V001904512
ROCHDALE BOROUGH COUNCIL,01/08/2022,EARLY HELP AND SCHOOLS,B AND M WASTE SERVICES,01/08/2022,12.87 ,REFUSE DISPOSAL,V001904512
ROCHDALE BOROUGH COUNCIL,01/08/2022,EARLY HELP AND SCHOOLS,B AND M WASTE SERVICES,01/08/2022,27.60 ,REFUSE DISPOSAL,V001904512
ROCHDALE BOROUGH COUNCIL,01/08/2022,EARLY HELP AND SCHOOLS,B AND M WASTE SERVICES,01/08/2022,12.87 ,REFUSE DISPOSAL,V001904512
ROCHDALE BOROUGH COUNCIL,01/08/2022,EARLY HELP AND SCHOOLS,B AND M WASTE SERVICES,01/08/2022,12.87 ,REFUSE DISPOSAL,V001904512
ROCHDALE BOROUGH COUNCIL,01/08/2022,EARLY HELP AND SCHOOLS,B AND M WASTE SERVICES,01/08/2022,12.87 ,REFUSE DISPOSAL,V001904512
ROCHDALE BOROUGH COUNCIL,01/08/2022,NEIGHBOURHOODS AND ENVIRONMENT,B AND M WASTE SERVICES,01/08/2022,12.87 ,REFUSE DISPOSAL,V001904512
ROCHDALE BOROUGH COUNCIL,01/08/2022,NEIGHBOURHOODS AND ENVIRONMENT,B AND M WASTE SERVICES,01/08/2022,12.87 ,REFUSE DISPOSAL,V001904512
ROCHDALE BOROUGH COUNCIL,01/08/2022,NEIGHBOURHOODS AND ENVIRONMENT,B AND M WASTE SERVICES,01/08/2022,2.60 ,REFUSE DISPOSAL,V001904512
ROCHDALE BOROUGH COUNCIL,01/08/2022,NEIGHBOURHOODS AND ENVIRONMENT,B AND M WASTE SERVICES,01/08/2022,12.87 ,REFUSE DISPOSAL,V001904512
ROCHDALE BOROUGH COUNCIL,01/08/2022,NEIGHBOURHOODS AND ENVIRONMENT,B AND M WASTE SERVICES,01/08/2022,7.60 ,REFUSE DISPOSAL,V001904512
ROCHDALE BOROUGH COUNCIL,01/08/2022,NEIGHBOURHOODS AND ENVIRONMENT,B AND M WASTE SERVICES,01/08/2022,12.87 ,REFUSE DISPOSAL,V001904512
ROCHDALE BOROUGH COUNCIL,01/08/2022,ADULT CARE LCO FUNCTIONS,B AND M WASTE SERVICES,01/08/2022,6.84 ,REFUSE DISPOSAL,V001904512
ROCHDALE BOROUGH COUNCIL,01/08/2022,ADULT CARE LCO FUNCTIONS,B AND M WASTE SERVICES,01/08/2022,6.84 ,REFUSE DISPOSAL,V001904512
ROCHDALE BOROUGH COUNCIL,01/08/2022,ADULT CARE LCO FUNCTIONS,B AND M WASTE SERVICES,01/08/2022,6.84 ,REFUSE DISPOSAL,V001904512
ROCHDALE BOROUGH COUNCIL,01/08/2022,ADULT CARE LCO FUNCTIONS,B AND M WASTE SERVICES,01/08/2022,6.84 ,REFUSE DISPOSAL,V001904512
ROCHDALE BOROUGH COUNCIL,01/08/2022,ADULT CARE LCO FUNCTIONS,B AND M WASTE SERVICES,01/08/2022,9.72 ,REFUSE DISPOSAL,V001904512
ROCHDALE BOROUGH COUNCIL,01/08/2022,ADULT CARE LCO FUNCTIONS,B AND M WASTE SERVICES,01/08/2022,9.72 ,REFUSE DISPOSAL,V001904512
ROCHDALE BOROUGH COUNCIL,01/08/2022,ADULT CARE LCO FUNCTIONS,B AND M WASTE SERVICES,01/08/2022,9.72 ,REFUSE DISPOSAL,V001904512
ROCHDALE BOROUGH COUNCIL,01/08/2022,ADULT CARE LCO FUNCTIONS,B AND M WASTE SERVICES,01/08/2022,9.72 ,REFUSE DISPOSAL,V001904512
ROCHDALE BOROUGH COUNCIL,01/08/2022,ECONOMY DIRECTORATE,B AND M WASTE SERVICES,01/08/2022,9.60 ,REFUSE DISPOSAL,V001904512
ROCHDALE BOROUGH COUNCIL,01/08/2022,ECONOMY DIRECTORATE,B AND M WASTE SERVICES,01/08/2022,12.87 ,REFUSE DISPOSAL,V001904512
ROCHDALE BOROUGH COUNCIL,01/08/2022,ECONOMY DIRECTORATE,B AND M WASTE SERVICES,01/08/2022,12.87 ,REFUSE DISPOSAL,V001904512
ROCHDALE BOROUGH COUNCIL,01/08/2022,ECONOMY DIRECTORATE,B AND M WASTE SERVICES,01/08/2022,12.87 ,REFUSE DISPOSAL,V001904512
ROCHDALE BOROUGH COUNCIL,01/08/2022,ECONOMY DIRECTORATE,B AND M WASTE SERVICES,01/08/2022,0.60 ,REFUSE DISPOSAL,V001904512
ROCHDALE BOROUGH COUNCIL,01/08/2022,ECONOMY DIRECTORATE,B AND M WASTE SERVICES,01/08/2022,12.87 ,REFUSE DISPOSAL,V001904512
ROCHDALE BOROUGH COUNCIL,01/08/2022,NEIGHBOURHOODS AND ENVIRONMENT,B AND M WASTE SERVICES,01/08/2022,6.92 ,REFUSE DISPOSAL,V001904512
ROCHDALE BOROUGH COUNCIL,01/08/2022,NEIGHBOURHOODS AND ENVIRONMENT,B AND M WASTE SERVICES,01/08/2022,6.92 ,REFUSE DISPOSAL,V001904512
ROCHDALE BOROUGH COUNCIL,01/08/2022,NEIGHBOURHOODS AND ENVIRONMENT,B AND M WASTE SERVICES,01/08/2022,6.92 ,REFUSE DISPOSAL,V001904512
ROCHDALE BOROUGH COUNCIL,01/08/2022,NEIGHBOURHOODS AND ENVIRONMENT,B AND M WASTE SERVICES,01/08/2022,6.92 ,REFUSE DISPOSAL,V001904512
ROCHDALE BOROUGH COUNCIL,01/08/2022,NEIGHBOURHOODS AND ENVIRONMENT,B AND M WASTE SERVICES,01/08/2022,0.40 ,REFUSE DISPOSAL,V001904512
ROCHDALE BOROUGH COUNCIL,01/08/2022,NEIGHBOURHOODS AND ENVIRONMENT,B AND M WASTE SERVICES,01/08/2022,6.92 ,REFUSE DISPOSAL,V001904512
ROCHDALE BOROUGH COUNCIL,05/08/2022,CHILDREN�S SOCIAL CARE,BANNER GROUP LIMITED,05/08/2022,2.15 ,PRINTING & STATIONERY,V001904513
ROCHDALE BOROUGH COUNCIL,09/08/2022,CHILDREN�S SOCIAL CARE,INTRAQUEST COMMUNITY CIC,09/08/2022,340.00 ,ACTIVITIES,V001904516
ROCHDALE BOROUGH COUNCIL,09/08/2022,NEIGHBOURHOODS AND ENVIRONMENT,DAISY CORPORATE SERVICES TRADING LTD,09/08/2022,38.46 ,IT MAINTENANCE,V001904517
ROCHDALE BOROUGH COUNCIL,09/08/2022,NEIGHBOURHOODS AND ENVIRONMENT,DAISY CORPORATE SERVICES TRADING LTD,09/08/2022,2091.17 ,IT MAINTENANCE,V001904517
ROCHDALE BOROUGH COUNCIL,09/08/2022,ADULT CARE LCO FUNCTIONS,STANNAH LIFT SERVICES LTD,09/08/2022,63.00 ,REMOVAL EXPENDITURE,V001904518
ROCHDALE BOROUGH COUNCIL,09/08/2022,CHILDREN�S SOCIAL CARE,D A LANGUAGES LIMITED,09/08/2022,65.25 ,TRANSLATION & INTERPRETATION,V001904519
ROCHDALE BOROUGH COUNCIL,09/08/2022,CHILDREN�S SOCIAL CARE,D A LANGUAGES LIMITED,09/08/2022,45.25 ,TRANSLATION & INTERPRETATION,V001904520
ROCHDALE BOROUGH COUNCIL,09/08/2022,CHILDREN�S SOCIAL CARE,D A LANGUAGES LIMITED,09/08/2022,180.00 ,TRANSLATION & INTERPRETATION,V001904521
ROCHDALE BOROUGH COUNCIL,09/08/2022,NEIGHBOURHOODS AND ENVIRONMENT,ANIMAL WARDENS LIMITED,09/08/2022,421.20 ,CONTRACTED SERVICES,V001904522
ROCHDALE BOROUGH COUNCIL,09/08/2022,ADULT CARE LCO FUNCTIONS,PREPAID FINANCIAL SERVICES,09/08/2022,3841.29 ,CONTRACTED SERVICES,V001904523
ROCHDALE BOROUGH COUNCIL,09/08/2022,NEIGHBOURHOODS AND ENVIRONMENT,VIVID RESOURCING LTD,09/08/2022,765.04 ,BASIC WAGES,V001904524
ROCHDALE BOROUGH COUNCIL,09/08/2022,NEIGHBOURHOODS AND ENVIRONMENT,VIVID RESOURCING LTD,09/08/2022,50.96 ,BASIC WAGES,V001904524
ROCHDALE BOROUGH COUNCIL,09/08/2022,ECONOMY DIRECTORATE,G2 RECRUITMENT SOLUTIONS LTD,09/08/2022,1471.50 ,AGENCY STAFF,V001904526
ROCHDALE BOROUGH COUNCIL,09/08/2022,ADULT CARE LCO FUNCTIONS,NONSTOP CONSULTING LTD,09/08/2022,1387.50 ,AGENCY STAFF,V001904527
ROCHDALE BOROUGH COUNCIL,05/08/2022,ADULT CARE LCO FUNCTIONS,B AND M WASTE SERVICES,05/08/2022,38.56 ,REFUSE DISPOSAL,V001904529
ROCHDALE BOROUGH COUNCIL,09/08/2022,NEIGHBOURHOODS AND ENVIRONMENT,AQUACOOL LTD,09/08/2022,40.00 ,EQUIPMENT - GENERAL,V001904531
ROCHDALE BOROUGH COUNCIL,08/08/2022,EARLY HELP AND SCHOOLS,FAMILY ACTION,08/08/2022,22.00 ,PROVISIONS,V001904536
ROCHDALE BOROUGH COUNCIL,09/08/2022,RESOURCES,CASTLEFIELD RECRUITMENT LTD,09/08/2022,2000.00 ,AGENCY STAFF,V001904537
ROCHDALE BOROUGH COUNCIL,09/08/2022,NEIGHBOURHOODS AND ENVIRONMENT,VICTIM SUPPORT,09/08/2022,15302.66 ,GRANTS TO THE NON VOLUNTARY SECTOR,V001904540
ROCHDALE BOROUGH COUNCIL,09/08/2022,ADULT CARE LCO FUNCTIONS,ACCESS UK LTD,09/08/2022,705.60 ,IT EQUIPMENT,V001904541
ROCHDALE BOROUGH COUNCIL,09/08/2022,NEIGHBOURHOODS AND ENVIRONMENT,DERBYSHIRE AGGREGATES LTD,09/08/2022,354.00 ,EQUIPMENT - GENERAL,V001904542
ROCHDALE BOROUGH COUNCIL,09/08/2022,EARLY HELP AND SCHOOLS,REDACTED - PERSONAL DATA,09/08/2022,40.00 ,DIRECT PAYMENTS,V001904543
ROCHDALE BOROUGH COUNCIL,09/08/2022,NEIGHBOURHOODS AND ENVIRONMENT,NEC SOFTWARE SOLUTIONS UK LTD,09/08/2022,48000.00 ,PUBLIC NOTICES,V001904545
ROCHDALE BOROUGH COUNCIL,02/08/2022,EARLY HELP AND SCHOOLS,COACH OPTIONS LIMITED,02/08/2022,2800.00 ,TRAVELLING GENERAL EXPENSES,V001904546
ROCHDALE BOROUGH COUNCIL,08/08/2022,NEIGHBOURHOODS AND ENVIRONMENT,ENVIRONMENT AGENCY,08/08/2022,890.00 ,SEWERAGE,V001904547
ROCHDALE BOROUGH COUNCIL,08/08/2022,CHILDREN�S SOCIAL CARE,PARADIGM PROFESSIONAL CONSULTANCY LTD,08/08/2022,1412.70 ,AGENCY STAFF,V001904549
ROCHDALE BOROUGH COUNCIL,08/08/2022,RESOURCES,JACOBS,08/08/2022,0.00 ,INPUT VAT -  ADJUSTMENTS,V001904551
ROCHDALE BOROUGH COUNCIL,08/08/2022,CHILDREN�S SOCIAL CARE,PARADIGM PROFESSIONAL CONSULTANCY LTD,08/08/2022,1418.55 ,AGENCY STAFF,V001904552
ROCHDALE BOROUGH COUNCIL,08/08/2022,CHILDREN�S SOCIAL CARE,PARADIGM PROFESSIONAL CONSULTANCY LTD,08/08/2022,233.10 ,AGENCY STAFF,V001904553
ROCHDALE BOROUGH COUNCIL,09/08/2022,PROPERTY AND HIGHWAYS,ELECTRIC CENTER,09/08/2022,71.34 ,PROPERTY - WORKS ELEMENT,V001904554
ROCHDALE BOROUGH COUNCIL,09/08/2022,EARLY HELP AND SCHOOLS,ROSSENDALE SCHOOL PRIORY,09/08/2022,22654.49 ,OTHER EST - SEN PROVISION,V001904555
ROCHDALE BOROUGH COUNCIL,09/08/2022,EARLY HELP AND SCHOOLS,ROSSENDALE SCHOOL PRIORY,09/08/2022,15858.15 ,OTHER EST - SEN PROVISION,V001904556
ROCHDALE BOROUGH COUNCIL,09/08/2022,NEIGHBOURHOODS AND ENVIRONMENT,EXCLUSEC,09/08/2022,762.00 ,SECURITY,V001904557
ROCHDALE BOROUGH COUNCIL,09/08/2022,EARLY HELP AND SCHOOLS,MANCHESTER ROAD PRIMARY ACADEMY,09/08/2022,8585.00 ,OTHER EST - SEN PROVISION,V001904559
ROCHDALE BOROUGH COUNCIL,09/08/2022,NEIGHBOURHOODS AND ENVIRONMENT,AQUACOOL LTD,09/08/2022,22.75 ,SUPPLIES,V001904561
ROCHDALE BOROUGH COUNCIL,09/08/2022,NEIGHBOURHOODS AND ENVIRONMENT,AQUACOOL LTD,09/08/2022,32.00 ,SUPPLIES,V001904561
ROCHDALE BOROUGH COUNCIL,09/08/2022,ECONOMY DIRECTORATE,ASSOCIATED CLEANING CONTRACTORS,09/08/2022,45.00 ,WINDOWS,V001904562
ROCHDALE BOROUGH COUNCIL,09/08/2022,NEIGHBOURHOODS AND ENVIRONMENT,LANCASHIRE COUNTY COUNCIL,09/08/2022,1068.00 ,ENV HEALTH-SAMPLES,V001904564
ROCHDALE BOROUGH COUNCIL,05/08/2022,NEIGHBOURHOODS AND ENVIRONMENT,EXCLUSEC,05/08/2022,7204.17 ,SECURITY,V001904566
ROCHDALE BOROUGH COUNCIL,08/08/2022,NEIGHBOURHOODS AND ENVIRONMENT,BEARING AND ENGINEERING SERVICES LIMITED,08/08/2022,67.36 ,EQUIPMENT - GENERAL,V001904568
ROCHDALE BOROUGH COUNCIL,08/08/2022,NEIGHBOURHOODS AND ENVIRONMENT,SCOTTISH AND SOUTHERN ENERGY PLC,08/08/2022,953.20 ,ELECTRICITY,V001904573
ROCHDALE BOROUGH COUNCIL,09/08/2022,RESOURCES,MICROFORM IMAGING LIMITED,09/08/2022,500.00 ,SOFTWARE,V001904574
ROCHDALE BOROUGH COUNCIL,08/08/2022,NEIGHBOURHOODS AND ENVIRONMENT,HPA CHARTERED ARCHITECTS,08/08/2022,2125.00 ,CONDITION SURVEYS,V001904578
ROCHDALE BOROUGH COUNCIL,09/08/2022,ECONOMY DIRECTORATE,AQUACOOL LTD,09/08/2022,26.00 ,EXPENSES - GENERAL,V001904579
ROCHDALE BOROUGH COUNCIL,09/08/2022,NEIGHBOURHOODS AND ENVIRONMENT,SPIN PRINT SOLUTIONS,09/08/2022,21.00 ,PRINTING & STATIONERY,V001904580
ROCHDALE BOROUGH COUNCIL,09/08/2022,NEIGHBOURHOODS AND ENVIRONMENT,SPIN PRINT SOLUTIONS,09/08/2022,61.00 ,PRINTING & STATIONERY,V001904581
ROCHDALE BOROUGH COUNCIL,02/08/2022,NEIGHBOURHOODS AND ENVIRONMENT,SOLOPROTECT LTD,02/08/2022,15.00 ,SECURITY,V001904582
ROCHDALE BOROUGH COUNCIL,05/08/2022,ECONOMY DIRECTORATE,ARCO GROUP LIMITED,05/08/2022,134.53 ,EQUIPMENT - GENERAL,V001904585
ROCHDALE BOROUGH COUNCIL,05/08/2022,ECONOMY DIRECTORATE,ARCO GROUP LIMITED,05/08/2022,134.53 ,EQUIPMENT - GENERAL,V001904585
ROCHDALE BOROUGH COUNCIL,05/08/2022,ECONOMY DIRECTORATE,ARCO GROUP LIMITED,05/08/2022,134.53 ,EQUIPMENT - GENERAL,V001904585
ROCHDALE BOROUGH COUNCIL,05/08/2022,ECONOMY DIRECTORATE,ARCO GROUP LIMITED,05/08/2022,12.70 ,EQUIPMENT - GENERAL,V001904586
ROCHDALE BOROUGH COUNCIL,05/08/2022,ECONOMY DIRECTORATE,ARCO GROUP LIMITED,05/08/2022,12.70 ,EQUIPMENT - GENERAL,V001904586
ROCHDALE BOROUGH COUNCIL,05/08/2022,ECONOMY DIRECTORATE,ARCO GROUP LIMITED,05/08/2022,12.70 ,EQUIPMENT - GENERAL,V001904586
ROCHDALE BOROUGH COUNCIL,08/08/2022,NEIGHBOURHOODS AND ENVIRONMENT,CHARTERED TRADING STANDARDS INSTITUTE,08/08/2022,1080.00 ,TRAINING-NON QUALIFICATION,V001904587
ROCHDALE BOROUGH COUNCIL,05/08/2022,RESOURCES,CIVICA UK LIMITED,05/08/2022,7000.00 ,SOFTWARE,V001904591
ROCHDALE BOROUGH COUNCIL,24/08/2022,NEIGHBOURHOODS AND ENVIRONMENT,OASIS UK LTD,24/08/2022,2637.28 ,TRANSACTIONS-EXPENDITURE,V001904592
ROCHDALE BOROUGH COUNCIL,05/08/2022,PROPERTY AND HIGHWAYS,DAWSONGROUP SWEEPERS LTD,05/08/2022,1569.60 ,MINOR BUILDING WORKS,V001904593
ROCHDALE BOROUGH COUNCIL,05/08/2022,ECONOMY DIRECTORATE,ENVIROCARE MAINTENANCE SOLUTIONS LTD,05/08/2022,352.92 ,GROUNDS MAINTENANCE GENERAL,V001904594
ROCHDALE BOROUGH COUNCIL,05/08/2022,ECONOMY DIRECTORATE,ENVIROCARE MAINTENANCE SOLUTIONS LTD,05/08/2022,141.17 ,GROUNDS MAINTENANCE GENERAL,V001904595
ROCHDALE BOROUGH COUNCIL,05/08/2022,ECONOMY DIRECTORATE,ENVIROCARE MAINTENANCE SOLUTIONS LTD,05/08/2022,141.16 ,GROUNDS MAINTENANCE GENERAL,V001904595
ROCHDALE BOROUGH COUNCIL,05/08/2022,ECONOMY DIRECTORATE,ENVIROCARE MAINTENANCE SOLUTIONS LTD,05/08/2022,141.17 ,GROUNDS MAINTENANCE GENERAL,V001904596
ROCHDALE BOROUGH COUNCIL,05/08/2022,ECONOMY DIRECTORATE,ENVIROCARE MAINTENANCE SOLUTIONS LTD,05/08/2022,141.17 ,GROUNDS MAINTENANCE GENERAL,V001904597
ROCHDALE BOROUGH COUNCIL,05/08/2022,ECONOMY DIRECTORATE,ENVIROCARE MAINTENANCE SOLUTIONS LTD,05/08/2022,38.50 ,GROUNDS MAINTENANCE GENERAL,V001904598
ROCHDALE BOROUGH COUNCIL,05/08/2022,ECONOMY DIRECTORATE,ENVIROCARE MAINTENANCE SOLUTIONS LTD,05/08/2022,38.50 ,GROUNDS MAINTENANCE GENERAL,V001904599
ROCHDALE BOROUGH COUNCIL,05/08/2022,ECONOMY DIRECTORATE,ENVIROCARE MAINTENANCE SOLUTIONS LTD,05/08/2022,77.00 ,GROUNDS MAINTENANCE GENERAL,V001904600
ROCHDALE BOROUGH COUNCIL,05/08/2022,ECONOMY DIRECTORATE,ENVIROCARE MAINTENANCE SOLUTIONS LTD,05/08/2022,38.50 ,GROUNDS MAINTENANCE GENERAL,V001904601
ROCHDALE BOROUGH COUNCIL,05/08/2022,ECONOMY DIRECTORATE,ENVIROCARE MAINTENANCE SOLUTIONS LTD,05/08/2022,38.50 ,GROUNDS MAINTENANCE GENERAL,V001904602
ROCHDALE BOROUGH COUNCIL,05/08/2022,ECONOMY DIRECTORATE,IRWELL STREET METALS,05/08/2022,214.48 ,REFUSE DISPOSAL,V001904603
ROCHDALE BOROUGH COUNCIL,05/08/2022,RESOURCES,KEOGHS LLP,05/08/2022,69.00 ,INPUT VAT -  ADJUSTMENTS,V001904604
ROCHDALE BOROUGH COUNCIL,09/08/2022,EARLY HELP AND SCHOOLS,BOWKER VALE PRIMARY SCHOOL,09/08/2022,2279.25 ,OTHER EST - SEN PROVISION,V001904605
ROCHDALE BOROUGH COUNCIL,05/08/2022,RESOURCES,KEOGHS LLP,05/08/2022,112.00 ,INPUT VAT -  ADJUSTMENTS,V001904606
ROCHDALE BOROUGH COUNCIL,08/08/2022,CHILDREN�S SOCIAL CARE,PARADIGM PROFESSIONAL CONSULTANCY LTD,08/08/2022,1405.50 ,AGENCY STAFF,V001904608
ROCHDALE BOROUGH COUNCIL,05/08/2022,RESOURCES,KEOGHS LLP,05/08/2022,200.00 ,INPUT VAT -  ADJUSTMENTS,V001904609
ROCHDALE BOROUGH COUNCIL,09/08/2022,EARLY HELP AND SCHOOLS,THOMASSON MEMORIAL SCHOOL,09/08/2022,6713.40 ,OTHER EST - SEN PROVISION,V001904610
ROCHDALE BOROUGH COUNCIL,09/08/2022,NEIGHBOURHOODS AND ENVIRONMENT,AQUACOOL LTD,09/08/2022,80.00 ,EQUIPMENT - GENERAL,V001904611
ROCHDALE BOROUGH COUNCIL,08/08/2022,NEIGHBOURHOODS AND ENVIRONMENT,CROMWELL POLYTHENE LIMITED,08/08/2022,26775.00 ,EQUIPMENT - GENERAL,V001904613
ROCHDALE BOROUGH COUNCIL,09/08/2022,PROPERTY AND HIGHWAYS,CONDUENT PUBLIC SECTOR UK LTD,09/08/2022,103.84 ,IT EQUIPMENT,V001904617
ROCHDALE BOROUGH COUNCIL,09/08/2022,ECONOMY DIRECTORATE,BRITISH TELECOMMUNICATIONS PLC,09/08/2022,270.65 ,TELEPHONE EXPENDITURE,V001904618
ROCHDALE BOROUGH COUNCIL,09/08/2022,ECONOMY DIRECTORATE,BRITISH TELECOMMUNICATIONS PLC,09/08/2022,270.65 ,TELEPHONE EXPENDITURE,V001904618
ROCHDALE BOROUGH COUNCIL,09/08/2022,ECONOMY DIRECTORATE,BRITISH TELECOMMUNICATIONS PLC,09/08/2022,270.65 ,TELEPHONE EXPENDITURE,V001904618
ROCHDALE BOROUGH COUNCIL,09/08/2022,EARLY HELP AND SCHOOLS,POSITIVE STEPS,09/08/2022,33600.00 ,EXTERNALLY MANAGED FUNDS,V001904620
ROCHDALE BOROUGH COUNCIL,09/08/2022,EARLY HELP AND SCHOOLS,HOLLYBANK,09/08/2022,1860.00 ,HOME CARE - CHILDRENS SERVICES,V001904621
ROCHDALE BOROUGH COUNCIL,09/08/2022,PUBLIC HEALTH,FITTNESS WAREHOUSE LTD,09/08/2022,425.00 ,PURCHASE OF FURNITURE AND EQUIPMENT,V001904622
ROCHDALE BOROUGH COUNCIL,09/08/2022,PROPERTY AND HIGHWAYS,JENKINSON OFFICE SUPPLIES,09/08/2022,50.57 ,REPAIRS & ALTS OF BUILDINGS,V001904623
ROCHDALE BOROUGH COUNCIL,09/08/2022,ADULT CARE LCO FUNCTIONS,ROUTES HEALTHCARE NORTH LTD,09/08/2022,135.60 ,HOME CARE - ADULT SERVICES,V001904624
ROCHDALE BOROUGH COUNCIL,09/08/2022,ADULT CARE LCO FUNCTIONS,ROUTES HEALTHCARE NORTH LTD,09/08/2022,632.80 ,HOME CARE - ADULT SERVICES,V001904625
ROCHDALE BOROUGH COUNCIL,26/08/2022,ADULT CARE LCO FUNCTIONS,TUNSTALL HEALTHCARE (UK) LTD,26/08/2022,400.00 ,EQUIPMENT - GENERAL,V001904627
ROCHDALE BOROUGH COUNCIL,26/08/2022,ADULT CARE LCO FUNCTIONS,TUNSTALL HEALTHCARE (UK) LTD,26/08/2022,19.95 ,EQUIPMENT - GENERAL,V001904627
ROCHDALE BOROUGH COUNCIL,09/08/2022,ADULT CARE LCO FUNCTIONS,HOWARTH TIMBER AND BUILDING SUPPLIES LTD,09/08/2022,122.31 ,ADAPTATIONS,V001904630
ROCHDALE BOROUGH COUNCIL,09/08/2022,ECONOMY DIRECTORATE, WALKER SIME LTD,09/08/2022,5100.00 ,CONSULTANTS FEES,V001904631
ROCHDALE BOROUGH COUNCIL,05/08/2022,PROPERTY AND HIGHWAYS,METRIC GROUP LTD,05/08/2022,697.00 ,EQUIPMENT - GENERAL,V001904641
ROCHDALE BOROUGH COUNCIL,09/08/2022,EARLY HELP AND SCHOOLS,REDACTED - PERSONAL DATA,09/08/2022,9946.92 ,DIRECT PAYMENTS,V001904647
ROCHDALE BOROUGH COUNCIL,09/08/2022,EARLY HELP AND SCHOOLS,KIRKLEES COLLEGE,09/08/2022,4342.40 ,OTHER EST - SEN PROVISION,V001904648
ROCHDALE BOROUGH COUNCIL,09/08/2022,EARLY HELP AND SCHOOLS,MONARCH EDUCATION LTD,09/08/2022,247.20 ,OTHER LA`S - SEN PROVISION,V001904649
ROCHDALE BOROUGH COUNCIL,05/08/2022,CHILDREN�S SOCIAL CARE,PARADIGM PROFESSIONAL CONSULTANCY LTD,05/08/2022,577.25 ,AGENCY STAFF,V001904651
ROCHDALE BOROUGH COUNCIL,09/08/2022,EARLY HELP AND SCHOOLS,MONARCH EDUCATION LTD,09/08/2022,618.00 ,OTHER LA`S - SEN PROVISION,V001904652
ROCHDALE BOROUGH COUNCIL,02/08/2022,NEIGHBOURHOODS AND ENVIRONMENT,MANCHESTER CABINS LIMITED,02/08/2022,100.80 ,CONTRACTS,V001904654
ROCHDALE BOROUGH COUNCIL,09/08/2022,EARLY HELP AND SCHOOLS,MONARCH EDUCATION LTD,09/08/2022,329.60 ,OTHER LA`S - SEN PROVISION,V001904655
ROCHDALE BOROUGH COUNCIL,09/08/2022,EARLY HELP AND SCHOOLS,TEACHING PERSONNEL LTD,09/08/2022,374.60 ,OTHER LA`S - SEN PROVISION,V001904656
ROCHDALE BOROUGH COUNCIL,09/08/2022,EARLY HELP AND SCHOOLS,TEACHING PERSONNEL LTD,09/08/2022,675.00 ,OTHER LA`S - SEN PROVISION,V001904657
ROCHDALE BOROUGH COUNCIL,09/08/2022,ADULT CARE LCO FUNCTIONS,STANNAH LIFT SERVICES LTD,09/08/2022,6616.00 ,TRANSACTIONS-EXPENDITURE,V001904658
ROCHDALE BOROUGH COUNCIL,05/08/2022,ADULT CARE LCO FUNCTIONS,TF JONES PROPERTY SERVICES LTD,05/08/2022,4661.53 ,MINOR BUILDING WORKS,V001904659
ROCHDALE BOROUGH COUNCIL,09/08/2022,ADULT CARE LCO FUNCTIONS,A AND K SERVICES LTD,09/08/2022,5104.80 ,TRANSACTIONS-EXPENDITURE,V001904663
ROCHDALE BOROUGH COUNCIL,09/08/2022,CHILDREN�S SOCIAL CARE,FORENSIC TESTING SERVICE LTD,09/08/2022,1794.40 ,MEDICAL FEES,V001904664
ROCHDALE BOROUGH COUNCIL,09/08/2022,NEIGHBOURHOODS AND ENVIRONMENT,JGM AGENCY,09/08/2022,140.00 ,MARKETING EXPENDITURE,V001904666
ROCHDALE BOROUGH COUNCIL,09/08/2022,NEIGHBOURHOODS AND ENVIRONMENT,JGM AGENCY,09/08/2022,3228.75 ,PUBLICITY,V001904667
ROCHDALE BOROUGH COUNCIL,09/08/2022,PUBLIC HEALTH,ADFERIAD RECOVERY,09/08/2022,250.00 ,CONTRACTED SERVICES,V001904672
ROCHDALE BOROUGH COUNCIL,09/08/2022,PROPERTY AND HIGHWAYS,ENVIROFLOW MANAGEMENT LTD,09/08/2022,5104.00 ,EQUIPMENT - GENERAL,V001904675
ROCHDALE BOROUGH COUNCIL,09/08/2022,EARLY HELP AND SCHOOLS,VISION FOR EDUCATION LIMITED,09/08/2022,131.68 ,CURRICULUM DEVELOPMENT,V001904677
ROCHDALE BOROUGH COUNCIL,01/08/2022,NEIGHBOURHOODS AND ENVIRONMENT,EAGLE CONTAINERS LIMITED,01/08/2022,60.00 ,EQUIPMENT - GENERAL,V001904678
ROCHDALE BOROUGH COUNCIL,02/08/2022,NEIGHBOURHOODS AND ENVIRONMENT,MANCHESTER CABINS LIMITED,02/08/2022,75.60 ,CONTRACTS,V001904679
ROCHDALE BOROUGH COUNCIL,01/08/2022,CHILDREN�S SOCIAL CARE,ADVOCACY FOCUS,01/08/2022,5952.91 ,SERVICE LEVEL AGREEMENTS,V001904680
ROCHDALE BOROUGH COUNCIL,09/08/2022,CHILDREN�S SOCIAL CARE,FOSTER TALK,09/08/2022,97.50 ,ACTIVITIES,V001904682
ROCHDALE BOROUGH COUNCIL,09/08/2022,PROPERTY AND HIGHWAYS,TMP UK LTD,09/08/2022,660.00 ,ADVERTISING,V001904683
ROCHDALE BOROUGH COUNCIL,08/08/2022,ADULT CARE LCO FUNCTIONS,ROUTES HEALTHCARE NORTH LTD,08/08/2022,632.80 ,HOME CARE - ADULT SERVICES,V001904684
ROCHDALE BOROUGH COUNCIL,09/08/2022,EARLY HELP AND SCHOOLS,VISION FOR EDUCATION LIMITED,09/08/2022,526.72 ,CURRICULUM DEVELOPMENT,V001904692
ROCHDALE BOROUGH COUNCIL,09/08/2022,EARLY HELP AND SCHOOLS,VISION FOR EDUCATION LIMITED,09/08/2022,41.68 ,CURRICULUM DEVELOPMENT,V001904693
ROCHDALE BOROUGH COUNCIL,09/08/2022,ADULT CARE LCO FUNCTIONS,TF JONES PROPERTY SERVICES LTD,09/08/2022,4752.80 ,TRANSACTIONS-EXPENDITURE,V001904694
ROCHDALE BOROUGH COUNCIL,02/08/2022,EARLY HELP AND SCHOOLS,REDACTED - PERSONAL DATA,02/08/2022,70.00 ,DIRECT PAYMENTS,V001904696
ROCHDALE BOROUGH COUNCIL,02/08/2022,EARLY HELP AND SCHOOLS,REDACTED - PERSONAL DATA,02/08/2022,9.00 ,DIRECT PAYMENTS,V001904696
ROCHDALE BOROUGH COUNCIL,02/08/2022,NEIGHBOURHOODS AND ENVIRONMENT,MANCHESTER CABINS LIMITED,02/08/2022,663.60 ,CONTRACTS,V001904697
ROCHDALE BOROUGH COUNCIL,08/08/2022,CHILDREN�S SOCIAL CARE,CARE AND COMMUNITY LTD,08/08/2022,26.36 ,YOUNGE PERSONS ALLOWANCE,V001904702
ROCHDALE BOROUGH COUNCIL,02/08/2022,EARLY HELP AND SCHOOLS,ARJO UK LTD,02/08/2022,54.00 ,SPECIFIED MAINTENANCE,V001904703
ROCHDALE BOROUGH COUNCIL,09/08/2022,NEIGHBOURHOODS AND ENVIRONMENT,ALLIANCE DISPOSABLES LIMITED,09/08/2022,54.29 ,CLEANING MATERIALS,V001904705
ROCHDALE BOROUGH COUNCIL,09/08/2022,NEIGHBOURHOODS AND ENVIRONMENT,ALLIANCE DISPOSABLES LIMITED,09/08/2022,49.95 ,CONSUMABLES,V001904706
ROCHDALE BOROUGH COUNCIL,09/08/2022,NEIGHBOURHOODS AND ENVIRONMENT,ALLIANCE DISPOSABLES LIMITED,09/08/2022,20.25 ,CLEANING MATERIALS,V001904706
ROCHDALE BOROUGH COUNCIL,09/08/2022,NEIGHBOURHOODS AND ENVIRONMENT,ALLIANCE DISPOSABLES LIMITED,09/08/2022,22.50 ,CONSUMABLES,V001904706
ROCHDALE BOROUGH COUNCIL,09/08/2022,NEIGHBOURHOODS AND ENVIRONMENT,ALLIANCE DISPOSABLES LIMITED,09/08/2022,35.85 ,CONSUMABLES,V001904706
ROCHDALE BOROUGH COUNCIL,09/08/2022,NEIGHBOURHOODS AND ENVIRONMENT,ALLIANCE DISPOSABLES LIMITED,09/08/2022,27.75 ,CONSUMABLES,V001904706
ROCHDALE BOROUGH COUNCIL,09/08/2022,NEIGHBOURHOODS AND ENVIRONMENT,ALLIANCE DISPOSABLES LIMITED,09/08/2022,52.50 ,CONSUMABLES,V001904706
ROCHDALE BOROUGH COUNCIL,09/08/2022,NEIGHBOURHOODS AND ENVIRONMENT,AQUACOOL LTD,09/08/2022,60.00 ,EQUIPMENT - GENERAL,V001904707
ROCHDALE BOROUGH COUNCIL,09/08/2022,NEIGHBOURHOODS AND ENVIRONMENT,AQUACOOL LTD,09/08/2022,20.00 ,EQUIPMENT - GENERAL,V001904708
ROCHDALE BOROUGH COUNCIL,08/08/2022,ECONOMY DIRECTORATE,BEVAN BRITTAN LLP,08/08/2022,1277.60 ,CONSULTANTS FEES,V001904710
ROCHDALE BOROUGH COUNCIL,08/08/2022,ADULT CARE LCO FUNCTIONS,THE UNIVERSITY OF MANCHESTER,08/08/2022,1100.00 ,TRAINING,V001904711
ROCHDALE BOROUGH COUNCIL,08/08/2022,ADULT CARE LCO FUNCTIONS,THE UNIVERSITY OF MANCHESTER,08/08/2022,1100.00 ,TRAINING,V001904711
ROCHDALE BOROUGH COUNCIL,08/08/2022,NEIGHBOURHOODS AND ENVIRONMENT,DURA ID SOLUTIONS LTD,08/08/2022,780.00 ,EQUIPMENT - GENERAL,V001904712
ROCHDALE BOROUGH COUNCIL,08/08/2022,ADULT CARE LCO FUNCTIONS,KIRWIN MACLEAN ASSOCIATES LTD,08/08/2022,900.00 ,TRAINING,V001904713
ROCHDALE BOROUGH COUNCIL,09/08/2022,CHILDREN�S SOCIAL CARE,FOSTER CARES LTD,09/08/2022,783.00 ,FOSTER PARENTS BASIC ALLOWANCE,V001904714
ROCHDALE BOROUGH COUNCIL,08/08/2022,EARLY HELP AND SCHOOLS,R82 UK LIMITED,08/08/2022,1650.00 ,PROJECTS,V001904715
ROCHDALE BOROUGH COUNCIL,08/08/2022,EARLY HELP AND SCHOOLS,R82 UK LIMITED,08/08/2022,1650.00 ,PROJECTS,V001904715
ROCHDALE BOROUGH COUNCIL,08/08/2022,EARLY HELP AND SCHOOLS,R82 UK LIMITED,08/08/2022,98.00 ,PROJECTS,V001904715
ROCHDALE BOROUGH COUNCIL,08/08/2022,EARLY HELP AND SCHOOLS,R82 UK LIMITED,08/08/2022,98.00 ,PROJECTS,V001904715
ROCHDALE BOROUGH COUNCIL,08/08/2022,EARLY HELP AND SCHOOLS,R82 UK LIMITED,08/08/2022,86.00 ,PROJECTS,V001904715
ROCHDALE BOROUGH COUNCIL,08/08/2022,EARLY HELP AND SCHOOLS,R82 UK LIMITED,08/08/2022,86.00 ,PROJECTS,V001904715
ROCHDALE BOROUGH COUNCIL,08/08/2022,EARLY HELP AND SCHOOLS,R82 UK LIMITED,08/08/2022,77.00 ,PROJECTS,V001904715
ROCHDALE BOROUGH COUNCIL,08/08/2022,EARLY HELP AND SCHOOLS,R82 UK LIMITED,08/08/2022,77.00 ,PROJECTS,V001904715
ROCHDALE BOROUGH COUNCIL,08/08/2022,EARLY HELP AND SCHOOLS,R82 UK LIMITED,08/08/2022,142.00 ,PROJECTS,V001904715
ROCHDALE BOROUGH COUNCIL,08/08/2022,EARLY HELP AND SCHOOLS,R82 UK LIMITED,08/08/2022,142.00 ,PROJECTS,V001904715
ROCHDALE BOROUGH COUNCIL,08/08/2022,EARLY HELP AND SCHOOLS,R82 UK LIMITED,08/08/2022,102.00 ,PROJECTS,V001904715
ROCHDALE BOROUGH COUNCIL,08/08/2022,EARLY HELP AND SCHOOLS,R82 UK LIMITED,08/08/2022,102.00 ,PROJECTS,V001904715
ROCHDALE BOROUGH COUNCIL,08/08/2022,EARLY HELP AND SCHOOLS,R82 UK LIMITED,08/08/2022,129.00 ,PROJECTS,V001904715
ROCHDALE BOROUGH COUNCIL,08/08/2022,EARLY HELP AND SCHOOLS,R82 UK LIMITED,08/08/2022,129.00 ,PROJECTS,V001904715
ROCHDALE BOROUGH COUNCIL,08/08/2022,EARLY HELP AND SCHOOLS,R82 UK LIMITED,08/08/2022,44.00 ,PROJECTS,V001904715
ROCHDALE BOROUGH COUNCIL,08/08/2022,EARLY HELP AND SCHOOLS,R82 UK LIMITED,08/08/2022,44.00 ,PROJECTS,V001904715
ROCHDALE BOROUGH COUNCIL,08/08/2022,EARLY HELP AND SCHOOLS,R82 UK LIMITED,08/08/2022,75.00 ,PROJECTS,V001904715
ROCHDALE BOROUGH COUNCIL,08/08/2022,EARLY HELP AND SCHOOLS,R82 UK LIMITED,08/08/2022,75.00 ,PROJECTS,V001904715
ROCHDALE BOROUGH COUNCIL,08/08/2022,EARLY HELP AND SCHOOLS,R82 UK LIMITED,08/08/2022,80.00 ,PROJECTS,V001904715
ROCHDALE BOROUGH COUNCIL,08/08/2022,EARLY HELP AND SCHOOLS,R82 UK LIMITED,08/08/2022,80.00 ,PROJECTS,V001904715
ROCHDALE BOROUGH COUNCIL,08/08/2022,EARLY HELP AND SCHOOLS,R82 UK LIMITED,08/08/2022,66.00 ,PROJECTS,V001904715
ROCHDALE BOROUGH COUNCIL,08/08/2022,EARLY HELP AND SCHOOLS,R82 UK LIMITED,08/08/2022,66.00 ,PROJECTS,V001904715
ROCHDALE BOROUGH COUNCIL,09/08/2022,EARLY HELP AND SCHOOLS,BANNER GROUP LIMITED,09/08/2022,1.02 ,PRINTING & STATIONERY,V001904716
ROCHDALE BOROUGH COUNCIL,09/08/2022,EARLY HELP AND SCHOOLS,BANNER GROUP LIMITED,09/08/2022,1.03 ,PRINTING & STATIONERY,V001904716
ROCHDALE BOROUGH COUNCIL,09/08/2022,NEIGHBOURHOODS AND ENVIRONMENT,GROUNDWORK LANDSCAPES LIMITED,09/08/2022,380.00 ,EQUIPMENT - GENERAL,V001904718
ROCHDALE BOROUGH COUNCIL,09/08/2022,CHILDREN�S SOCIAL CARE,HALLIWELL HOMES LTD,09/08/2022,19906.43 ,EBD (EMOT & BEHAV DIFF) PLACEMENTS,V001904719
ROCHDALE BOROUGH COUNCIL,09/08/2022,EARLY HELP AND SCHOOLS,PROVIDENT RECRUITMENT LTD,09/08/2022,562.50 ,AGENCY STAFF,V001904723
ROCHDALE BOROUGH COUNCIL,09/08/2022,NEIGHBOURHOODS AND ENVIRONMENT,SPECIALISED CANVAS SERVICES LTD,09/08/2022,546.76 ,ACTIVITIES,V001904724
ROCHDALE BOROUGH COUNCIL,09/08/2022,ECONOMY DIRECTORATE,BRAHM FUNDCO 2 LTD,09/08/2022,29022.65 ,PFI SCHEMES RPI,V001904725
ROCHDALE BOROUGH COUNCIL,09/08/2022,ADULT CARE LCO FUNCTIONS,TF JONES PROPERTY SERVICES LTD,09/08/2022,5280.20 ,MINOR BUILDING WORKS,V001904726
ROCHDALE BOROUGH COUNCIL,09/08/2022,NEIGHBOURHOODS AND ENVIRONMENT,ANGLIA SIGN CASTING LIMITED,09/08/2022,54.30 ,EQUIPMENT - GENERAL,V001904727
ROCHDALE BOROUGH COUNCIL,09/08/2022,ADULT CARE LCO FUNCTIONS,FERRET INFORMATION SYSTEMS LTD,09/08/2022,48.00 ,ORGANISATIONAL DEVELOPMENT,V001904728
ROCHDALE BOROUGH COUNCIL,09/08/2022,ADULT CARE LCO FUNCTIONS,FERRET INFORMATION SYSTEMS LTD,09/08/2022,48.00 ,ORGANISATIONAL DEVELOPMENT,V001904728
ROCHDALE BOROUGH COUNCIL,09/08/2022,ADULT CARE LCO FUNCTIONS,FERRET INFORMATION SYSTEMS LTD,09/08/2022,48.00 ,ORGANISATIONAL DEVELOPMENT,V001904728
ROCHDALE BOROUGH COUNCIL,09/08/2022,ADULT CARE LCO FUNCTIONS,FERRET INFORMATION SYSTEMS LTD,09/08/2022,48.00 ,ORGANISATIONAL DEVELOPMENT,V001904728
ROCHDALE BOROUGH COUNCIL,10/08/2022,NEIGHBOURHOODS AND ENVIRONMENT,E ON NEXT ENERGY LTD,10/08/2022,45.00 ,STATUTORY UNDERTAKING-UTILITY COMPANIES,V001904731
ROCHDALE BOROUGH COUNCIL,09/08/2022,ADULT CARE LCO FUNCTIONS,BANNER GROUP LIMITED,09/08/2022,12.44 ,PRINTING & STATIONERY,V001904734
ROCHDALE BOROUGH COUNCIL,09/08/2022,EARLY HELP AND SCHOOLS,NORTH CHADDERTON SCHOOL,09/08/2022,4113.00 ,OTHER EST - SEN PROVISION,V001904739
ROCHDALE BOROUGH COUNCIL,09/08/2022,EARLY HELP AND SCHOOLS,NORTH CHADDERTON SCHOOL,09/08/2022,2567.00 ,OTHER EST - SEN PROVISION,V001904740
ROCHDALE BOROUGH COUNCIL,09/08/2022,NEIGHBOURHOODS AND ENVIRONMENT,ECO FUELS SERVICES LTD,09/08/2022,3170.00 ,SPECIFIED MAINTENANCE,V001904741
ROCHDALE BOROUGH COUNCIL,09/08/2022,EARLY HELP AND SCHOOLS,PANORAMIC ASSOCIATES LTD,09/08/2022,4800.00 ,AGENCY STAFF,V001904742
ROCHDALE BOROUGH COUNCIL,05/08/2022,ADULT CARE LCO FUNCTIONS,TF JONES PROPERTY SERVICES LTD,05/08/2022,152.46 ,MINOR BUILDING WORKS,V001904744
ROCHDALE BOROUGH COUNCIL,05/08/2022,RESOURCES,ROSSENDALES,05/08/2022,0.00 ,INPUT VAT -  ADJUSTMENTS,V001904745
ROCHDALE BOROUGH COUNCIL,08/08/2022,ADULT CARE LCO FUNCTIONS,ROUTES HEALTHCARE NORTH LTD,08/08/2022,94.92 ,HOME CARE - ADULT SERVICES,V001904746
ROCHDALE BOROUGH COUNCIL,08/08/2022,RESOURCES,ROYAL MAIL GROUP LTD,08/08/2022,114.27 ,POSTAGE,V001904747
ROCHDALE BOROUGH COUNCIL,08/08/2022,RESOURCES,ROYAL MAIL GROUP LTD,08/08/2022,6.80 ,POSTAGE,V001904748
ROCHDALE BOROUGH COUNCIL,05/08/2022,ADULT CARE LCO FUNCTIONS,TF JONES PROPERTY SERVICES LTD,05/08/2022,4530.75 ,TRANSACTIONS-EXPENDITURE,V001904749
ROCHDALE BOROUGH COUNCIL,08/08/2022,RESOURCES,JACOBS,08/08/2022,0.00 ,INPUT VAT -  ADJUSTMENTS,V001904751
ROCHDALE BOROUGH COUNCIL,02/08/2022,EARLY HELP AND SCHOOLS,REDACTED - PERSONAL DATA,02/08/2022,5005.00 ,OTHER LA`S - SEN PROVISION,V001904752
ROCHDALE BOROUGH COUNCIL,02/08/2022,CHILDREN�S SOCIAL CARE,THE TOGETHER TRUST,02/08/2022,3867.90 ,FOSTER PARENTS BASIC ALLOWANCE,V001904754
ROCHDALE BOROUGH COUNCIL,02/08/2022,EARLY HELP AND SCHOOLS,SUEZ RECYCLING AND RECOVERY UK LTD,02/08/2022,118.96 ,REFUSE DISPOSAL,V001904755
ROCHDALE BOROUGH COUNCIL,02/08/2022,ECONOMY DIRECTORATE,REACH PUBLISHING SERVICES LTD,02/08/2022,74.16 ,PROFESSIONAL FEES,V001904756
ROCHDALE BOROUGH COUNCIL,02/08/2022,RESOURCES,PEOPLE ASSET MANAGEMENT LTD,02/08/2022,175.00 ,OCCUPATIONAL HEALTH,V001904757
ROCHDALE BOROUGH COUNCIL,02/08/2022,NEIGHBOURHOODS AND ENVIRONMENT,MANCHESTER CABINS LIMITED,02/08/2022,189.00 ,CONTRACTS,V001904759
ROCHDALE BOROUGH COUNCIL,02/08/2022,EARLY HELP AND SCHOOLS,REDACTED - PERSONAL DATA,02/08/2022,255.36 ,ACTIVITIES,V001904760
ROCHDALE BOROUGH COUNCIL,02/08/2022,RESOURCES,REDACTED - PERSONAL DATA,02/08/2022,1890.00 ,WITNESSES EXPENSES,V001904761
ROCHDALE BOROUGH COUNCIL,02/08/2022,NEIGHBOURHOODS AND ENVIRONMENT,ENTERPRISE FLEX-E-RENT,02/08/2022,1882.16 ,TRANSACTIONS-EXPENDITURE,V001904762
ROCHDALE BOROUGH COUNCIL,23/08/2022,PROPERTY AND HIGHWAYS,ENCOME ENERGY PERFORMANCE UK LTD,23/08/2022,1534.22 ,GAS,V001904763
ROCHDALE BOROUGH COUNCIL,09/08/2022,PROPERTY AND HIGHWAYS,CONSTELLIA CONSULTANCY LTD,09/08/2022,30000.00 ,MINOR BUILDING WORKS,V001904764
ROCHDALE BOROUGH COUNCIL,05/08/2022,NEIGHBOURHOODS AND ENVIRONMENT,ALLIANCE DISPOSABLES LIMITED,05/08/2022,6.14 ,CLEANING EQUIPMENT,V001904765
ROCHDALE BOROUGH COUNCIL,05/08/2022,NEIGHBOURHOODS AND ENVIRONMENT,ALLIANCE DISPOSABLES LIMITED,05/08/2022,2.35 ,CLEANING EQUIPMENT,V001904765
ROCHDALE BOROUGH COUNCIL,05/08/2022,NEIGHBOURHOODS AND ENVIRONMENT,ALLIANCE DISPOSABLES LIMITED,05/08/2022,2.38 ,CLEANING EQUIPMENT,V001904765
ROCHDALE BOROUGH COUNCIL,05/08/2022,NEIGHBOURHOODS AND ENVIRONMENT,ALLIANCE DISPOSABLES LIMITED,05/08/2022,2.38 ,CLEANING EQUIPMENT,V001904765
ROCHDALE BOROUGH COUNCIL,05/08/2022,NEIGHBOURHOODS AND ENVIRONMENT,ALLIANCE DISPOSABLES LIMITED,05/08/2022,7.50 ,CLEANING MATERIALS,V001904765
ROCHDALE BOROUGH COUNCIL,05/08/2022,NEIGHBOURHOODS AND ENVIRONMENT,ALLIANCE DISPOSABLES LIMITED,05/08/2022,5.80 ,CLEANING MATERIALS,V001904765
ROCHDALE BOROUGH COUNCIL,05/08/2022,NEIGHBOURHOODS AND ENVIRONMENT,ALLIANCE DISPOSABLES LIMITED,05/08/2022,11.95 ,CONSUMABLES,V001904765
ROCHDALE BOROUGH COUNCIL,05/08/2022,NEIGHBOURHOODS AND ENVIRONMENT,ALLIANCE DISPOSABLES LIMITED,05/08/2022,7.50 ,CLEANING EQUIPMENT,V001904765
ROCHDALE BOROUGH COUNCIL,05/08/2022,NEIGHBOURHOODS AND ENVIRONMENT,ALLIANCE DISPOSABLES LIMITED,05/08/2022,5.76 ,CONSUMABLES,V001904765
ROCHDALE BOROUGH COUNCIL,05/08/2022,NEIGHBOURHOODS AND ENVIRONMENT,ALLIANCE DISPOSABLES LIMITED,05/08/2022,2.26 ,CLEANING EQUIPMENT,V001904765
ROCHDALE BOROUGH COUNCIL,05/08/2022,NEIGHBOURHOODS AND ENVIRONMENT,ALLIANCE DISPOSABLES LIMITED,05/08/2022,2.26 ,CLEANING EQUIPMENT,V001904765
ROCHDALE BOROUGH COUNCIL,05/08/2022,NEIGHBOURHOODS AND ENVIRONMENT,ALLIANCE DISPOSABLES LIMITED,05/08/2022,3.76 ,CLEANING EQUIPMENT,V001904765
ROCHDALE BOROUGH COUNCIL,05/08/2022,NEIGHBOURHOODS AND ENVIRONMENT,ALLIANCE DISPOSABLES LIMITED,05/08/2022,3.76 ,CLEANING EQUIPMENT,V001904765
ROCHDALE BOROUGH COUNCIL,05/08/2022,NEIGHBOURHOODS AND ENVIRONMENT,ALLIANCE DISPOSABLES LIMITED,05/08/2022,2.96 ,CLEANING EQUIPMENT,V001904765
ROCHDALE BOROUGH COUNCIL,05/08/2022,NEIGHBOURHOODS AND ENVIRONMENT,ALLIANCE DISPOSABLES LIMITED,05/08/2022,2.96 ,CLEANING EQUIPMENT,V001904765
ROCHDALE BOROUGH COUNCIL,05/08/2022,NEIGHBOURHOODS AND ENVIRONMENT,ALLIANCE DISPOSABLES LIMITED,05/08/2022,9.26 ,CONSUMABLES,V001904765
ROCHDALE BOROUGH COUNCIL,05/08/2022,NEIGHBOURHOODS AND ENVIRONMENT,ALLIANCE DISPOSABLES LIMITED,05/08/2022,17.50 ,CONSUMABLES,V001904765
ROCHDALE BOROUGH COUNCIL,05/08/2022,NEIGHBOURHOODS AND ENVIRONMENT,ALLIANCE DISPOSABLES LIMITED,05/08/2022,18.26 ,CONSUMABLES,V001904765
ROCHDALE BOROUGH COUNCIL,05/08/2022,NEIGHBOURHOODS AND ENVIRONMENT,ALLIANCE DISPOSABLES LIMITED,05/08/2022,3.25 ,CLEANING EQUIPMENT,V001904765
ROCHDALE BOROUGH COUNCIL,09/08/2022,ECONOMY DIRECTORATE,BEVAN BRITTAN LLP,09/08/2022,722.60 ,PROFESSIONAL FEES,V001904766
ROCHDALE BOROUGH COUNCIL,09/08/2022,EARLY HELP AND SCHOOLS,CRITIQOM LIMITED,09/08/2022,13.48 ,PRINTING,V001904768
ROCHDALE BOROUGH COUNCIL,09/08/2022,EARLY HELP AND SCHOOLS,AQUACOOL LTD,09/08/2022,52.00 ,REFRESHMENTS,V001904826
ROCHDALE BOROUGH COUNCIL,09/08/2022,ECONOMY DIRECTORATE,EMAP PUBLISHING LIMITED,09/08/2022,2900.00 ,ACTIVITIES,V001904827
ROCHDALE BOROUGH COUNCIL,09/08/2022,RESOURCES,FORBES SOLICITORS,09/08/2022,370.00 ,INPUT VAT -  ADJUSTMENTS,V001904835
ROCHDALE BOROUGH COUNCIL,09/08/2022,EARLY HELP AND SCHOOLS,AXIOM EDUCATION ROCHDALE LIMITED,09/08/2022,4475.12 ,"DEV CAP - NEW CONSTRUCTION,CONVERSION",V001904836
ROCHDALE BOROUGH COUNCIL,09/08/2022,EARLY HELP AND SCHOOLS,AXIOM EDUCATION ROCHDALE LIMITED,09/08/2022,165.80 ,"DEV CAP - NEW CONSTRUCTION,CONVERSION",V001904838
ROCHDALE BOROUGH COUNCIL,09/08/2022,EARLY HELP AND SCHOOLS,AXIOM EDUCATION ROCHDALE LIMITED,09/08/2022,176.62 ,REPAIRS & ALTS OF BUILDINGS,V001904839
ROCHDALE BOROUGH COUNCIL,09/08/2022,EARLY HELP AND SCHOOLS,AXIOM EDUCATION ROCHDALE LIMITED,09/08/2022,2152.10 ,"DEV CAP - NEW CONSTRUCTION,CONVERSION",V001904840
ROCHDALE BOROUGH COUNCIL,09/08/2022,EARLY HELP AND SCHOOLS,AXIOM EDUCATION ROCHDALE LIMITED,09/08/2022,1842.50 ,"DEV CAP - NEW CONSTRUCTION,CONVERSION",V001904841
ROCHDALE BOROUGH COUNCIL,09/08/2022,EARLY HELP AND SCHOOLS,AXIOM EDUCATION ROCHDALE LIMITED,09/08/2022,2122.00 ,"DEV CAP - NEW CONSTRUCTION,CONVERSION",V001904842
ROCHDALE BOROUGH COUNCIL,09/08/2022,EARLY HELP AND SCHOOLS,AXIOM EDUCATION ROCHDALE LIMITED,09/08/2022,24527.82 ,"DEV CAP - NEW CONSTRUCTION,CONVERSION",V001904843
ROCHDALE BOROUGH COUNCIL,09/08/2022,EARLY HELP AND SCHOOLS,AXIOM EDUCATION ROCHDALE LIMITED,09/08/2022,6841.18 ,"DEV CAP - NEW CONSTRUCTION,CONVERSION",V001904844
ROCHDALE BOROUGH COUNCIL,09/08/2022,EARLY HELP AND SCHOOLS,AXIOM EDUCATION ROCHDALE LIMITED,09/08/2022,1001.46 ,PFI SCHEMES RPIX,V001904845
ROCHDALE BOROUGH COUNCIL,09/08/2022,EARLY HELP AND SCHOOLS,PATTERSONS BRISTOL LTD,09/08/2022,49.95 ,CONSUMABLES,V001904848
ROCHDALE BOROUGH COUNCIL,09/08/2022,EARLY HELP AND SCHOOLS,PATTERSONS BRISTOL LTD,09/08/2022,85.80 ,CONSUMABLES,V001904848
ROCHDALE BOROUGH COUNCIL,09/08/2022,EARLY HELP AND SCHOOLS,PATTERSONS BRISTOL LTD,09/08/2022,62.91 ,CONSUMABLES,V001904848
ROCHDALE BOROUGH COUNCIL,09/08/2022,ADULT CARE LCO FUNCTIONS,ELDERCARE UK LTD,09/08/2022,12073.98 ,SERVICE LEVEL AGREEMENTS,V001904850
ROCHDALE BOROUGH COUNCIL,09/08/2022,RESOURCES,KEOGHS LLP,09/08/2022,40.00 ,INPUT VAT -  ADJUSTMENTS,V001904852
ROCHDALE BOROUGH COUNCIL,16/08/2022,ECONOMY DIRECTORATE,ADT FIRE & SECURITY PLC,16/08/2022,-476.27 ,SECURITY,V001904857
ROCHDALE BOROUGH COUNCIL,23/08/2022,RESOURCES,THE BIG WORD,23/08/2022,85.00 ,PRINTING & STATIONERY,V001904859
ROCHDALE BOROUGH COUNCIL,01/08/2022,NEIGHBOURHOODS AND ENVIRONMENT,EAGLE CONTAINERS LIMITED,01/08/2022,60.00 ,EQUIPMENT - GENERAL,V001904862
ROCHDALE BOROUGH COUNCIL,02/08/2022,CHILDREN�S SOCIAL CARE,NORTHERN COMMUNITY PATHWAYS LTD,02/08/2022,3025.71 ,YOUNG PEOPLES RENTS,V001904863
ROCHDALE BOROUGH COUNCIL,01/08/2022,EARLY HELP AND SCHOOLS,FIVE RIVERS CHILD CARE LTD,01/08/2022,5880.00 ,OTHER LA`S - SEN PROVISION,V001904865
ROCHDALE BOROUGH COUNCIL,01/08/2022,EARLY HELP AND SCHOOLS,FIVE RIVERS CHILD CARE LTD,01/08/2022,2800.00 ,OTHER LA`S - SEN PROVISION,V001904866
ROCHDALE BOROUGH COUNCIL,01/08/2022,EARLY HELP AND SCHOOLS,FIVE RIVERS CHILD CARE LTD,01/08/2022,13650.00 ,OTHER LA`S - SEN PROVISION,V001904867
ROCHDALE BOROUGH COUNCIL,01/08/2022,EARLY HELP AND SCHOOLS,FIVE RIVERS CHILD CARE LTD,01/08/2022,4200.00 ,OTHER LA`S - SEN PROVISION,V001904868
ROCHDALE BOROUGH COUNCIL,02/08/2022,RESOURCES,CRITIQOM LIMITED,02/08/2022,934.08 ,PRINTING & STATIONERY,V001904874
ROCHDALE BOROUGH COUNCIL,01/08/2022,CHILDREN�S SOCIAL CARE,IRWELL MEDICAL PRACTICE,01/08/2022,73.86 ,MEDICAL FEES,V001904877
ROCHDALE BOROUGH COUNCIL,01/08/2022,CHILDREN�S SOCIAL CARE,IRWELL MEDICAL PRACTICE,01/08/2022,73.86 ,MEDICAL FEES,V001904877
ROCHDALE BOROUGH COUNCIL,01/08/2022,CHILDREN�S SOCIAL CARE,SAFENET DOMESTIC ABUSE SERVICE,01/08/2022,1802.61 ,ACCOMMODATION,V001904878
ROCHDALE BOROUGH COUNCIL,01/08/2022,PROPERTY AND HIGHWAYS,OTIS LTD,01/08/2022,3359.37 ,SPECIFIED MAINTENANCE,V001904879
ROCHDALE BOROUGH COUNCIL,01/08/2022,EARLY HELP AND SCHOOLS,BELMONT SCHOOL LIMITED,01/08/2022,16954.77 ,OTHER LA`S - SEN PROVISION,V001904880
ROCHDALE BOROUGH COUNCIL,09/08/2022,PROPERTY AND HIGHWAYS,ELECTRIC CENTER,09/08/2022,24.62 ,PROPERTY - WORKS ELEMENT,V001904885
ROCHDALE BOROUGH COUNCIL,02/08/2022,EARLY HELP AND SCHOOLS,WATERLOO LODGE SCHOOL,02/08/2022,20000.00 ,OTHER EST - SEN PROVISION,V001904891
ROCHDALE BOROUGH COUNCIL,02/08/2022,EARLY HELP AND SCHOOLS,BELMONT SCHOOL LIMITED,02/08/2022,22050.00 ,OTHER LA`S - SEN PROVISION,V001904892
ROCHDALE BOROUGH COUNCIL,02/08/2022,RESOURCES,BANNER GROUP LIMITED,02/08/2022,2.50 ,PRINTING & STATIONERY,V001904893
ROCHDALE BOROUGH COUNCIL,02/08/2022,NEIGHBOURHOODS AND ENVIRONMENT,OVERTON UK LTD,02/08/2022,424.00 ,EQUIPMENT - GENERAL,V001904894
ROCHDALE BOROUGH COUNCIL,02/08/2022,NEIGHBOURHOODS AND ENVIRONMENT,OVERTON UK LTD,02/08/2022,22.95 ,EQUIPMENT - GENERAL,V001904894
ROCHDALE BOROUGH COUNCIL,02/08/2022,CHILDREN�S SOCIAL CARE,NORTHERN COMMUNITY PATHWAYS LTD,02/08/2022,1766.40 ,YOUNG PEOPLES RENTS,V001904898
ROCHDALE BOROUGH COUNCIL,02/08/2022,CHILDREN�S SOCIAL CARE,NORTHERN COMMUNITY PATHWAYS LTD,02/08/2022,2147.14 ,YOUNG PEOPLES RENTS,V001904899
ROCHDALE BOROUGH COUNCIL,02/08/2022,CHILDREN�S SOCIAL CARE,NORTHERN COMMUNITY PATHWAYS LTD,02/08/2022,261.65 ,YOUNGE PERSONS ALLOWANCE,V001904900
ROCHDALE BOROUGH COUNCIL,02/08/2022,CHILDREN�S SOCIAL CARE,NORTHERN COMMUNITY PATHWAYS LTD,02/08/2022,261.64 ,YOUNGE PERSONS ALLOWANCE,V001904901
ROCHDALE BOROUGH COUNCIL,02/08/2022,EARLY HELP AND SCHOOLS,THE TOGETHER TRUST,02/08/2022,-3417.20 ,OTHER LA`S - SEN PROVISION,V001904902
ROCHDALE BOROUGH COUNCIL,02/08/2022,EARLY HELP AND SCHOOLS,THE TOGETHER TRUST,02/08/2022,13544.78 ,OTHER LA`S - SEN PROVISION,V001904903
ROCHDALE BOROUGH COUNCIL,02/08/2022,EARLY HELP AND SCHOOLS,THE TOGETHER TRUST,02/08/2022,21642.36 ,OTHER LA`S - SEN PROVISION,V001904904
ROCHDALE BOROUGH COUNCIL,02/08/2022,EARLY HELP AND SCHOOLS,THE TOGETHER TRUST,02/08/2022,17348.13 ,OTHER LA`S - SEN PROVISION,V001904905
ROCHDALE BOROUGH COUNCIL,02/08/2022,EARLY HELP AND SCHOOLS,THE TOGETHER TRUST,02/08/2022,21437.02 ,OTHER LA`S - SEN PROVISION,V001904906
ROCHDALE BOROUGH COUNCIL,02/08/2022,EARLY HELP AND SCHOOLS,THE TOGETHER TRUST,02/08/2022,21642.33 ,OTHER LA`S - SEN PROVISION,V001904907
ROCHDALE BOROUGH COUNCIL,02/08/2022,CHILDREN�S SOCIAL CARE,THE TOGETHER TRUST,02/08/2022,18000.00 ,EBD (EMOT & BEHAV DIFF) PLACEMENTS,V001904908
ROCHDALE BOROUGH COUNCIL,02/08/2022,EARLY HELP AND SCHOOLS,THE TOGETHER TRUST,02/08/2022,2031.70 ,RESIDENTIAL RESPITE - CHILDRENS SERVICES,V001904909
ROCHDALE BOROUGH COUNCIL,02/08/2022,PROPERTY AND HIGHWAYS,FRANK KEY TOOL HIRE LTD,02/08/2022,38.30 ,PROPERTY - WORKS ELEMENT,V001904910
ROCHDALE BOROUGH COUNCIL,08/08/2022,EARLY HELP AND SCHOOLS,CAR 2000 HEYWOOD LLP,08/08/2022,-61.30 ,TRAVELLING GENERAL EXPENSES,V001904914
ROCHDALE BOROUGH COUNCIL,09/08/2022,CHILDREN�S SOCIAL CARE,D A LANGUAGES LIMITED,09/08/2022,90.00 ,TRANSLATION & INTERPRETATION,V001904921
ROCHDALE BOROUGH COUNCIL,09/08/2022,CHILDREN�S SOCIAL CARE,D A LANGUAGES LIMITED,09/08/2022,97.50 ,TRANSLATION & INTERPRETATION,V001904922
ROCHDALE BOROUGH COUNCIL,09/08/2022,CHILDREN�S SOCIAL CARE,D A LANGUAGES LIMITED,09/08/2022,108.00 ,TRANSLATION & INTERPRETATION,V001904923
ROCHDALE BOROUGH COUNCIL,09/08/2022,NEIGHBOURHOODS AND ENVIRONMENT,AQUACOOL LTD,09/08/2022,20.00 ,EQUIPMENT - GENERAL,V001904924
ROCHDALE BOROUGH COUNCIL,05/08/2022,NEIGHBOURHOODS AND ENVIRONMENT,PETERS LIMITED,05/08/2022,179.19 ,REFERENCE BOOKS/NEWSPAPERS/PERIODICALS,V001904946
ROCHDALE BOROUGH COUNCIL,05/08/2022,NEIGHBOURHOODS AND ENVIRONMENT,PETERS LIMITED,05/08/2022,179.19 ,REFERENCE BOOKS/NEWSPAPERS/PERIODICALS,V001904946
ROCHDALE BOROUGH COUNCIL,05/08/2022,NEIGHBOURHOODS AND ENVIRONMENT,PETERS LIMITED,05/08/2022,221.24 ,REFERENCE BOOKS/NEWSPAPERS/PERIODICALS,V001904947
ROCHDALE BOROUGH COUNCIL,05/08/2022,NEIGHBOURHOODS AND ENVIRONMENT,PETERS LIMITED,05/08/2022,221.24 ,REFERENCE BOOKS/NEWSPAPERS/PERIODICALS,V001904947
ROCHDALE BOROUGH COUNCIL,05/08/2022,NEIGHBOURHOODS AND ENVIRONMENT,PETERS LIMITED,05/08/2022,33.96 ,REFERENCE BOOKS/NEWSPAPERS/PERIODICALS,V001904948
ROCHDALE BOROUGH COUNCIL,05/08/2022,NEIGHBOURHOODS AND ENVIRONMENT,PETERS LIMITED,05/08/2022,33.96 ,REFERENCE BOOKS/NEWSPAPERS/PERIODICALS,V001904948
ROCHDALE BOROUGH COUNCIL,05/08/2022,NEIGHBOURHOODS AND ENVIRONMENT,PETERS LIMITED,05/08/2022,774.83 ,REFERENCE BOOKS/NEWSPAPERS/PERIODICALS,V001904949
ROCHDALE BOROUGH COUNCIL,05/08/2022,NEIGHBOURHOODS AND ENVIRONMENT,PETERS LIMITED,05/08/2022,774.83 ,REFERENCE BOOKS/NEWSPAPERS/PERIODICALS,V001904949
ROCHDALE BOROUGH COUNCIL,05/08/2022,NEIGHBOURHOODS AND ENVIRONMENT,ASKEWS AND HOLTS LIBRARY SERVICES LTD,05/08/2022,745.44 ,REFERENCE BOOKS/NEWSPAPERS/PERIODICALS,V001904950
ROCHDALE BOROUGH COUNCIL,05/08/2022,NEIGHBOURHOODS AND ENVIRONMENT,ASKEWS AND HOLTS LIBRARY SERVICES LTD,05/08/2022,22.20 ,REFERENCE BOOKS/NEWSPAPERS/PERIODICALS,V001904951
ROCHDALE BOROUGH COUNCIL,08/08/2022,RESOURCES,CRITIQOM LIMITED,08/08/2022,1145.16 ,POSTAGE,V001904952
ROCHDALE BOROUGH COUNCIL,08/08/2022,RESOURCES,CRITIQOM LIMITED,08/08/2022,394.82 ,PRINTING & STATIONERY,V001904953
ROCHDALE BOROUGH COUNCIL,09/08/2022,NEIGHBOURHOODS AND ENVIRONMENT,LANCASHIRE COUNTY COUNCIL,09/08/2022,140.00 ,ENV HEALTH-SAMPLES,V001904954
ROCHDALE BOROUGH COUNCIL,09/08/2022,NEIGHBOURHOODS AND ENVIRONMENT,LANCASHIRE COUNTY COUNCIL,09/08/2022,146.00 ,ENV HEALTH-SAMPLES,V001904954
ROCHDALE BOROUGH COUNCIL,09/08/2022,PROPERTY AND HIGHWAYS,KHIPU NETWORKS LTD,09/08/2022,473.26 ,ROADWORKS,V001904955
ROCHDALE BOROUGH COUNCIL,09/08/2022,CHILDREN�S SOCIAL CARE,D A LANGUAGES LIMITED,09/08/2022,93.62 ,TRANSLATION & INTERPRETATION,V001904956
ROCHDALE BOROUGH COUNCIL,09/08/2022,RESOURCES,CODEBASE8 LTD,09/08/2022,5000.00 ,SOFTWARE,V001904957
ROCHDALE BOROUGH COUNCIL,08/08/2022,NEIGHBOURHOODS AND ENVIRONMENT,STHREE PARTNERSHIP LLP,08/08/2022,937.50 ,CAPITAL - STAFFING AGENCY PAYMENTS,V001904958
ROCHDALE BOROUGH COUNCIL,05/08/2022,EARLY HELP AND SCHOOLS,COACH OPTIONS LIMITED,05/08/2022,3135.00 ,TRAVELLING GENERAL EXPENSES,V001904959
ROCHDALE BOROUGH COUNCIL,09/08/2022,CHILDREN�S SOCIAL CARE,CARITAS CARE LTD,09/08/2022,4103.40 ,FOSTER PARENTS BASIC ALLOWANCE,V001904960
ROCHDALE BOROUGH COUNCIL,09/08/2022,CHILDREN�S SOCIAL CARE,CARITAS CARE LTD,09/08/2022,4103.40 ,FOSTER PARENTS BASIC ALLOWANCE,V001904960
ROCHDALE BOROUGH COUNCIL,09/08/2022,CHILDREN�S SOCIAL CARE,THE ADOLESCENT AND CHILDRENS TRUST,09/08/2022,3254.10 ,FOSTER PARENTS BASIC ALLOWANCE,V001904961
ROCHDALE BOROUGH COUNCIL,09/08/2022,CHILDREN�S SOCIAL CARE,THE ADOLESCENT AND CHILDRENS TRUST,09/08/2022,780.00 ,FOSTER PARENTS BASIC ALLOWANCE,V001904962
ROCHDALE BOROUGH COUNCIL,09/08/2022,PUBLIC HEALTH,CPGM HEALTHCARE LTD,09/08/2022,7360.00 ,PHARMOUTCOMES,V001904964
ROCHDALE BOROUGH COUNCIL,09/08/2022,PROPERTY AND HIGHWAYS,ELECTRIC CENTER,09/08/2022,6.59 ,PROPERTY - WORKS ELEMENT,V001904966
ROCHDALE BOROUGH COUNCIL,09/08/2022,NEIGHBOURHOODS AND ENVIRONMENT,JGM AGENCY,09/08/2022,2970.00 ,PUBLICITY,V001904969
ROCHDALE BOROUGH COUNCIL,09/08/2022,PUBLIC HEALTH,OLDHAM COUNCIL,09/08/2022,105415.00 ,CONTRACTED SERVICES,V001904970
ROCHDALE BOROUGH COUNCIL,09/08/2022,CHILDREN�S SOCIAL CARE,BEDSPACE RESOURCE LTD,09/08/2022,1071.43 ,YOUNG PEOPLES RENTS,V001904971
ROCHDALE BOROUGH COUNCIL,09/08/2022,CHILDREN�S SOCIAL CARE,BEDSPACE RESOURCE LTD,09/08/2022,17.44 ,YOUNGE PERSONS ALLOWANCE,V001904971
ROCHDALE BOROUGH COUNCIL,11/08/2022,NEIGHBOURHOODS AND ENVIRONMENT,ARCO GROUP LIMITED,11/08/2022,68.43 ,"CLOTHES, UNIFORM AND LAUNDRY",V001904973
ROCHDALE BOROUGH COUNCIL,11/08/2022,NEIGHBOURHOODS AND ENVIRONMENT,ARCO GROUP LIMITED,11/08/2022,68.43 ,"CLOTHES, UNIFORM AND LAUNDRY",V001904973
ROCHDALE BOROUGH COUNCIL,11/08/2022,NEIGHBOURHOODS AND ENVIRONMENT,ARCO GROUP LIMITED,11/08/2022,68.43 ,"CLOTHES, UNIFORM AND LAUNDRY",V001904973
ROCHDALE BOROUGH COUNCIL,09/08/2022,PROPERTY AND HIGHWAYS,AVK SEG UK LTD,09/08/2022,1209.52 ,REPAIRS & ALTS OF BUILDINGS,V001904977
ROCHDALE BOROUGH COUNCIL,09/08/2022,RESOURCES,FORBES SOLICITORS,09/08/2022,140.00 ,INPUT VAT -  ADJUSTMENTS,V001904978
ROCHDALE BOROUGH COUNCIL,12/08/2022,EARLY HELP AND SCHOOLS,FIVE RIVERS CHILD CARE LTD,12/08/2022,1200.00 ,OTHER LA`S - SEN PROVISION,V001906621
ROCHDALE BOROUGH COUNCIL,09/08/2022,EARLY HELP AND SCHOOLS,D A LANGUAGES LIMITED,09/08/2022,80.50 ,TRANSLATION & INTERPRETATION,V001906623
ROCHDALE BOROUGH COUNCIL,12/08/2022,NEIGHBOURHOODS AND ENVIRONMENT,LANES GROUP PLC,12/08/2022,635.00 ,MAINTENANCE,V001906625
ROCHDALE BOROUGH COUNCIL,12/08/2022,NEIGHBOURHOODS AND ENVIRONMENT,LANES GROUP PLC,12/08/2022,445.00 ,MAINTENANCE,V001906626
ROCHDALE BOROUGH COUNCIL,12/08/2022,EARLY HELP AND SCHOOLS,G4S SECURE SOLUTIONS UK  LTD,12/08/2022,447.26 ,SECURITY,V001906629
ROCHDALE BOROUGH COUNCIL,12/08/2022,NEIGHBOURHOODS AND ENVIRONMENT,TRAVIS PERKINS TRADING CO LTD,12/08/2022,90.80 ,EQUIPMENT - GENERAL,V001906632
ROCHDALE BOROUGH COUNCIL,09/08/2022,NEIGHBOURHOODS AND ENVIRONMENT,WHISTL UK LTD,09/08/2022,52.85 ,TRANSACTIONS-EXPENDITURE,V001906635
ROCHDALE BOROUGH COUNCIL,09/08/2022,EARLY HELP AND SCHOOLS,FRESH START IN EDUCATION LTD,09/08/2022,186.00 ,CURRICULUM DEVELOPMENT,V001906637
ROCHDALE BOROUGH COUNCIL,09/08/2022,EARLY HELP AND SCHOOLS,DEARDEN WOOD,09/08/2022,127.50 ,TRAINING-NON QUALIFICATION,V001906638
ROCHDALE BOROUGH COUNCIL,09/08/2022,EARLY HELP AND SCHOOLS,DEARDEN WOOD,09/08/2022,240.00 ,TRAINING-NON QUALIFICATION,V001906638
ROCHDALE BOROUGH COUNCIL,09/08/2022,EARLY HELP AND SCHOOLS,DEARDEN WOOD,09/08/2022,50.00 ,TRAINING-NON QUALIFICATION,V001906638
ROCHDALE BOROUGH COUNCIL,09/08/2022,EARLY HELP AND SCHOOLS,NORNIR LIMITED,09/08/2022,750.00 ,IT MAINTENANCE,V001906639
ROCHDALE BOROUGH COUNCIL,09/08/2022,EARLY HELP AND SCHOOLS,NORNIR LIMITED,09/08/2022,750.00 ,IT MAINTENANCE,V001906639
ROCHDALE BOROUGH COUNCIL,09/08/2022,NEIGHBOURHOODS AND ENVIRONMENT,ORCHARD RECYCLING SERVICE LTD,09/08/2022,2504.50 ,CONTRACTS,V001906640
ROCHDALE BOROUGH COUNCIL,02/08/2022,EARLY HELP AND SCHOOLS,THE TOGETHER TRUST,02/08/2022,15122.12 ,OTHER LA`S - SEN PROVISION,V001906642
ROCHDALE BOROUGH COUNCIL,02/08/2022,EARLY HELP AND SCHOOLS,THE TOGETHER TRUST,02/08/2022,13544.78 ,OTHER LA`S - SEN PROVISION,V001906643
ROCHDALE BOROUGH COUNCIL,09/08/2022,CHILDREN�S SOCIAL CARE,SWIIS FOSTER CARE LIMITED,09/08/2022,808.01 ,FOSTER PARENTS BASIC ALLOWANCE,V001906657
ROCHDALE BOROUGH COUNCIL,11/08/2022,CHILDREN�S SOCIAL CARE,TSOM GROUP,11/08/2022,16310.00 ,YOUNG PEOPLES RENTS,V001906659
ROCHDALE BOROUGH COUNCIL,11/08/2022,CHILDREN�S SOCIAL CARE,TSOM GROUP,11/08/2022,270.60 ,YOUNGE PERSONS ALLOWANCE,V001906659
ROCHDALE BOROUGH COUNCIL,09/08/2022,RESOURCES,NEC SOFTWARE SOLUTIONS UK LTD,09/08/2022,1250.00 ,SOFTWARE,V001906661
ROCHDALE BOROUGH COUNCIL,09/08/2022,PROPERTY AND HIGHWAYS,MAYHURST BOLTON LTD,09/08/2022,1649.58 ,TIPPING CHARGES,V001906662
